Workbook

Sheet 1. INFORMACION ACUMULADA
B2: VEEDURIA DISTRITAL - INFORMACIÓN GESTION CONTRACTUAL
B3: DEL 1 DE ENERO AL 31 DE DICIEMBRE DE 2021
B5: 1. Entidad | I5: 2. Sector
B6: 3. Presupuesto Disponible Inversión Directa PREDIS (BOGDATA) | F6: FONDO DE DESARROLLO LOCAL DE CHAPINERO | I6: 5. Presupuesto Disponible Funcionamiento PREDIS (BOGDATA) | AI6: 9. Nombre de quien diligencia el formato | AK6: JIMENA MARIA CARDONA DIAZ
B7: 4. Presupuesto Comprometido de Inversión Directa según PREDIS (BOGDATA) | I7: 6. Presupuesto Comprometido Funcionamiento según PREDIS (BOGDATA) | AI7: Cargo | AK7: PROFESIONAL UNIVERSITARIO
AI8: Dependencia | AK8: CONTRATACIÓN
B9: 7. Presupuesto Disponible Operación (Régimen Privado) | AI9: Teléfono | AK9: 320-6172448
B10: 8. Presupuesto Comprometido Operación mediante contratos | AI10: Correo Electrónico | AK10: jimena.cardona@gobiernobogota.gov.co
B11: 1- INFORMACION GENERAL | W11: 2- INFORMACION FINANCIERA | AC11: 3 - PLAZOS | AI11: 4. CESION | AM11: 5. ESTADO | AQ11: 6. % Avance y/o cumplimiento
B12: 1 | C12: 2 | D12: 3 | F12: 4 | G12: 5 | H12: 6 | I12: 7 | J12: 8 | O12: 9 | P12: 10 | Q12: 11 | W12: 12 | X12: 13 | Y12: 14 | Z12: 15 | AA12: 16 | AB12: 17 | AC12: 18 | AD12: 19 | AE12: 20 | AF12: 21 | AG12: 22 | AH12: 23 | AI12: 24 | AJ12: 25 | AK12: 26 | AL12: 27 | AM12: 28 | AQ12: 29
A13: Cuenta contrato | B13: Número Contrato | C13: Año | D13: Número de proceso contractual SECOP | E13: Link proceso SECOP | F13: Tipo de contrato | G13: Modalidad de Selección | H13: Procedimiento o causal | I13: Objeto | J13: Afectación | K13: Plan de Desarrollo Distrital | L13: Número Programa | M13: Equivalencia número de programa | N13: Propósito | O13: Número Proyecto | P13: Número de proponentes | Q13: Número de Identificación del contratista (Cédula o NIT sin puntos, comas ni caracteres especiales y sin digito de verificación) | R13: Nombre del contratista (según el caso: nombres y apellidos o Razón social y Tipo societario) | S13: Naturaleza Jurídica | T13: Número de Identificación del integrante del Consorcio o U.T. (Cédula o NIT sin puntos, comas ni caracteres especiales y sin digito de verificación) | U13: Nombre del Integrante del Consorcio o U.T. y Tipo societario (Según el caso: nombres y apellidos o razón social y tipo societario) | V13: % Participación (indicar solo el numero del porcentaje, sin caracteres especiales) | W13: Valor Inicial del contrato | X13: Valor total reducciones (En valor negativo) | Y13: Número de adiciones | Z13: Valor total de adiciones | AA13: Valor Final | AB13: Giros (Valor en pesos) | AC13: Fecha de suscripción (DD/MM/AAAA) | AD13: Fecha de inicio (DD/MM/AAAA) | AE13: Fecha de terminación (DD/MM/AAAA) | AF13: Plazo en días | AG13: Número de prórrogas | AH13: Prorroga en días | AI13: Número de Identificación del cesionario (NIT sin digito de verificación) | AJ13: Nombre cesionario | AK13: Fecha cesión (DD/MM/AAAA) | AL13: Valor cesión | AM13: Celebrado o por iniciar | AN13: En Ejecución | AO13: Terminado | AP13: Liquidado | AQ13: % Avance y/o Cumplimiento
A14: 1 | B14: 1 | C14: 2021 | D14: FDLCH-CPS-001-2021 | E14: https://community.secop.gov.co/Public/Tendering/OpportunityDetail/Index?noticeUID=CO1.NTC.1698059&isFromPublicArea=True&isModal=true&asPopupView=true | F14: Contratos de prestación de servicios profesionales y de apoyo a la gestión | G14: Contratación directa | H14: Prestación de servicios profesionales y de apoyo a la gestión, o para la ejecución de trabajos artísticos que sólo puedan encomendarse a determinadas personas naturales; | I14: Prestar sevicios profesionales especializados para apoyar la organización y estructuracion d ela gestión precontractual, contractual y postcontractual que adelante el Fondo de Desarrollo Local de Chapinero. | J14: Inversión | K14: Un Nuevo Contrato Social y Ambiental para la Bogotá del Siglo XXI | L14: 57 | M14: =IF(ISERROR(VLOOKUP(L14,Proposito_programa!$C$2:$E$59,2,FALSE))," ",VLOOKUP(L14,Proposito_programa!$C$2:$E$59,2,FALSE)) -> Gestión pública local | N14: =IF(ISERROR(VLOOKUP(L14,Proposito_programa!$C$2:$E$59,3,FALSE))," ",VLOOKUP(L14,Proposito_programa!$C$2:$E$59,3,FALSE)) -> Propósito 5: Construir Bogotá - Región con gobierno abierto, transparente y ciudadanía consciente | O14: 133011605570000001741 | P14: 1 | Q14: 79580307 | R14: CESAR FRUTO CORREDOR GOMEZ | S14: Persona Natural | W14: 54560000 | Y14: 1 | Z14: 24779333 | AA14: =+W14+X14+Z14 -> 79339333 | AB14: 69109333 | AC14: 2021-01-26 | AD14: 2021-01-27 | AE14: 2022-01-15 | AF14: 240 | AG14: 1 | AH14: =+AG14*30 -> 30 | AN14: X | AQ14: =IF(ISERROR(AB14/AA14),"-",(AB14/AA14)) -> 0.8710601714
A15: 1 | B15: 2 | C15: 2021 | D15: FDLCH-CPS-002-2021 | E15: https://community.secop.gov.co/Directory/Profile/705394302 | F15: Contratos de prestación de servicios profesionales y de apoyo a la gestión | G15: Contratación directa | H15: Prestación de servicios profesionales y de apoyo a la gestión, o para la ejecución de trabajos artísticos que sólo puedan encomendarse a determinadas personas naturales; | I15: Prestar servicios profesionales para apoyar la gestión precontractual, contractual y postcontractual que adelante el Fondo de Desarrollo Local de Chapinero. | J15: Inversión | K15: Un Nuevo Contrato Social y Ambiental para la Bogotá del Siglo XXI | L15: 57 | M15: =IF(ISERROR(VLOOKUP(L15,Proposito_programa!$C$2:$E$59,2,FALSE))," ",VLOOKUP(L15,Proposito_programa!$C$2:$E$59,2,FALSE)) -> Gestión pública local | N15: =IF(ISERROR(VLOOKUP(L15,Proposito_programa!$C$2:$E$59,3,FALSE))," ",VLOOKUP(L15,Proposito_programa!$C$2:$E$59,3,FALSE)) -> Propósito 5: Construir Bogotá - Región con gobierno abierto, transparente y ciudadanía consciente | O15: 133011605570000001741 | P15: 1 | Q15: 1078368894 | R15: JENNYFER PAOLA GALVIS TORRES | S15: Persona Natural | W15: 24000000 | Y15: 1 | Z15: 12000000 | AA15: 36000000 | AB15: 36000000 | AC15: 2021-01-26 | AD15: 2021-01-27 | AE15: 2021-09-10 | AF15: 150 | AG15: 1 | AH15: =+AG15*30 -> 30 | AO15: X | AQ15: 1
A16: 1 | B16: 3 | C16: 2021 | D16: FDLCH-CPS-003-2021 | E16: https://community.secop.gov.co/Public/Tendering/OpportunityDetail/Index?noticeUID=CO1.NTC.1703032&isFromPublicArea=True&isModal=true&asPopupView=true | F16: Contratos de prestación de servicios profesionales y de apoyo a la gestión | G16: Contratación directa | H16: Prestación de servicios profesionales y de apoyo a la gestión, o para la ejecución de trabajos artísticos que sólo puedan encomendarse a determinadas personas naturales; | I16: Prestar los servicios personales necesarios para la conducción de los vehículos que conforman el parque automotor en propiedad o custodia del Fondo de Desarrollo Local de Chapinero, y el transporte de servidores públicos para la realización de las actividades misionales de la Alcaldía Local de Chapinero. | J16: Inversión | K16: Un Nuevo Contrato Social y Ambiental para la Bogotá del Siglo XXI | L16: 57 | M16: =IF(ISERROR(VLOOKUP(L16,Proposito_programa!$C$2:$E$59,2,FALSE))," ",VLOOKUP(L16,Proposito_programa!$C$2:$E$59,2,FALSE)) -> Gestión pública local | N16: =IF(ISERROR(VLOOKUP(L16,Proposito_programa!$C$2:$E$59,3,FALSE))," ",VLOOKUP(L16,Proposito_programa!$C$2:$E$59,3,FALSE)) -> Propósito 5: Construir Bogotá - Región con gobierno abierto, transparente y ciudadanía consciente | O16: 133011605570000001741 | P16: 1 | Q16: 1018445848 | R16: JUAN DAVID CHICACAUSA SALAS | S16: Persona Natural | W16: 9600000 | Y16: 1 | Z16: 4800000 | AA16: 14400000 | AB16: 14400000 | AC16: 2021-01-27 | AD16: 2021-01-28 | AE16: 2021-08-03 | AF16: 120 | AG16: 1 | AH16: 30 | AO16: X | AQ16: 1
A17: 1 | B17: 4 | C17: 2021 | D17: FDLCH-CPS-004-2021 | E17: https://community.secop.gov.co/Public/Tendering/OpportunityDetail/Index?noticeUID=CO1.NTC.1707240&isFromPublicArea=True&isModal=true&asPopupView=true | F17: Contratos de prestación de servicios profesionales y de apoyo a la gestión | G17: Contratación directa | H17: Prestación de servicios profesionales y de apoyo a la gestión, o para la ejecución de trabajos artísticos que sólo puedan encomendarse a determinadas personas naturales; | I17: Prestar servicios técnicos para apoyar la gestión y ejecución de las actividades administrativas que se adelantan en el Despacho de la Alcaldía Local de Chapinero para el cumplimiento de las metas y objetivos del Plan de Desarrollo Local | J17: Inversión | K17: Un Nuevo Contrato Social y Ambiental para la Bogotá del Siglo XXI | L17: 57 | M17: =IF(ISERROR(VLOOKUP(L17,Proposito_programa!$C$2:$E$59,2,FALSE))," ",VLOOKUP(L17,Proposito_programa!$C$2:$E$59,2,FALSE)) -> Gestión pública local | N17: =IF(ISERROR(VLOOKUP(L17,Proposito_programa!$C$2:$E$59,3,FALSE))," ",VLOOKUP(L17,Proposito_programa!$C$2:$E$59,3,FALSE)) -> Propósito 5: Construir Bogotá - Región con gobierno abierto, transparente y ciudadanía consciente | O17: 133011605570000001741 | P17: 1 | Q17: 1091663411 | R17: JUAN PABLO SANJUAN ARIAS | S17: Persona Natural | W17: 16200000 | AA17: 16200000 | AB17: 16200000 | AC17: 2021-01-28 | AD17: 2021-01-28 | AE17: 2021-07-27 | AF17: 180 | AH17: 0 | AO17: X | AQ17: 1
A18: 1 | B18: 5 | C18: 2021 | D18: FDLCH-CPS-005-2021 | E18: https://community.secop.gov.co/Public/Tendering/OpportunityDetail/Index?noticeUID=CO1.NTC.1707109&isFromPublicArea=True&isModal=true&asPopupView=true | F18: Contratos de prestación de servicios profesionales y de apoyo a la gestión | G18: Contratación directa | H18: Prestación de servicios profesionales y de apoyo a la gestión, o para la ejecución de trabajos artísticos que sólo puedan encomendarse a determinadas personas naturales; | I18: Prestar servicios profesionales especializados de apoyo al área de Gestión del Desarrollo Local, en la articulación, estructuración y seguimiento del proceso de planeación estratégica local, desarrollando actividades relacionadas con la formulación, seguimiento, terminación y cierre de proyectos de inversión, así como la estructuración, ejecución y cierre de los Planes de Desarrollo Local | J18: Inversión | K18: Un Nuevo Contrato Social y Ambiental para la Bogotá del Siglo XXI | L18: 57 | M18: =IF(ISERROR(VLOOKUP(L18,Proposito_programa!$C$2:$E$59,2,FALSE))," ",VLOOKUP(L18,Proposito_programa!$C$2:$E$59,2,FALSE)) -> Gestión pública local | N18: =IF(ISERROR(VLOOKUP(L18,Proposito_programa!$C$2:$E$59,3,FALSE))," ",VLOOKUP(L18,Proposito_programa!$C$2:$E$59,3,FALSE)) -> Propósito 5: Construir Bogotá - Región con gobierno abierto, transparente y ciudadanía consciente | O18: 133011605570000001741 | P18: 1 | Q18: 1022331685 | R18: NELSON MAURICIO REY PEÑA | S18: Persona Natural | W18: 56000000 | Y18: 1 | Z18: 25433333 | AA18: 81433333 | AB18: 74200000 | AC18: 2021-01-28 | AD18: 2021-01-28 | AE18: 2022-01-15 | AF18: 240 | AG18: 1 | AH18: 30 | AN18: X | AQ18: 0.9111747888
A19: 1 | B19: 6 | C19: 2021 | D19: FDLCH-CPS-006-2021 | E19: https://community.secop.gov.co/Public/Tendering/OpportunityDetail/Index?noticeUID=CO1.NTC.1708823&isFromPublicArea=True&isModal=true&asPopupView=true | F19: Contratos de prestación de servicios profesionales y de apoyo a la gestión | G19: Contratación directa | H19: Prestación de servicios profesionales y de apoyo a la gestión, o para la ejecución de trabajos artísticos que sólo puedan encomendarse a determinadas personas naturales; | I19: Prestar servicios personales para apoyar actividades operativas y administrativas de la gestión precontractual, contractual y postcontractual que adelante el Fondo de Desarrollo Local de Chapinero “ | J19: Inversión | K19: Un Nuevo Contrato Social y Ambiental para la Bogotá del Siglo XXI | L19: 57 | M19: =IF(ISERROR(VLOOKUP(L19,Proposito_programa!$C$2:$E$59,2,FALSE))," ",VLOOKUP(L19,Proposito_programa!$C$2:$E$59,2,FALSE)) -> Gestión pública local | N19: =IF(ISERROR(VLOOKUP(L19,Proposito_programa!$C$2:$E$59,3,FALSE))," ",VLOOKUP(L19,Proposito_programa!$C$2:$E$59,3,FALSE)) -> Propósito 5: Construir Bogotá - Región con gobierno abierto, transparente y ciudadanía consciente | O19: 133011605570000001741 | P19: 1 | Q19: 5229337 | R19: MARTHA YANETH VASQUEZ FIGUEROA | S19: Persona Natural | W19: 11000000 | Y19: 1 | Z19: 5500000 | AA19: 16500000 | AB19: 16500000 | AC19: 2021-01-28 | AD19: 2021-01-29 | AE19: 2021-09-12 | AF19: 150 | AG19: 1 | AH19: 30 | AO19: X | AQ19: 1
A20: 1 | B20: 7 | C20: 2021 | D20: FDLCH-CPS-007-2021 | E20: https://community.secop.gov.co/Public/Tendering/OpportunityDetail/Index?noticeUID=CO1.NTC.1708710&isFromPublicArea=True&isModal=true&asPopupView=true | F20: Contratos de prestación de servicios profesionales y de apoyo a la gestión | G20: Contratación directa | H20: Prestación de servicios profesionales y de apoyo a la gestión, o para la ejecución de trabajos artísticos que sólo puedan encomendarse a determinadas personas naturales; | I20: Prestar servicios de apoyo a la gestión para asistir logística y administrativamente al Despacho de la Alcaldía Local de Chapinero | J20: Inversión | K20: Un Nuevo Contrato Social y Ambiental para la Bogotá del Siglo XXI | L20: 57 | M20: =IF(ISERROR(VLOOKUP(L20,Proposito_programa!$C$2:$E$59,2,FALSE))," ",VLOOKUP(L20,Proposito_programa!$C$2:$E$59,2,FALSE)) -> Gestión pública local | N20: =IF(ISERROR(VLOOKUP(L20,Proposito_programa!$C$2:$E$59,3,FALSE))," ",VLOOKUP(L20,Proposito_programa!$C$2:$E$59,3,FALSE)) -> Propósito 5: Construir Bogotá - Región con gobierno abierto, transparente y ciudadanía consciente | O20: 133011605570000001741 | P20: 1 | Q20: 73159185 | R20: GERMAN ENRIQUE CASTILLO CORREA | S20: Persona Natural | W20: 12600000 | AA20: 12600000 | AB20: 12600000 | AC20: 2021-01-28 | AD20: 2021-01-29 | AE20: 2021-07-28 | AF20: 180 | AH20: 0 | AO20: X | AQ20: 1
A21: 1 | B21: 8 | C21: 2021 | D21: FDLCH-CPS-008-2021 | E21: https://community.secop.gov.co/Public/Tendering/OpportunityDetail/Index?noticeUID=CO1.NTC.1708921&isFromPublicArea=True&isModal=true&asPopupView=true | F21: Contratos de prestación de servicios profesionales y de apoyo a la gestión | G21: Contratación directa | H21: Prestación de servicios profesionales y de apoyo a la gestión, o para la ejecución de trabajos artísticos que sólo puedan encomendarse a determinadas personas naturales; | I21: Prestar servicios profesionales para apoyar la gestión precontractual, contractual y postcontractual que adelante el Fondo de Desarrollo Local de Chapinero “ | J21: Inversión | K21: Un Nuevo Contrato Social y Ambiental para la Bogotá del Siglo XXI | L21: 57 | M21: =IF(ISERROR(VLOOKUP(L21,Proposito_programa!$C$2:$E$59,2,FALSE))," ",VLOOKUP(L21,Proposito_programa!$C$2:$E$59,2,FALSE)) -> Gestión pública local | N21: =IF(ISERROR(VLOOKUP(L21,Proposito_programa!$C$2:$E$59,3,FALSE))," ",VLOOKUP(L21,Proposito_programa!$C$2:$E$59,3,FALSE)) -> Propósito 5: Construir Bogotá - Región con gobierno abierto, transparente y ciudadanía consciente | O21: 133011605570000001741 | P21: 1 | Q21: 1094248111 | R21: YEINI RAQUEL BLANCO MENDOZA | S21: Persona Natural | W21: 24000000 | Y21: 1 | Z21: 12000000 | AA21: 36000000 | AB21: 36000000 | AC21: 2021-01-28 | AD21: 2021-01-29 | AE21: 2021-09-12 | AF21: 150 | AG21: 1 | AH21: 30 | AO21: X | AQ21: 1
A22: 1 | B22: 9 | C22: 2021 | D22: FDLCH-CPS-009-2021 | E22: https://community.secop.gov.co/Public/Tendering/OpportunityDetail/Index?noticeUID=CO1.NTC.1708277&isFromPublicArea=True&isModal=true&asPopupView=true | F22: Contratos de prestación de servicios profesionales y de apoyo a la gestión | G22: Contratación directa | H22: Prestación de servicios profesionales y de apoyo a la gestión, o para la ejecución de trabajos artísticos que sólo puedan encomendarse a determinadas personas naturales; | I22: Prestar servicios profesionales para apoyar la gestión precontractual, contractual y postcontractual que adelante el Fondo de Desarrollo Local de Chapinero “ | J22: Inversión | K22: Un Nuevo Contrato Social y Ambiental para la Bogotá del Siglo XXI | L22: 57 | M22: =IF(ISERROR(VLOOKUP(L22,Proposito_programa!$C$2:$E$59,2,FALSE))," ",VLOOKUP(L22,Proposito_programa!$C$2:$E$59,2,FALSE)) -> Gestión pública local | N22: =IF(ISERROR(VLOOKUP(L22,Proposito_programa!$C$2:$E$59,3,FALSE))," ",VLOOKUP(L22,Proposito_programa!$C$2:$E$59,3,FALSE)) -> Propósito 5: Construir Bogotá - Región con gobierno abierto, transparente y ciudadanía consciente | O22: 133011605570000001841 | P22: 1 | Q22: 79696907 | R22: JUAN CARLOS GOMEZ MELGAREJO | S22: Persona Natural | W22: 56000000 | Y22: 1 | Z22: 24966667 | AA22: 80966667 | AB22: 70466667 | AC22: 2021-01-29 | AD22: 2021-01-29 | AE22: 2022-01-14 | AF22: 240 | AG22: 1 | AH22: 30 | AN22: X | AQ22: 0.8703170034
A23: 1 | B23: 10 | C23: 2021 | D23: FDLCH-CPS-010-2021 | E23: https://community.secop.gov.co/Public/Tendering/OpportunityDetail/Index?noticeUID=CO1.NTC.1719798&isFromPublicArea=True&isModal=true&asPopupView=true | F23: Contratos de prestación de servicios profesionales y de apoyo a la gestión | G23: Contratación directa | H23: Prestación de servicios profesionales y de apoyo a la gestión, o para la ejecución de trabajos artísticos que sólo puedan encomendarse a determinadas personas naturales; | I23: Prestar los servicios personales necesarios para la conducción de los vehículos que conforman el parque automotor en propiedad u custodia del fondo de Desarrollo Local de Chapinero y el transporte de servidores públicos para la realización de las actividades misionales de la Alcaldía Local de Chapinero | J23: Inversión | K23: Un Nuevo Contrato Social y Ambiental para la Bogotá del Siglo XXI | L23: 57 | M23: =IF(ISERROR(VLOOKUP(L23,Proposito_programa!$C$2:$E$59,2,FALSE))," ",VLOOKUP(L23,Proposito_programa!$C$2:$E$59,2,FALSE)) -> Gestión pública local | N23: =IF(ISERROR(VLOOKUP(L23,Proposito_programa!$C$2:$E$59,3,FALSE))," ",VLOOKUP(L23,Proposito_programa!$C$2:$E$59,3,FALSE)) -> Propósito 5: Construir Bogotá - Región con gobierno abierto, transparente y ciudadanía consciente | O23: 133011605570000001741 | P23: 1 | Q23: 3220879 | R23: BENEDICTO VANEGAS CASTELLANOS | S23: Persona Natural | W23: 9600000 | Y23: 1 | Z23: 4800000 | AA23: 14400000 | AB23: 14400000 | AC23: 2021-01-29 | AD23: 2021-02-03 | AE23: 2021-08-01 | AF23: 120 | AG23: 1 | AH23: 30 | AO23: X | AQ23: 1
A24: 1 | B24: 11 | C24: 2021 | D24: FDLCH-CPS-011-2021 | E24: https://community.secop.gov.co/Public/Tendering/OpportunityDetail/Index?noticeUID=CO1.NTC.1714517&isFromPublicArea=True&isModal=true&asPopupView=true | F24: Contratos de prestación de servicios profesionales y de apoyo a la gestión | G24: Contratación directa | H24: Prestación de servicios profesionales y de apoyo a la gestión, o para la ejecución de trabajos artísticos que sólo puedan encomendarse a determinadas personas naturales; | I24: Prestación de servicios personales de apoyo a la gestión necesarios para el apoyo en la ejecución de actividades administrativas y operativas adelantadas en la Junta Administradora Local de Chapinero. | J24: Inversión | K24: Un Nuevo Contrato Social y Ambiental para la Bogotá del Siglo XXI | L24: 57 | M24: =IF(ISERROR(VLOOKUP(L24,Proposito_programa!$C$2:$E$59,2,FALSE))," ",VLOOKUP(L24,Proposito_programa!$C$2:$E$59,2,FALSE)) -> Gestión pública local | N24: =IF(ISERROR(VLOOKUP(L24,Proposito_programa!$C$2:$E$59,3,FALSE))," ",VLOOKUP(L24,Proposito_programa!$C$2:$E$59,3,FALSE)) -> Propósito 5: Construir Bogotá - Región con gobierno abierto, transparente y ciudadanía consciente | O24: 133011605570000001741 | P24: 1 | Q24: 51968302 | R24: DIANA SOFIA MELO CASTRO | S24: Persona Natural | W24: 7440000 | Y24: 1 | Z24: 3720000 | AA24: 11160000 | AB24: 11160000 | AC24: 2021-02-01 | AD24: 2021-02-02 | AE24: 2021-06-15 | AF24: 90 | AG24: 1 | AH24: 30 | AO24: X | AQ24: 1
A25: 1 | B25: 12 | C25: 2021 | D25: FDLCH-CPS-012-2021 | E25: https://community.secop.gov.co/Public/Tendering/OpportunityDetail/Index?noticeUID=CO1.NTC.1715126&isFromPublicArea=True&isModal=true&asPopupView=true | F25: Contratos de prestación de servicios profesionales y de apoyo a la gestión | G25: Contratación directa | H25: Prestación de servicios profesionales y de apoyo a la gestión, o para la ejecución de trabajos artísticos que sólo puedan encomendarse a determinadas personas naturales; | I25: Prestar servicios profesionales para apoyar jurídicamente la ejecución de las acciones requeridas para la depuración de las actuaciones administrativas que cursan en la Alcaldía Local. | J25: Inversión | K25: Un Nuevo Contrato Social y Ambiental para la Bogotá del Siglo XXI | L25: 57 | M25: =IF(ISERROR(VLOOKUP(L25,Proposito_programa!$C$2:$E$59,2,FALSE))," ",VLOOKUP(L25,Proposito_programa!$C$2:$E$59,2,FALSE)) -> Gestión pública local | N25: =IF(ISERROR(VLOOKUP(L25,Proposito_programa!$C$2:$E$59,3,FALSE))," ",VLOOKUP(L25,Proposito_programa!$C$2:$E$59,3,FALSE)) -> Propósito 5: Construir Bogotá - Región con gobierno abierto, transparente y ciudadanía consciente | O25: 133011605570000001841 | P25: 1 | Q25: 1012402727 | R25: NATHALY TORRES TORRES | S25: Persona Natural | W25: 26100000 | Y25: 1 | Z25: 13050000 | AA25: 39150000 | AB25: 39150000 | AC25: 2021-01-29 | AD25: 2021-02-01 | AE25: 2021-10-31 | AF25: 180 | AG25: 1 | AH25: 30 | AO25: X | AQ25: 1
A26: 1 | B26: 13 | C26: 2021 | D26: FDLCH-CPS-013-2021 | E26: https://community.secop.gov.co/Public/Tendering/OpportunityDetail/Index?noticeUID=CO1.NTC.1715456&isFromPublicArea=True&isModal=true&asPopupView=true | F26: Contratos de prestación de servicios profesionales y de apoyo a la gestión | G26: Contratación directa | H26: Prestación de servicios profesionales y de apoyo a la gestión, o para la ejecución de trabajos artísticos que sólo puedan encomendarse a determinadas personas naturales; | I26: Prestar los servicios profesionales para apoyar el área Gestión del Desarrollo Local en las actividades contables requeridas por el Fondo de Desarrollo Local de Chapinero. | J26: Inversión | K26: Un Nuevo Contrato Social y Ambiental para la Bogotá del Siglo XXI | L26: 57 | M26: =IF(ISERROR(VLOOKUP(L26,Proposito_programa!$C$2:$E$59,2,FALSE))," ",VLOOKUP(L26,Proposito_programa!$C$2:$E$59,2,FALSE)) -> Gestión pública local | N26: =IF(ISERROR(VLOOKUP(L26,Proposito_programa!$C$2:$E$59,3,FALSE))," ",VLOOKUP(L26,Proposito_programa!$C$2:$E$59,3,FALSE)) -> Propósito 5: Construir Bogotá - Región con gobierno abierto, transparente y ciudadanía consciente | O26: 133011605570000001741 | P26: 1 | Q26: 7141790 | R26: LEONARDO OROZCO MARTINEZ MARTINEZ | S26: Persona Natural | W26: 18000000 | Y26: 1 | Z26: 9000000 | AA26: 27000000 | AB26: 27000000 | AC26: 2021-01-29 | AD26: 2021-02-01 | AE26: 2021-07-31 | AF26: 120 | AG26: 1 | AH26: 30 | AO26: X | AQ26: 1
A27: 1 | B27: 14 | C27: 2021 | D27: FDLCH-CPS-014-2021 | E27: https://community.secop.gov.co/Public/Tendering/OpportunityDetail/Index?noticeUID=CO1.NTC.1725754&isFromPublicArea=True&isModal=true&asPopupView=true | F27: Contratos de prestación de servicios profesionales y de apoyo a la gestión | G27: Contratación directa | H27: Prestación de servicios profesionales y de apoyo a la gestión, o para la ejecución de trabajos artísticos que sólo puedan encomendarse a determinadas personas naturales; | I27: Prestar servicios profesionales especializados para apoyar la gestión jurídica del Despacho de la Alcaldía Local de Chapinero y la de las dependencias que la conforman | J27: Inversión | K27: Un Nuevo Contrato Social y Ambiental para la Bogotá del Siglo XXI | L27: 57 | M27: =IF(ISERROR(VLOOKUP(L27,Proposito_programa!$C$2:$E$59,2,FALSE))," ",VLOOKUP(L27,Proposito_programa!$C$2:$E$59,2,FALSE)) -> Gestión pública local | N27: =IF(ISERROR(VLOOKUP(L27,Proposito_programa!$C$2:$E$59,3,FALSE))," ",VLOOKUP(L27,Proposito_programa!$C$2:$E$59,3,FALSE)) -> Propósito 5: Construir Bogotá - Región con gobierno abierto, transparente y ciudadanía consciente | O27: 133011605570000001741 | P27: 1 | Q27: 1085933782 | R27: KAREN DANIELA ROSER NARVAEZ | S27: Persona Natural | W27: 54560000 | Y27: 1 | Z27: 22733333 | AA27: 77293333 | AB27: 67745333 | AC27: 2021-02-02 | AD27: 2021-02-03 | AE27: 2022-01-22 | AF27: 240 | AG27: 1 | AH27: 30 | AO27: X | AQ27: 0.8764705877
A28: 1 | B28: 15 | C28: 2021 | D28: FDLCH-CPS-015-2021 | E28: https://community.secop.gov.co/Public/Tendering/OpportunityDetail/Index?noticeUID=CO1.NTC.1730011&isFromPublicArea=True&isModal=true&asPopupView=true | F28: Contratos de prestación de servicios profesionales y de apoyo a la gestión | G28: Contratación directa | H28: Prestación de servicios profesionales y de apoyo a la gestión, o para la ejecución de trabajos artísticos que sólo puedan encomendarse a determinadas personas naturales; | I28: Prestación de servicios personales de apoyo a la gestión necesarios para el apoyo en la ejecución de actividades administrativas y operativas adelantadas en la Junta Administradora Local de Chapinero. | J28: Inversión | K28: Un Nuevo Contrato Social y Ambiental para la Bogotá del Siglo XXI | L28: 57 | M28: =IF(ISERROR(VLOOKUP(L28,Proposito_programa!$C$2:$E$59,2,FALSE))," ",VLOOKUP(L28,Proposito_programa!$C$2:$E$59,2,FALSE)) -> Gestión pública local | N28: =IF(ISERROR(VLOOKUP(L28,Proposito_programa!$C$2:$E$59,3,FALSE))," ",VLOOKUP(L28,Proposito_programa!$C$2:$E$59,3,FALSE)) -> Propósito 5: Construir Bogotá - Región con gobierno abierto, transparente y ciudadanía consciente | O28: 133011605570000001741 | P28: 1 | Q28: 52523548 | R28: SANDRA MILENA GOMEZ SALAZAR | S28: Persona Natural | W28: 7440000 | AA28: 7440000 | AB28: 7274667 | AC28: 2021-02-03 | AD28: 2021-02-03 | AE28: 2021-05-02 | AF28: 90 | AH28: 0 | AO28: X | AQ28: 0.9777778226
A29: 1 | B29: 16 | C29: 2021 | D29: FDLCH-CPS-016-2021 | E29: https://community.secop.gov.co/Public/Tendering/OpportunityDetail/Index?noticeUID=CO1.NTC.1726935&isFromPublicArea=True&isModal=true&asPopupView=true | F29: Contratos de prestación de servicios profesionales y de apoyo a la gestión | G29: Contratación directa | H29: Prestación de servicios profesionales y de apoyo a la gestión, o para la ejecución de trabajos artísticos que sólo puedan encomendarse a determinadas personas naturales; | I29: Prestar servicios profesionales para apoyar en la gestión de los asuntos relacionados con espacio publico más seguro mediante actuaciones que garanticen la seguridad ciudadana, convivencia y prevención de conflictividades, violencias y delitos en la localidad de conformidad con el marco normativo vigente | J29: Inversión | K29: Un Nuevo Contrato Social y Ambiental para la Bogotá del Siglo XXI | L29: 45 | M29: =IF(ISERROR(VLOOKUP(L29,Proposito_programa!$C$2:$E$59,2,FALSE))," ",VLOOKUP(L29,Proposito_programa!$C$2:$E$59,2,FALSE)) -> Espacio público más seguro y construido colectivamente | N29: =IF(ISERROR(VLOOKUP(L29,Proposito_programa!$C$2:$E$59,3,FALSE))," ",VLOOKUP(L29,Proposito_programa!$C$2:$E$59,3,FALSE)) -> Propósito 3: Inspirar confianza y legitimidad para vivir sin miedo y ser epicentro de cultura ciudadana, paz y reconciliación | O29: 133011603450000001736 | P29: 1 | Q29: 79720862 | R29: IVAN GUILLERMO RAMIREZ REYES | S29: Persona Natural | W29: 27500000 | AA29: 27500000 | AB29: 27500000 | AC29: 2021-02-02 | AD29: 2021-02-03 | AE29: 2021-07-02 | AF29: 150 | AH29: 0 | AO29: X | AQ29: 1
A30: 1 | B30: 17 | C30: 2021 | D30: FDLCH-CPS-017-2021 | E30: https://community.secop.gov.co/Public/Tendering/OpportunityDetail/Index?noticeUID=CO1.NTC.1735194&isFromPublicArea=True&isModal=true&asPopupView=true | F30: Contratos de prestación de servicios profesionales y de apoyo a la gestión | G30: Contratación directa | H30: Prestación de servicios profesionales y de apoyo a la gestión, o para la ejecución de trabajos artísticos que sólo puedan encomendarse a determinadas personas naturales; | I30: Prestar servicios de apoyo a la gestión para desarrollar las actividades de radicación, gestión de correspondencia y de la documentación que expide, se allega y controla la Alcaldía Local de Chapinero. | J30: Inversión | K30: Un Nuevo Contrato Social y Ambiental para la Bogotá del Siglo XXI | L30: 57 | M30: =IF(ISERROR(VLOOKUP(L30,Proposito_programa!$C$2:$E$59,2,FALSE))," ",VLOOKUP(L30,Proposito_programa!$C$2:$E$59,2,FALSE)) -> Gestión pública local | N30: =IF(ISERROR(VLOOKUP(L30,Proposito_programa!$C$2:$E$59,3,FALSE))," ",VLOOKUP(L30,Proposito_programa!$C$2:$E$59,3,FALSE)) -> Propósito 5: Construir Bogotá - Región con gobierno abierto, transparente y ciudadanía consciente | O30: 133011605570000001741 | P30: 1 | Q30: 1031147236 | R30: DEISY YINETH FRANCO PENAGOS | S30: Persona Natural | W30: 14400000 | AA30: 14400000 | AB30: 14400000 | AC30: 2021-02-04 | AD30: 2021-02-05 | AE30: 2021-08-04 | AF30: 180 | AH30: 0 | AO30: X | AQ30: 1
A31: 1 | B31: 18 | C31: 2021 | D31: FDLCH-CPS-018-2021 | E31: https://community.secop.gov.co/Public/Tendering/OpportunityDetail/Index?noticeUID=CO1.NTC.1751644&isFromPublicArea=True&isModal=true&asPopupView=true | F31: Contratos de prestación de servicios profesionales y de apoyo a la gestión | G31: Contratación directa | H31: Prestación de servicios profesionales y de apoyo a la gestión, o para la ejecución de trabajos artísticos que sólo puedan encomendarse a determinadas personas naturales; | I31: Prestar los servicios personales necesarios para la conducción de los vehículos que conforman el parque automotor en propiedad o custodia del Fondo de Desarrollo Local de Chapinero, y el transporte de servidores públicos para la realización de las actividades misionales de la Alcaldía Local de Chapinero. | J31: Inversión | K31: Un Nuevo Contrato Social y Ambiental para la Bogotá del Siglo XXI | L31: 57 | M31: =IF(ISERROR(VLOOKUP(L31,Proposito_programa!$C$2:$E$59,2,FALSE))," ",VLOOKUP(L31,Proposito_programa!$C$2:$E$59,2,FALSE)) -> Gestión pública local | N31: =IF(ISERROR(VLOOKUP(L31,Proposito_programa!$C$2:$E$59,3,FALSE))," ",VLOOKUP(L31,Proposito_programa!$C$2:$E$59,3,FALSE)) -> Propósito 5: Construir Bogotá - Región con gobierno abierto, transparente y ciudadanía consciente | O31: 133011605570000001741 | P31: 1 | Q31: 80157713 | R31: FERNANDO MEDINA MONTERO | S31: Persona Natural | W31: 9600000 | Y31: 1 | Z31: 4800000 | AA31: 14400000 | AB31: 14400000 | AC31: 2021-02-06 | AD31: 2021-02-11 | AE31: 2021-08-10 | AF31: 120 | AG31: 1 | AH31: 30 | AO31: X | AQ31: 1
A32: 1 | B32: 19 | C32: 2021 | D32: FDLCH-CPS-019-2021 | E32: https://community.secop.gov.co/Public/Tendering/OpportunityDetail/Index?noticeUID=CO1.NTC.1734656&isFromPublicArea=True&isModal=true&asPopupView=true | F32: Contratos de prestación de servicios profesionales y de apoyo a la gestión | G32: Contratación directa | H32: Prestación de servicios profesionales y de apoyo a la gestión, o para la ejecución de trabajos artísticos que sólo puedan encomendarse a determinadas personas naturales; | I32: Prestar servicios de apoyo a la gestión para desarrollar las actividades de radicación, gestión de correspondencia y de la documentación que expide, se allega y controlan las Inspecciones de Policía de la Alcaldía Local de Chapinero. | J32: Inversión | K32: Un Nuevo Contrato Social y Ambiental para la Bogotá del Siglo XXI | L32: 57 | M32: =IF(ISERROR(VLOOKUP(L32,Proposito_programa!$C$2:$E$59,2,FALSE))," ",VLOOKUP(L32,Proposito_programa!$C$2:$E$59,2,FALSE)) -> Gestión pública local | N32: =IF(ISERROR(VLOOKUP(L32,Proposito_programa!$C$2:$E$59,3,FALSE))," ",VLOOKUP(L32,Proposito_programa!$C$2:$E$59,3,FALSE)) -> Propósito 5: Construir Bogotá - Región con gobierno abierto, transparente y ciudadanía consciente | O32: 133011605570000001741 | P32: 1 | Q32: 1063134906 | R32: VANESA ALEXANDRA JIMENEZ ARTEAGA | S32: Persona Natural | W32: 8800000 | Y32: 1 | Z32: 4400000 | AA32: 13200000 | AB32: 13200000 | AC32: 2021-02-04 | AD32: 2021-02-10 | AE32: 2021-08-09 | AF32: 120 | AG32: 1 | AH32: 30 | AO32: X | AQ32: 1
A33: 1 | B33: 20 | C33: 2021 | D33: FDLCH-CPS-020-2021 | E33: https://community.secop.gov.co/Public/Tendering/OpportunityDetail/Index?noticeUID=CO1.NTC.1738831&isFromPublicArea=True&isModal=true&asPopupView=true | F33: Contratos de prestación de servicios profesionales y de apoyo a la gestión | G33: Contratación directa | H33: Prestación de servicios profesionales y de apoyo a la gestión, o para la ejecución de trabajos artísticos que sólo puedan encomendarse a determinadas personas naturales; | I33: Prestar Servicios profesionales para la gestión, formulación, desarrollo y seguimiento del proyecto de inversión chapinero siembra esperanza | J33: Inversión | K33: Un Nuevo Contrato Social y Ambiental para la Bogotá del Siglo XXI | L33: 24 | M33: =IF(ISERROR(VLOOKUP(L33,Proposito_programa!$C$2:$E$59,2,FALSE))," ",VLOOKUP(L33,Proposito_programa!$C$2:$E$59,2,FALSE)) -> Bogotá región emprendedora e innovadora | N33: =IF(ISERROR(VLOOKUP(L33,Proposito_programa!$C$2:$E$59,3,FALSE))," ",VLOOKUP(L33,Proposito_programa!$C$2:$E$59,3,FALSE)) -> Propósito 1: Hacer un nuevo contrato social para incrementar la inclusión social, productiva y política | O33: 133011601240000001631 | P33: 1 | Q33: 1030542408 | R33: JOHN ELKIN FEO DUITAMA | S33: Persona Natural | W33: 24000000 | Y33: 1 | Z33: 12000000 | AA33: 36000000 | AB33: 32160000 | AC33: 2021-02-05 | AD33: 2021-02-10 | AE33: 2021-09-24 | AF33: 150 | AG33: 1 | AH33: 30 | AO33: X | AQ33: 0.8933333333
A34: 1 | B34: 21 | C34: 2021 | D34: FDLCH-CPS-021-2021 | E34: https://community.secop.gov.co/Public/Tendering/OpportunityDetail/Index?noticeUID=CO1.NTC.1751429&isFromPublicArea=True&isModal=true&asPopupView=true | F34: Contratos de prestación de servicios profesionales y de apoyo a la gestión | G34: Contratación directa | H34: Prestación de servicios profesionales y de apoyo a la gestión, o para la ejecución de trabajos artísticos que sólo puedan encomendarse a determinadas personas naturales; | I34: Prestar servicios profesionales para la gestión, formulación, desarrollo y seguimiento del proyecto de inversión proyecto chapinero sostenible y consciente. | J34: Inversión | K34: Un Nuevo Contrato Social y Ambiental para la Bogotá del Siglo XXI | L34: 38 | M34: =IF(ISERROR(VLOOKUP(L34,Proposito_programa!$C$2:$E$59,2,FALSE))," ",VLOOKUP(L34,Proposito_programa!$C$2:$E$59,2,FALSE)) -> Ecoeficiencia, reciclaje, manejo de residuos e inclusión de la población recicladora | N34: =IF(ISERROR(VLOOKUP(L34,Proposito_programa!$C$2:$E$59,3,FALSE))," ",VLOOKUP(L34,Proposito_programa!$C$2:$E$59,3,FALSE)) -> Propósito 2 : Cambiar Nuestros Hábitos de Vida para Reverdecer a Bogotá y Adaptarnos y Mitigar la Crisis Climática | O34: 133011602380000001728 | P34: 1 | Q34: 1019031184 | R34: RAYMOND ALEXANDER JIMENEZ ARTEAGA | S34: Persona Natural | W34: 24000000 | Y34: 1 | Z34: 12000000 | AA34: 36000000 | AB34: 36000000 | AC34: 2021-02-10 | AD34: 2021-02-11 | AE34: 2021-09-25 | AF34: 150 | AG34: 1 | AH34: 30 | AO34: X | AQ34: 1
A35: 1 | B35: 22 | C35: 2021 | D35: FDLCH-CPS-022-2021 | E35: https://community.secop.gov.co/Public/Tendering/OpportunityDetail/Index?noticeUID=CO1.NTC.1751112&isFromPublicArea=True&isModal=true&asPopupView=true | F35: Contratos de prestación de servicios profesionales y de apoyo a la gestión | G35: Contratación directa | H35: Prestación de servicios profesionales y de apoyo a la gestión, o para la ejecución de trabajos artísticos que sólo puedan encomendarse a determinadas personas naturales; | I35: Prestar servicios profesionales para coordinar, liderar y asesorar los planes y estrategias de comunicación interna y externa para la divulgación de los programas, proyectos y actividades de la Alcaldía Local | J35: Inversión | K35: Un Nuevo Contrato Social y Ambiental para la Bogotá del Siglo XXI | L35: 57 | M35: =IF(ISERROR(VLOOKUP(L35,Proposito_programa!$C$2:$E$59,2,FALSE))," ",VLOOKUP(L35,Proposito_programa!$C$2:$E$59,2,FALSE)) -> Gestión pública local | N35: =IF(ISERROR(VLOOKUP(L35,Proposito_programa!$C$2:$E$59,3,FALSE))," ",VLOOKUP(L35,Proposito_programa!$C$2:$E$59,3,FALSE)) -> Propósito 5: Construir Bogotá - Región con gobierno abierto, transparente y ciudadanía consciente | O35: 133011605570000001741 | P35: 1 | Q35: 1026283792 | R35: ESTEFANIA AYALA QUICENO | S35: Persona Natural | W35: 33000000 | X35: -27683333 | AA35: 5316667 | AB35: 5316667 | AC35: 2021-02-05 | AD35: 2021-02-10 | AE35: 2021-03-08 | AF35: 180 | AH35: 0 | AO35: X | AQ35: 1
A36: 1 | B36: 23 | C36: 2021 | D36: FDLCH-CPS-023-2021 | E36: https://community.secop.gov.co/Public/Tendering/OpportunityDetail/Index?noticeUID=CO1.NTC.1739072&isFromPublicArea=True&isModal=true&asPopupView=true | F36: Contratos de prestación de servicios profesionales y de apoyo a la gestión | G36: Contratación directa | H36: Prestación de servicios profesionales y de apoyo a la gestión, o para la ejecución de trabajos artísticos que sólo puedan encomendarse a determinadas personas naturales; | I36: Prestar servicios profesionales para apoyar el cubrimiento de las actividades, cronogramas y agenda de la Alcaldía local a nivel interno y externo, así́ como la generación de contenidos periodísticos | J36: Inversión | K36: Un Nuevo Contrato Social y Ambiental para la Bogotá del Siglo XXI | L36: 57 | M36: =IF(ISERROR(VLOOKUP(L36,Proposito_programa!$C$2:$E$59,2,FALSE))," ",VLOOKUP(L36,Proposito_programa!$C$2:$E$59,2,FALSE)) -> Gestión pública local | N36: =IF(ISERROR(VLOOKUP(L36,Proposito_programa!$C$2:$E$59,3,FALSE))," ",VLOOKUP(L36,Proposito_programa!$C$2:$E$59,3,FALSE)) -> Propósito 5: Construir Bogotá - Región con gobierno abierto, transparente y ciudadanía consciente | O36: 133011605570000001741 | P36: 1 | Q36: 1019110016 | R36: JUAN SEBASTIAN CASTRO VANEGAS | S36: Persona Natural | W36: 20000000 | Y36: 1 | Z36: 10000000 | AA36: 30000000 | AB36: 30000000 | AC36: 2021-02-10 | AD36: 2021-02-10 | AE36: 2021-09-24 | AF36: 150 | AG36: 1 | AH36: 30 | AO36: X | AQ36: 1
A37: 1 | B37: 24 | C37: 2021 | D37: FDLCH-CPS-024-2021 | E37: https://community.secop.gov.co/Public/Tendering/OpportunityDetail/Index?noticeUID=CO1.NTC.1752906&isFromPublicArea=True&isModal=true&asPopupView=true | F37: Contratos de prestación de servicios profesionales y de apoyo a la gestión | G37: Contratación directa | H37: Prestación de servicios profesionales y de apoyo a la gestión, o para la ejecución de trabajos artísticos que sólo puedan encomendarse a determinadas personas naturales; | I37: Prestar servicios de apoyo a las labores de entrega y recibo de las comunicaciones emitidas o recibidas por las Inspecciones de Policía de la Localidad. | J37: Inversión | K37: Un Nuevo Contrato Social y Ambiental para la Bogotá del Siglo XXI | L37: 57 | M37: =IF(ISERROR(VLOOKUP(L37,Proposito_programa!$C$2:$E$59,2,FALSE))," ",VLOOKUP(L37,Proposito_programa!$C$2:$E$59,2,FALSE)) -> Gestión pública local | N37: =IF(ISERROR(VLOOKUP(L37,Proposito_programa!$C$2:$E$59,3,FALSE))," ",VLOOKUP(L37,Proposito_programa!$C$2:$E$59,3,FALSE)) -> Propósito 5: Construir Bogotá - Región con gobierno abierto, transparente y ciudadanía consciente | O37: 133011605570000001741 | P37: 1 | Q37: 1019024025 | R37: EFRAIN ANDRES MONROY CEPEDA | S37: Persona Natural | W37: 11500000 | Y37: 1 | Z37: 5750000 | AA37: 17250000 | AB37: 17250000 | AC37: 2021-02-10 | AD37: 2021-02-11 | AE37: 2021-09-25 | AF37: 150 | AG37: 1 | AH37: 30 | AO37: X | AQ37: 1
A38: 1 | B38: 25 | C38: 2021 | D38: FDLCH-CPS-025-2021 | E38: https://community.secop.gov.co/Public/Tendering/OpportunityDetail/Index?noticeUID=CO1.NTC.1770277&isFromPublicArea=True&isModal=true&asPopupView=true | F38: Contratos de prestación de servicios profesionales y de apoyo a la gestión | G38: Contratación directa | H38: Prestación de servicios profesionales y de apoyo a la gestión, o para la ejecución de trabajos artísticos que sólo puedan encomendarse a determinadas personas naturales; | I38: Prestar servicios profesionales para apoyar técnicamente las distintas etapas de los procesos de competencia de las inspecciones de policía de la localidad de chapinero, según reparto | J38: Inversión | K38: Un Nuevo Contrato Social y Ambiental para la Bogotá del Siglo XXI | L38: 57 | M38: =IF(ISERROR(VLOOKUP(L38,Proposito_programa!$C$2:$E$59,2,FALSE))," ",VLOOKUP(L38,Proposito_programa!$C$2:$E$59,2,FALSE)) -> Gestión pública local | N38: =IF(ISERROR(VLOOKUP(L38,Proposito_programa!$C$2:$E$59,3,FALSE))," ",VLOOKUP(L38,Proposito_programa!$C$2:$E$59,3,FALSE)) -> Propósito 5: Construir Bogotá - Región con gobierno abierto, transparente y ciudadanía consciente | O38: 133011605570000001841 | P38: 1 | Q38: 80429650 | R38: EXCELINO ROMERO CASTAÑEDA | S38: Persona Natural | W38: 18400000 | Y38: 1 | Z38: 9200000 | AA38: 27600000 | AB38: 27600000 | AC38: 2021-02-17 | AD38: 2021-02-17 | AE38: 2021-08-16 | AF38: 120 | AG38: 1 | AH38: 30 | AO38: X | AQ38: 1
A39: 1 | B39: 26 | C39: 2021 | D39: FDLCH-CPS-026-2021 | E39: https://community.secop.gov.co/Public/Tendering/OpportunityDetail/Index?noticeUID=CO1.NTC.1757731&isFromPublicArea=True&isModal=true&asPopupView=true | F39: Contratos de prestación de servicios profesionales y de apoyo a la gestión | G39: Contratación directa | H39: Prestación de servicios profesionales y de apoyo a la gestión, o para la ejecución de trabajos artísticos que sólo puedan encomendarse a determinadas personas naturales; | I39: Prestar los servicios profesionales para la gestión, formulación, desarrollo, seguimiento y evaluación del proyecto de inversión CHAPINERO CONSTRUYE TEJIDO CULTURAL”. | J39: Inversión | K39: Un Nuevo Contrato Social y Ambiental para la Bogotá del Siglo XXI | L39: 24 | M39: =IF(ISERROR(VLOOKUP(L39,Proposito_programa!$C$2:$E$59,2,FALSE))," ",VLOOKUP(L39,Proposito_programa!$C$2:$E$59,2,FALSE)) -> Bogotá región emprendedora e innovadora | N39: =IF(ISERROR(VLOOKUP(L39,Proposito_programa!$C$2:$E$59,3,FALSE))," ",VLOOKUP(L39,Proposito_programa!$C$2:$E$59,3,FALSE)) -> Propósito 1: Hacer un nuevo contrato social para incrementar la inclusión social, productiva y política | O39: 133011601240000001853 | P39: 1 | Q39: 79728807 | R39: HOSMAN HERNAN ARIAS GUTIERREZ | S39: Persona Natural | W39: 26500000 | Y39: 1 | Z39: 13250000 | AA39: 39750000 | AB39: 39750000 | AC39: 2021-02-12 | AD39: 2021-02-12 | AE39: 2021-09-26 | AF39: 150 | AG39: 1 | AH39: 30 | AO39: X | AQ39: 1
A40: 1 | B40: 27 | C40: 2021 | D40: FDLCH-CPS-027-2021 | E40: https://community.secop.gov.co/Public/Tendering/OpportunityDetail/Index?noticeUID=CO1.NTC.1757416&isFromPublicArea=True&isModal=true&asPopupView=true | F40: Contratos de prestación de servicios profesionales y de apoyo a la gestión | G40: Contratación directa | H40: Prestación de servicios profesionales y de apoyo a la gestión, o para la ejecución de trabajos artísticos que sólo puedan encomendarse a determinadas personas naturales; | I40: Prestar servicios profesionales para el apoyo al área de gestión del desarrollo local de la Alcaldía Local de Chapinero en la formulación, gestión, ejecución y seguimiento de los contratos derivados del proyecto Chapinero Productivo y emprendedor, la Estrategia de Mitigación y Reactivación Económica, EMRE Local y la supervisión de contratos que le sean asignados. | J40: Inversión | K40: Un Nuevo Contrato Social y Ambiental para la Bogotá del Siglo XXI | L40: 6 | M40: =IF(ISERROR(VLOOKUP(L40,Proposito_programa!$C$2:$E$59,2,FALSE))," ",VLOOKUP(L40,Proposito_programa!$C$2:$E$59,2,FALSE)) -> Sistema Distrital de Cuidado | N40: =IF(ISERROR(VLOOKUP(L40,Proposito_programa!$C$2:$E$59,3,FALSE))," ",VLOOKUP(L40,Proposito_programa!$C$2:$E$59,3,FALSE)) -> Propósito 1: Hacer un nuevo contrato social para incrementar la inclusión social, productiva y política | O40: 133011601060000001671 | P40: 1 | Q40: 1032381420 | R40: JENNIFER TORRES TORRES | S40: Persona Natural | W40: 37200000 | Y40: 1 | Z40: 18600000 | AA40: 55800000 | AB40: 55800000 | AC40: 2021-02-11 | AD40: 2021-02-12 | AE40: 2021-11-11 | AF40: 180 | AG40: 1 | AH40: 30 | AO40: X | AQ40: 1
A41: 1 | B41: 28 | C41: 2021 | D41: FDLCH-CPS-028-2021 | E41: https://community.secop.gov.co/Public/Tendering/OpportunityDetail/Index?noticeUID=CO1.NTC.1760534&isFromPublicArea=True&isModal=true&asPopupView=true | F41: Contratos de prestación de servicios profesionales y de apoyo a la gestión | G41: Contratación directa | H41: Prestación de servicios profesionales y de apoyo a la gestión, o para la ejecución de trabajos artísticos que sólo puedan encomendarse a determinadas personas naturales; | I41: Prestar servicios profesionales para la gestión, formulación, desarrollo, seguimiento y evaluación del Proyecto “Chapinero territorio para vivir sin miedo | J41: Inversión | K41: Un Nuevo Contrato Social y Ambiental para la Bogotá del Siglo XXI | L41: 48 | M41: =IF(ISERROR(VLOOKUP(L41,Proposito_programa!$C$2:$E$59,2,FALSE))," ",VLOOKUP(L41,Proposito_programa!$C$2:$E$59,2,FALSE)) -> Plataforma institucional para la seguridad y justicia | N41: =IF(ISERROR(VLOOKUP(L41,Proposito_programa!$C$2:$E$59,3,FALSE))," ",VLOOKUP(L41,Proposito_programa!$C$2:$E$59,3,FALSE)) -> Propósito 3: Inspirar confianza y legitimidad para vivir sin miedo y ser epicentro de cultura ciudadana, paz y reconciliación | O41: 133011603480000001740 | P41: 1 | Q41: 52904967 | R41: ANGELA CRISTINA CARVAJAL TOVAR | S41: Persona Natural | W41: 34200000 | Y41: 1 | Z41: 17100000 | AA41: 51300000 | AB41: 37240000 | AC41: 2021-02-12 | AD41: 2021-02-15 | AE41: 2022-03-18 | AF41: 180 | AG41: 1 | AH41: 30 | AO41: X | AQ41: 0.7259259259
A42: 1 | B42: 29 | C42: 2021 | D42: FDLCH-CPS-029-2021 | E42: https://community.secop.gov.co/Public/Tendering/OpportunityDetail/Index?noticeUID=CO1.NTC.1760310&isFromPublicArea=True&isModal=true&asPopupView=true | F42: Contratos de prestación de servicios profesionales y de apoyo a la gestión | G42: Contratación directa | H42: Prestación de servicios profesionales y de apoyo a la gestión, o para la ejecución de trabajos artísticos que sólo puedan encomendarse a determinadas personas naturales; | I42: Prestar los servicios profesionales para la gestión, formulación, desarrollo, seguimiento y evaluación del proyecto de inversión “Chapinero espacio para hábitos saludables” en el componente “construcción y/o conservación de los parques vecinales y/o de bolsillo”. | J42: Inversión | K42: Un Nuevo Contrato Social y Ambiental para la Bogotá del Siglo XXI | L42: 33 | M42: =IF(ISERROR(VLOOKUP(L42,Proposito_programa!$C$2:$E$59,2,FALSE))," ",VLOOKUP(L42,Proposito_programa!$C$2:$E$59,2,FALSE)) -> Más árboles y más y mejor espacio público | N42: =IF(ISERROR(VLOOKUP(L42,Proposito_programa!$C$2:$E$59,3,FALSE))," ",VLOOKUP(L42,Proposito_programa!$C$2:$E$59,3,FALSE)) -> Propósito 2 : Cambiar Nuestros Hábitos de Vida para Reverdecer a Bogotá y Adaptarnos y Mitigar la Crisis Climática | O42: 133011602330000001723 | P42: 1 | Q42: 79268761 | R42: MAURICIO BOHORQUEZ ESCOBAR | S42: Persona Natural | W42: 33000000 | AA42: 33000000 | AB42: 33000000 | AC42: 2021-02-12 | AD42: 2021-02-12 | AE42: 2021-08-11 | AF42: 180 | AH42: 0 | AO42: X | AQ42: 1
A43: 1 | B43: 30 | C43: 2021 | D43: FDLCH-CPS030 | E43: https://community.secop.gov.co/Public/Tendering/OpportunityDetail/Index?noticeUID=CO1.NTC.1779387&isFromPublicArea=True&isModal=true&asPopupView=true | F43: Contratos de prestación de servicios profesionales y de apoyo a la gestión | G43: Contratación directa | H43: Prestación de servicios profesionales y de apoyo a la gestión, o para la ejecución de trabajos artísticos que sólo puedan encomendarse a determinadas personas naturales; | I43: Prestar servicios profesionales para la gestión, planeación, seguimiento, mitigación y respuesta a situaciones y escenarios de emergencia, en marco del fortalecimiento de la gestión local de los riesgos y la adaptación al cambio climático | J43: Inversión | K43: Un Nuevo Contrato Social y Ambiental para la Bogotá del Siglo XXI | L43: 57 | M43: =IF(ISERROR(VLOOKUP(L43,Proposito_programa!$C$2:$E$59,2,FALSE))," ",VLOOKUP(L43,Proposito_programa!$C$2:$E$59,2,FALSE)) -> Gestión pública local | N43: =IF(ISERROR(VLOOKUP(L43,Proposito_programa!$C$2:$E$59,3,FALSE))," ",VLOOKUP(L43,Proposito_programa!$C$2:$E$59,3,FALSE)) -> Propósito 5: Construir Bogotá - Región con gobierno abierto, transparente y ciudadanía consciente | O43: 133011605570000001741 | P43: 1 | Q43: 80220756 | R43: LUIS EDUARDO CRUZ SANCHEZ | S43: Persona Natural | W43: 17200000 | Y43: 1 | Z43: 8600000 | AA43: 25800000 | AB43: 23506667 | AC43: 2021-02-15 | AD43: 2021-03-04 | AE43: 2021-09-16 | AF43: 120 | AG43: 1 | AH43: 30 | AO43: X | AQ43: 0.911111124
A44: 1 | B44: 31 | C44: 2021 | D44: FDLCH-CPS-031-2021 | E44: https://community.secop.gov.co/Public/Tendering/OpportunityDetail/Index?noticeUID=CO1.NTC.1768237&isFromPublicArea=True&isModal=true&asPopupView=true | F44: Contratos de prestación de servicios profesionales y de apoyo a la gestión | G44: Contratación directa | H44: Prestación de servicios profesionales y de apoyo a la gestión, o para la ejecución de trabajos artísticos que sólo puedan encomendarse a determinadas personas naturales; | I44: Prestar los servicios de apoyo a la gestión administrativa y asistencial a las Inspecciones de Policía de la Localidad | J44: Inversión | K44: Un Nuevo Contrato Social y Ambiental para la Bogotá del Siglo XXI | L44: 57 | M44: =IF(ISERROR(VLOOKUP(L44,Proposito_programa!$C$2:$E$59,2,FALSE))," ",VLOOKUP(L44,Proposito_programa!$C$2:$E$59,2,FALSE)) -> Gestión pública local | N44: =IF(ISERROR(VLOOKUP(L44,Proposito_programa!$C$2:$E$59,3,FALSE))," ",VLOOKUP(L44,Proposito_programa!$C$2:$E$59,3,FALSE)) -> Propósito 5: Construir Bogotá - Región con gobierno abierto, transparente y ciudadanía consciente | O44: 133011605570000001841 | P44: 1 | Q44: 1032462820 | R44: JENNIFER VANNESA DIAZ NIÑO | S44: Persona Natural | W44: 8000000 | AA44: 8000000 | AB44: 8000000 | AC44: 2021-02-17 | AD44: 2021-02-18 | AE44: 2021-06-17 | AF44: 120 | AH44: 0 | AO44: X | AQ44: 1
A45: 1 | B45: 32 | C45: 2021 | D45: FDLCH-CPS-032-2021 | E45: https://community.secop.gov.co/Public/Tendering/OpportunityDetail/Index?noticeUID=CO1.NTC.1767955&isFromPublicArea=True&isModal=true&asPopupView=true | F45: Contratos de prestación de servicios profesionales y de apoyo a la gestión | G45: Contratación directa | H45: Prestación de servicios profesionales y de apoyo a la gestión, o para la ejecución de trabajos artísticos que sólo puedan encomendarse a determinadas personas naturales; | I45: Prestar los servicios profesionales de apoyo jurídico en la ejecución de las acciones requeridas para el trámite e impulso procesal de las actuaciones, contravenciones y/o querellas que cursen en las inspecciones de policía de la localidad | J45: Inversión | K45: Un Nuevo Contrato Social y Ambiental para la Bogotá del Siglo XXI | L45: 57 | M45: =IF(ISERROR(VLOOKUP(L45,Proposito_programa!$C$2:$E$59,2,FALSE))," ",VLOOKUP(L45,Proposito_programa!$C$2:$E$59,2,FALSE)) -> Gestión pública local | N45: =IF(ISERROR(VLOOKUP(L45,Proposito_programa!$C$2:$E$59,3,FALSE))," ",VLOOKUP(L45,Proposito_programa!$C$2:$E$59,3,FALSE)) -> Propósito 5: Construir Bogotá - Región con gobierno abierto, transparente y ciudadanía consciente | O45: 133011605570000001841 | P45: 1 | Q45: 3058039 | R45: VIDAL ROBERTO MENDEZ LASPRIELLA | S45: Persona Natural | W45: 17600000 | AA45: 17600000 | AB45: 17600000 | AC45: 2021-02-15 | AD45: 2021-02-16 | AE45: 2021-06-15 | AF45: 120 | AH45: 0 | AO45: X | AQ45: 1
A46: 1 | B46: 33 | C46: 2021 | D46: FDLCH-CPS-033-2021 | E46: https://community.secop.gov.co/Public/Tendering/OpportunityDetail/Index?noticeUID=CO1.NTC.1770181&isFromPublicArea=True&isModal=true&asPopupView=true | F46: Contratos de prestación de servicios profesionales y de apoyo a la gestión | G46: Contratación directa | H46: Prestación de servicios profesionales y de apoyo a la gestión, o para la ejecución de trabajos artísticos que sólo puedan encomendarse a determinadas personas naturales; | I46: Prestar servicios profesionales para apoyar técnicamente las distintas etapas de los procesos de competencia de las inspecciones de policía de la localidad de chapinero según reparto. | J46: Inversión | K46: Un Nuevo Contrato Social y Ambiental para la Bogotá del Siglo XXI | L46: 57 | M46: =IF(ISERROR(VLOOKUP(L46,Proposito_programa!$C$2:$E$59,2,FALSE))," ",VLOOKUP(L46,Proposito_programa!$C$2:$E$59,2,FALSE)) -> Gestión pública local | N46: =IF(ISERROR(VLOOKUP(L46,Proposito_programa!$C$2:$E$59,3,FALSE))," ",VLOOKUP(L46,Proposito_programa!$C$2:$E$59,3,FALSE)) -> Propósito 5: Construir Bogotá - Región con gobierno abierto, transparente y ciudadanía consciente | O46: 133011605570000001841 | P46: 1 | Q46: 80926066 | R46: OMAR DAVID LAVERDE CABRERA | S46: Persona Natural | W46: 18400000 | Y46: 1 | Z46: 9200000 | AA46: 27600000 | AB46: 27600000 | AC46: 2021-02-17 | AD46: 2021-02-18 | AE46: 2021-08-17 | AF46: 120 | AG46: 1 | AH46: 30 | AO46: X | AQ46: 1
A47: 1 | B47: 34 | C47: 2021 | D47: FDLCH-CPS-034-2021 | E47: https://community.secop.gov.co/Public/Tendering/OpportunityDetail/Index?noticeUID=CO1.NTC.1772099&isFromPublicArea=True&isModal=true&asPopupView=true | F47: Contratos de prestación de servicios profesionales y de apoyo a la gestión | G47: Contratación directa | H47: Prestación de servicios profesionales y de apoyo a la gestión, o para la ejecución de trabajos artísticos que sólo puedan encomendarse a determinadas personas naturales; | I47: Prestar los servicios profesionales de apoyo jurídico en la ejecución de las acciones requeridas para el trámite e impulso procesal de las actuaciones, contravenciones y/o querellas que cursen en las inspecciones de policía de la localidad | J47: Inversión | K47: Un Nuevo Contrato Social y Ambiental para la Bogotá del Siglo XXI | L47: 57 | M47: =IF(ISERROR(VLOOKUP(L47,Proposito_programa!$C$2:$E$59,2,FALSE))," ",VLOOKUP(L47,Proposito_programa!$C$2:$E$59,2,FALSE)) -> Gestión pública local | N47: =IF(ISERROR(VLOOKUP(L47,Proposito_programa!$C$2:$E$59,3,FALSE))," ",VLOOKUP(L47,Proposito_programa!$C$2:$E$59,3,FALSE)) -> Propósito 5: Construir Bogotá - Región con gobierno abierto, transparente y ciudadanía consciente | O47: 133011605570000001841 | P47: 1 | Q47: 53139176 | R47: DENNIS NATALIA BERNAL RAMIREZ | S47: Persona Natural | W47: 17600000 | Y47: 1 | Z47: 8800000 | AA47: 26400000 | AB47: 26400000 | AC47: 2021-02-17 | AD47: 2021-02-18 | AE47: 2021-08-17 | AF47: 120 | AG47: 1 | AH47: 30 | AO47: X | AQ47: 1
A48: 1 | B48: 35 | C48: 2021 | D48: FDLCH-CPS-035-2021 | E48: https://community.secop.gov.co/Public/Tendering/OpportunityDetail/Index?noticeUID=CO1.NTC.1775965&isFromPublicArea=True&isModal=true&asPopupView=true | F48: Contratos de prestación de servicios profesionales y de apoyo a la gestión | G48: Contratación directa | H48: Prestación de servicios profesionales y de apoyo a la gestión, o para la ejecución de trabajos artísticos que sólo puedan encomendarse a determinadas personas naturales; | I48: Prestar los servicios profesionales de apoyo jurídico en la ejecución de las acciones requeridas para el trámite e impulso procesal de las actuaciones, contravenciones y/o querellas que cursen en las inspecciones de policía de la localidad | J48: Inversión | K48: Un Nuevo Contrato Social y Ambiental para la Bogotá del Siglo XXI | L48: 57 | M48: =IF(ISERROR(VLOOKUP(L48,Proposito_programa!$C$2:$E$59,2,FALSE))," ",VLOOKUP(L48,Proposito_programa!$C$2:$E$59,2,FALSE)) -> Gestión pública local | N48: =IF(ISERROR(VLOOKUP(L48,Proposito_programa!$C$2:$E$59,3,FALSE))," ",VLOOKUP(L48,Proposito_programa!$C$2:$E$59,3,FALSE)) -> Propósito 5: Construir Bogotá - Región con gobierno abierto, transparente y ciudadanía consciente | O48: 133011605570000001841 | P48: 1 | Q48: 79297494 | R48: WILLIAM JAVIER RIVERA MENDOZA | S48: Persona Natural | W48: 17600000 | Y48: 1 | Z48: 8800000 | AA48: 26400000 | AB48: 26400000 | AC48: 2021-02-17 | AD48: 2021-02-18 | AE48: 2021-08-17 | AF48: 120 | AG48: 1 | AH48: 30 | AO48: X | AQ48: 1
A49: 1 | B49: 36 | C49: 2021 | D49: FDLCH-CPS-036-2021 | E49: https://community.secop.gov.co/Public/Tendering/OpportunityDetail/Index?noticeUID=CO1.NTC.1785144&isFromPublicArea=True&isModal=true&asPopupView=true | F49: Contratos de prestación de servicios profesionales y de apoyo a la gestión | G49: Contratación directa | H49: Prestación de servicios profesionales y de apoyo a la gestión, o para la ejecución de trabajos artísticos que sólo puedan encomendarse a determinadas personas naturales; | I49: Prestar los servicios de apoyo a la gestión en la implementación, atención, verificación, soporte y acompañamiento de los procesos y/o actuaciones administrativas que requieran el uso de aplicativos y/o herramientas vituales en la localidad de Chapinero | J49: Inversión | K49: Un Nuevo Contrato Social y Ambiental para la Bogotá del Siglo XXI | L49: 57 | M49: =IF(ISERROR(VLOOKUP(L49,Proposito_programa!$C$2:$E$59,2,FALSE))," ",VLOOKUP(L49,Proposito_programa!$C$2:$E$59,2,FALSE)) -> Gestión pública local | N49: =IF(ISERROR(VLOOKUP(L49,Proposito_programa!$C$2:$E$59,3,FALSE))," ",VLOOKUP(L49,Proposito_programa!$C$2:$E$59,3,FALSE)) -> Propósito 5: Construir Bogotá - Región con gobierno abierto, transparente y ciudadanía consciente | O49: 133011605570000001741 | P49: 1 | Q49: 79840425 | R49: JUAN ESTEBAN RODRIGUEZ GONZALEZ | S49: Persona Natural | W49: 8800000 | AA49: 8800000 | AB49: 586667 | AC49: 2021-02-19 | AD49: 2021-02-23 | AE49: 2021-07-10 | AF49: 120 | AG49: 1 | AH49: 30 | AO49: X | AQ49: 0.06666670455
A50: 1 | B50: 37 | C50: 2021 | D50: FDLCH-CPS-037-2021 | E50: https://community.secop.gov.co/Public/Tendering/OpportunityDetail/Index?noticeUID=CO1.NTC.1789152&isFromPublicArea=True&isModal=true&asPopupView=true | F50: Contratos de prestación de servicios profesionales y de apoyo a la gestión | G50: Contratación directa | H50: Prestación de servicios profesionales y de apoyo a la gestión, o para la ejecución de trabajos artísticos que sólo puedan encomendarse a determinadas personas naturales; | I50: Prestar servicios profesionales para apoyar técnicamente las distintas etapas de los procesos de competencia de las inspecciones de policía de la localidad de chapinero según reparto. | J50: Inversión | K50: Un Nuevo Contrato Social y Ambiental para la Bogotá del Siglo XXI | L50: 57 | M50: =IF(ISERROR(VLOOKUP(L50,Proposito_programa!$C$2:$E$59,2,FALSE))," ",VLOOKUP(L50,Proposito_programa!$C$2:$E$59,2,FALSE)) -> Gestión pública local | N50: =IF(ISERROR(VLOOKUP(L50,Proposito_programa!$C$2:$E$59,3,FALSE))," ",VLOOKUP(L50,Proposito_programa!$C$2:$E$59,3,FALSE)) -> Propósito 5: Construir Bogotá - Región con gobierno abierto, transparente y ciudadanía consciente | O50: 133011605570000001841 | P50: 1 | Q50: 72040774 | R50: JORGE ENRIQUE SOLIOS MARTINEZ | S50: Persona Natural | W50: 18400000 | Y50: 1 | Z50: 9200000 | AA50: 27600000 | AB50: 27600000 | AC50: 2021-02-23 | AD50: 2021-02-24 | AE50: 2021-08-23 | AF50: 120 | AG50: 1 | AH50: 30 | AO50: X | AQ50: 1
A51: 1 | B51: 38 | C51: 2021 | D51: FDLCH-CPS-038-2021 | E51: https://community.secop.gov.co/Public/Tendering/OpportunityDetail/Index?noticeUID=CO1.NTC.1792281&isFromPublicArea=True&isModal=true&asPopupView=true | F51: Contratos de prestación de servicios profesionales y de apoyo a la gestión | G51: Contratación directa | H51: Prestación de servicios profesionales y de apoyo a la gestión, o para la ejecución de trabajos artísticos que sólo puedan encomendarse a determinadas personas naturales; | I51: Prestar servicios personales para apoyar actividades operativas y administrativas de la gestión precontractual, contractual y postcontractual que adelante el fondo de desarrollo local de chapinero | J51: Inversión | K51: Un Nuevo Contrato Social y Ambiental para la Bogotá del Siglo XXI | L51: 57 | M51: =IF(ISERROR(VLOOKUP(L51,Proposito_programa!$C$2:$E$59,2,FALSE))," ",VLOOKUP(L51,Proposito_programa!$C$2:$E$59,2,FALSE)) -> Gestión pública local | N51: =IF(ISERROR(VLOOKUP(L51,Proposito_programa!$C$2:$E$59,3,FALSE))," ",VLOOKUP(L51,Proposito_programa!$C$2:$E$59,3,FALSE)) -> Propósito 5: Construir Bogotá - Región con gobierno abierto, transparente y ciudadanía consciente | O51: 133011605570000001741 | P51: 1 | Q51: 52733935 | R51: PAOLA YUREXY QUIROGA CUBILLOS | S51: Persona Natural | W51: 12500000 | Y51: 1 | Z51: 6250000 | AA51: 18750000 | AB51: 18750000 | AC51: 2021-02-23 | AD51: 2021-02-25 | AE51: 2021-10-09 | AF51: 150 | AG51: 1 | AH51: 30 | AO51: X | AQ51: 1
A52: 1 | B52: 39 | C52: 2021 | D52: FDLCH-CPS-039-2021 | E52: https://community.secop.gov.co/Public/Tendering/OpportunityDetail/Index?noticeUID=CO1.NTC.1797446&isFromPublicArea=True&isModal=true&asPopupView=true | F52: Contratos de prestación de servicios profesionales y de apoyo a la gestión | G52: Contratación directa | H52: Prestación de servicios profesionales y de apoyo a la gestión, o para la ejecución de trabajos artísticos que sólo puedan encomendarse a determinadas personas naturales; | I52: Prestar servicios de apoyo a la gestión en la ejecución de las actividades administrativas y documentales relacionadas con la gestión policiva en la Alcaldía Local de Chapinero | J52: Inversión | K52: Un Nuevo Contrato Social y Ambiental para la Bogotá del Siglo XXI | L52: 57 | M52: =IF(ISERROR(VLOOKUP(L52,Proposito_programa!$C$2:$E$59,2,FALSE))," ",VLOOKUP(L52,Proposito_programa!$C$2:$E$59,2,FALSE)) -> Gestión pública local | N52: =IF(ISERROR(VLOOKUP(L52,Proposito_programa!$C$2:$E$59,3,FALSE))," ",VLOOKUP(L52,Proposito_programa!$C$2:$E$59,3,FALSE)) -> Propósito 5: Construir Bogotá - Región con gobierno abierto, transparente y ciudadanía consciente | O52: 133011605570000001841 | P52: 1 | Q52: 79955421 | R52: PAULO CESAR RAMIREZ INFANTE | S52: Persona Natural | W52: 12000000 | AA52: 12000000 | AB52: 8400000 | AC52: 2021-02-25 | AD52: 2021-02-25 | AE52: 2021-10-24 | AF52: 120 | AH52: 0 | AO52: X | AQ52: 0.7
A53: 1 | B53: 40 | C53: 2021 | D53: FDLCH-CPS-040-2021 | E53: https://community.secop.gov.co/Public/Tendering/OpportunityDetail/Index?noticeUID=CO1.NTC.1797477&isFromPublicArea=True&isModal=true&asPopupView=true | F53: Contratos de prestación de servicios profesionales y de apoyo a la gestión | G53: Contratación directa | H53: Prestación de servicios profesionales y de apoyo a la gestión, o para la ejecución de trabajos artísticos que sólo puedan encomendarse a determinadas personas naturales; | I53: Prestar los servicios profesionales de apoyo a la gestión para la planeación, gestión, formulación, desarrollo, seguimiento y evaluación del proyecto de inversión "en chapinero todas contamos", en atención al fortalecimiento de la capacidad de gestión del Fondo de Desarrollo Local. | J53: Inversión | K53: Un Nuevo Contrato Social y Ambiental para la Bogotá del Siglo XXI | L53: 40 | M53: =IF(ISERROR(VLOOKUP(L53,Proposito_programa!$C$2:$E$59,2,FALSE))," ",VLOOKUP(L53,Proposito_programa!$C$2:$E$59,2,FALSE)) -> Más mujeres viven una vida libre de violencias, se sienten seguras y acceden con confianza al sistema de justicia | N53: =IF(ISERROR(VLOOKUP(L53,Proposito_programa!$C$2:$E$59,3,FALSE))," ",VLOOKUP(L53,Proposito_programa!$C$2:$E$59,3,FALSE)) -> Propósito 3: Inspirar confianza y legitimidad para vivir sin miedo y ser epicentro de cultura ciudadana, paz y reconciliación | O53: 133011603400000002035 | P53: 1 | Q53: 53108000 | R53: LEIDY VIVIANA ORTIZ GUEVARA | S53: Persona Natural | W53: 22500000 | Y53: 1 | Z53: 11250000 | AA53: 33750000 | AB53: 33750000 | AC53: 2021-02-25 | AD53: 2021-02-25 | AE53: 2021-10-09 | AF53: 150 | AG53: 1 | AH53: 30 | AO53: X | AQ53: 1
A54: 1 | B54: 41 | C54: 2021 | D54: FDLCH-CPS-041-2021 | E54: https://community.secop.gov.co/Public/Tendering/OpportunityDetail/Index?noticeUID=CO1.NTC.1797843&isFromPublicArea=True&isModal=true&asPopupView=true | F54: Contratos de prestación de servicios profesionales y de apoyo a la gestión | G54: Contratación directa | H54: Prestación de servicios profesionales y de apoyo a la gestión, o para la ejecución de trabajos artísticos que sólo puedan encomendarse a determinadas personas naturales; | I54: Prestar servicios de apoyo a la gestión en la ejecución de las actividades administrativas y documentales relacionadas con la gestión policiva en la Alcaldía Local de Chapinero. | J54: Inversión | K54: Un Nuevo Contrato Social y Ambiental para la Bogotá del Siglo XXI | L54: 57 | M54: =IF(ISERROR(VLOOKUP(L54,Proposito_programa!$C$2:$E$59,2,FALSE))," ",VLOOKUP(L54,Proposito_programa!$C$2:$E$59,2,FALSE)) -> Gestión pública local | N54: =IF(ISERROR(VLOOKUP(L54,Proposito_programa!$C$2:$E$59,3,FALSE))," ",VLOOKUP(L54,Proposito_programa!$C$2:$E$59,3,FALSE)) -> Propósito 5: Construir Bogotá - Región con gobierno abierto, transparente y ciudadanía consciente | O54: 133011605570000001841 | P54: 1 | Q54: 51765934 | R54: MARIA DIACLIN RODRIGUEZ PULECIO | S54: Persona Natural | W54: 12000000 | AA54: 12000000 | AB54: 12000000 | AC54: 2021-02-25 | AD54: 2021-02-25 | AE54: 2021-08-24 | AF54: 180 | AH54: 0 | AO54: X | AQ54: 1
A55: 1 | B55: 42 | C55: 2021 | D55: FDLCH-CPS-042-2021 | E55: https://community.secop.gov.co/Public/Tendering/OpportunityDetail/Index?noticeUID=CO1.NTC.1799812&isFromPublicArea=True&isModal=true&asPopupView=true | F55: Contratos de prestación de servicios profesionales y de apoyo a la gestión | G55: Contratación directa | H55: Prestación de servicios profesionales y de apoyo a la gestión, o para la ejecución de trabajos artísticos que sólo puedan encomendarse a determinadas personas naturales; | I55: Prestar servicios profesionales para apoyar la gestión jurídica en la ejecución de las acciones requedias para el trámite e impulso procesal de las actuaciones administrativas y de inspección, vigilancia y control de competencia de la Alcaldía Local de Chapinero en Cerros Orientales, zona de reserva forestal protectoa, polígonos de monitoreo, áreas de ocupación pública prioritaria, franja de adecuación y zonas de especial protección ambiental. | J55: Inversión | K55: Un Nuevo Contrato Social y Ambiental para la Bogotá del Siglo XXI | L55: 57 | M55: =IF(ISERROR(VLOOKUP(L55,Proposito_programa!$C$2:$E$59,2,FALSE))," ",VLOOKUP(L55,Proposito_programa!$C$2:$E$59,2,FALSE)) -> Gestión pública local | N55: =IF(ISERROR(VLOOKUP(L55,Proposito_programa!$C$2:$E$59,3,FALSE))," ",VLOOKUP(L55,Proposito_programa!$C$2:$E$59,3,FALSE)) -> Propósito 5: Construir Bogotá - Región con gobierno abierto, transparente y ciudadanía consciente | O55: 133011605570000001841 | P55: 1 | Q55: 1049605314 | R55: SARA CAROLINA OLIVEROS ACOSTA | S55: Persona Natural | W55: 25000000 | AA55: 25000000 | AB55: 25000000 | AC55: 2021-02-25 | AD55: 2021-02-25 | AE55: 2021-07-24 | AF55: 150 | AH55: 0 | AO55: X | AQ55: 1
A56: 1 | B56: 43 | C56: 2021 | D56: FDLCH-CPS-043-2021 | E56: https://community.secop.gov.co/Public/Tendering/OpportunityDetail/Index?noticeUID=CO1.NTC.1797852&isFromPublicArea=True&isModal=true&asPopupView=true | F56: Contratos de prestación de servicios profesionales y de apoyo a la gestión | G56: Contratación directa | H56: Prestación de servicios profesionales y de apoyo a la gestión, o para la ejecución de trabajos artísticos que sólo puedan encomendarse a determinadas personas naturales; | I56: Prestar los sevicios profesionales para la gestión, formulación, desarrollo, seguimiento y evaluación de inversión chapinero modelo de movilidad inteligente y apoyo a la supervisión de contratos que le sean asignados. | J56: Inversión | K56: Un Nuevo Contrato Social y Ambiental para la Bogotá del Siglo XXI | L56: 49 | M56: =IF(ISERROR(VLOOKUP(L56,Proposito_programa!$C$2:$E$59,2,FALSE))," ",VLOOKUP(L56,Proposito_programa!$C$2:$E$59,2,FALSE)) -> Movilidad segura, sostenible y accesible | N56: =IF(ISERROR(VLOOKUP(L56,Proposito_programa!$C$2:$E$59,3,FALSE))," ",VLOOKUP(L56,Proposito_programa!$C$2:$E$59,3,FALSE)) -> Propósito 4: Hacer de Bogotá Región un modelo de movilidad multimodal, incluyente y sostenible | O56: 133011604490000001734 | P56: 1 | Q56: 1073535479 | R56: JAIME HERNANDO PRIETO ALVAREZ | S56: Persona Natural | W56: 52000000 | Y56: 2 | Z56: 18416667 | AA56: 70416667 | AB56: 63050000 | AC56: 2021-02-25 | AD56: 2021-02-25 | AE56: 2022-01-18 | AF56: 240 | AG56: 2 | AH56: 60 | AN56: X | AQ56: 0.8953846111
A57: 1 | B57: 44 | C57: 2021 | D57: FDLCH-CPS-044-2021 | E57: https://community.secop.gov.co/Public/Tendering/OpportunityDetail/Index?noticeUID=CO1.NTC.1799604&isFromPublicArea=True&isModal=true&asPopupView=true | F57: Contratos de prestación de servicios profesionales y de apoyo a la gestión | G57: Contratación directa | H57: Prestación de servicios profesionales y de apoyo a la gestión, o para la ejecución de trabajos artísticos que sólo puedan encomendarse a determinadas personas naturales; | I57: Prestar servicios profesionales de apoyo jurídico en la ejecución de las acciones requeridad para el trámite e impulso procesal de las actuaciones administrativas y de cobro persuasivo de competencia de la Alcaldía Local de Chapinero. | J57: Inversión | K57: Un Nuevo Contrato Social y Ambiental para la Bogotá del Siglo XXI | L57: 57 | M57: =IF(ISERROR(VLOOKUP(L57,Proposito_programa!$C$2:$E$59,2,FALSE))," ",VLOOKUP(L57,Proposito_programa!$C$2:$E$59,2,FALSE)) -> Gestión pública local | N57: =IF(ISERROR(VLOOKUP(L57,Proposito_programa!$C$2:$E$59,3,FALSE))," ",VLOOKUP(L57,Proposito_programa!$C$2:$E$59,3,FALSE)) -> Propósito 5: Construir Bogotá - Región con gobierno abierto, transparente y ciudadanía consciente | O57: 133011605570000001841 | P57: 1 | Q57: 1010190690 | R57: ADRIANA ANDREA ARCHILA MOSCOSO | S57: Persona Natural | W57: 13083000 | Y57: 1 | Z57: 6541500 | AA57: 19624500 | AB57: 19624500 | AC57: 2021-02-25 | AD57: 2021-02-25 | AE57: 2021-07-09 | AF57: 90 | AG57: 1 | AH57: 30 | AO57: X | AQ57: 1
A58: 1 | B58: 45 | C58: 2021 | D58: FDLCH-CPS-045-2021 | E58: https://community.secop.gov.co/Public/Tendering/OpportunityDetail/Index?noticeUID=CO1.NTC.1805230&isFromPublicArea=True&isModal=true&asPopupView=true | F58: Contratos de prestación de servicios profesionales y de apoyo a la gestión | G58: Contratación directa | H58: Prestación de servicios profesionales y de apoyo a la gestión, o para la ejecución de trabajos artísticos que sólo puedan encomendarse a determinadas personas naturales; | I58: Prestar servicios de apoyo a la gestión en la ejecución de las actividades administrativas y documentales relacionadas con la gestión policiva en la Alcaldía Local de Chapinero. | J58: Inversión | K58: Un Nuevo Contrato Social y Ambiental para la Bogotá del Siglo XXI | L58: 57 | M58: =IF(ISERROR(VLOOKUP(L58,Proposito_programa!$C$2:$E$59,2,FALSE))," ",VLOOKUP(L58,Proposito_programa!$C$2:$E$59,2,FALSE)) -> Gestión pública local | N58: =IF(ISERROR(VLOOKUP(L58,Proposito_programa!$C$2:$E$59,3,FALSE))," ",VLOOKUP(L58,Proposito_programa!$C$2:$E$59,3,FALSE)) -> Propósito 5: Construir Bogotá - Región con gobierno abierto, transparente y ciudadanía consciente | O58: 133011605570000001841 | P58: 1 | Q58: 52253361 | R58: OLGA LUCIA OBANDO CHACA | S58: Persona Natural | W58: 12000000 | Y58: 1 | Z58: 6000000 | AA58: 18000000 | AB58: 18000000 | AC58: 2021-02-24 | AD58: 2021-03-01 | AE58: 2021-11-30 | AF58: 180 | AG58: 1 | AH58: 30 | AO58: X | AQ58: 1
A59: 1 | B59: 46 | C59: 2021 | D59: FDLCH-CPS-046-2021 | E59: https://community.secop.gov.co/Public/Tendering/OpportunityDetail/Index?noticeUID=CO1.NTC.1800902&isFromPublicArea=True&isModal=true&asPopupView=true | F59: Contratos de prestación de servicios profesionales y de apoyo a la gestión | G59: Contratación directa | H59: Prestación de servicios profesionales y de apoyo a la gestión, o para la ejecución de trabajos artísticos que sólo puedan encomendarse a determinadas personas naturales; | I59: Apoyar al Alcalde Local en la promoción, acompañamiento, coordinación y atención de las instancias de coordinación interinstitucionales y las instancias de participación locales, así como los procesos comunitarios en la localidad | J59: Inversión | K59: Un Nuevo Contrato Social y Ambiental para la Bogotá del Siglo XXI | L59: 57 | M59: =IF(ISERROR(VLOOKUP(L59,Proposito_programa!$C$2:$E$59,2,FALSE))," ",VLOOKUP(L59,Proposito_programa!$C$2:$E$59,2,FALSE)) -> Gestión pública local | N59: =IF(ISERROR(VLOOKUP(L59,Proposito_programa!$C$2:$E$59,3,FALSE))," ",VLOOKUP(L59,Proposito_programa!$C$2:$E$59,3,FALSE)) -> Propósito 5: Construir Bogotá - Región con gobierno abierto, transparente y ciudadanía consciente | O59: 133011605570000001741 | P59: 1 | Q59: 1026276743 | R59: LAURA MALAGIGI GOMEZ | S59: Persona Natural | W59: 16000000 | Y59: 1 | Z59: 8000000 | AA59: 24000000 | AB59: 24000000 | AC59: 2021-02-25 | AD59: 2021-02-26 | AE59: 2021-08-25 | AF59: 120 | AG59: 1 | AH59: 30 | AO59: X | AQ59: 1
A60: 1 | B60: 47 | C60: 2021 | D60: FDLCH-CPS-047-2021 | E60: https://community.secop.gov.co/Public/Tendering/OpportunityDetail/Index?noticeUID=CO1.NTC.1797824&isFromPublicArea=True&isModal=true&asPopupView=true | F60: Contratos de prestación de servicios profesionales y de apoyo a la gestión | G60: Contratación directa | H60: Prestación de servicios profesionales y de apoyo a la gestión, o para la ejecución de trabajos artísticos que sólo puedan encomendarse a determinadas personas naturales; | I60: Prestación de servicios profesionales para la gestión, formulación, desarrollo, seguimiento y evaluación del proyecto de inversión local “Jóvenes comprometidos por Chapinero”, así como el apoyo a la supervisión de los contrataos que le sean asignados por el Alcalde Local | J60: Inversión | K60: Un Nuevo Contrato Social y Ambiental para la Bogotá del Siglo XXI | L60: 17 | M60: =IF(ISERROR(VLOOKUP(L60,Proposito_programa!$C$2:$E$59,2,FALSE))," ",VLOOKUP(L60,Proposito_programa!$C$2:$E$59,2,FALSE)) -> Jóvenes con capacidades: Proyecto de vida para la ciudadanía, la innovación y el trabajo del siglo XXI | N60: =IF(ISERROR(VLOOKUP(L60,Proposito_programa!$C$2:$E$59,3,FALSE))," ",VLOOKUP(L60,Proposito_programa!$C$2:$E$59,3,FALSE)) -> Propósito 1: Hacer un nuevo contrato social para incrementar la inclusión social, productiva y política | O60: 133011601170000001695 | P60: 1 | Q60: 1090489409 | R60: CARLOS ARTURO BARBOSA PEREZ | S60: Persona Natural | W60: 22000000 | Y60: 1 | Z60: 11000000 | AA60: 33000000 | AB60: 33000000 | AC60: 2021-02-24 | AD60: 2021-02-25 | AE60: 2021-10-09 | AF60: 150 | AG60: 1 | AH60: 30 | AO60: X | AQ60: 1
A61: 1 | B61: 48 | C61: 2021 | D61: FDLCH-CPS-048-2021 | E61: https://community.secop.gov.co/Public/Tendering/OpportunityDetail/Index?noticeUID=CO1.NTC.1799412&isFromPublicArea=True&isModal=true&asPopupView=true | F61: Contratos de prestación de servicios profesionales y de apoyo a la gestión | G61: Contratación directa | H61: Prestación de servicios profesionales y de apoyo a la gestión, o para la ejecución de trabajos artísticos que sólo puedan encomendarse a determinadas personas naturales; | I61: Prestar los servicios profesionales de apoyo a la gestión para la formulación, desarrollo y seguimiento de las actividades derivadas del proyecto de inversión chapinero modelo de movilidad inteligente | J61: Inversión | K61: Un Nuevo Contrato Social y Ambiental para la Bogotá del Siglo XXI | L61: 49 | M61: =IF(ISERROR(VLOOKUP(L61,Proposito_programa!$C$2:$E$59,2,FALSE))," ",VLOOKUP(L61,Proposito_programa!$C$2:$E$59,2,FALSE)) -> Movilidad segura, sostenible y accesible | N61: =IF(ISERROR(VLOOKUP(L61,Proposito_programa!$C$2:$E$59,3,FALSE))," ",VLOOKUP(L61,Proposito_programa!$C$2:$E$59,3,FALSE)) -> Propósito 4: Hacer de Bogotá Región un modelo de movilidad multimodal, incluyente y sostenible | O61: 133011604490000001734 | P61: 1 | Q61: 1015470441 | R61: RICARDO ANDRES SANCHEZ VARGAS | S61: Persona Natural | W61: 21805000 | Y61: 1 | Z61: 10902500 | AA61: 32707500 | AB61: 32707500 | AC61: 2021-02-25 | AD61: 2021-02-26 | AE61: 2021-10-10 | AF61: 150 | AG61: 1 | AH61: 30 | AO61: X | AQ61: 1
A62: 1 | B62: 49 | C62: 2021 | D62: FDLCH-CPS-049-2021 | E62: https://community.secop.gov.co/Public/Tendering/OpportunityDetail/Index?noticeUID=CO1.NTC.1809314&isFromPublicArea=True&isModal=true&asPopupView=true | F62: Contratos de prestación de servicios profesionales y de apoyo a la gestión | G62: Contratación directa | H62: Prestación de servicios profesionales y de apoyo a la gestión, o para la ejecución de trabajos artísticos que sólo puedan encomendarse a determinadas personas naturales; | I62: Prestar los servicios profesionales para apoyar el área de Gestión del Desarrollo Local de la Alcaldía Local de Chapinero, en la formulación, gestión, ejecución y apoyo a la supervisión de los proyectos relacionados con la prevención, atención de la violencia intrafamiliar y sexual y la eliminación de las violencias basadas en género | J62: Inversión | K62: Un Nuevo Contrato Social y Ambiental para la Bogotá del Siglo XXI | L62: 6 | M62: =IF(ISERROR(VLOOKUP(L62,Proposito_programa!$C$2:$E$59,2,FALSE))," ",VLOOKUP(L62,Proposito_programa!$C$2:$E$59,2,FALSE)) -> Sistema Distrital de Cuidado | N62: =IF(ISERROR(VLOOKUP(L62,Proposito_programa!$C$2:$E$59,3,FALSE))," ",VLOOKUP(L62,Proposito_programa!$C$2:$E$59,3,FALSE)) -> Propósito 1: Hacer un nuevo contrato social para incrementar la inclusión social, productiva y política | O62: 133011601060000001710 | P62: 1 | Q62: 52515541 | R62: BELLA ELOISA KAROLINA MORENO BRIONES | S62: Persona Natural | W62: 33000000 | X62: -183334 | AA62: 32816666 | AB62: 32816666 | AC62: 2021-02-25 | AD62: 2021-03-02 | AE62: 2021-09-01 | AF62: 180 | AH62: 0 | AO62: X | AQ62: 1
A63: 1 | B63: 50 | C63: 2021 | D63: FDLCH-CPS-050-2021 | E63: https://community.secop.gov.co/Public/Tendering/OpportunityDetail/Index?noticeUID=CO1.NTC.1812054&isFromPublicArea=True&isModal=true&asPopupView=true | F63: Contratos de prestación de servicios profesionales y de apoyo a la gestión | G63: Contratación directa | H63: Prestación de servicios profesionales y de apoyo a la gestión, o para la ejecución de trabajos artísticos que sólo puedan encomendarse a determinadas personas naturales; | I63: Prestar los servicios profesionales de apoyo a la gestión para la formulación, desarrollo y seguimiento de las actividades derivadas del proyecto de inversión chapinero modelo de movilidad inteligente | J63: Inversión | K63: Un Nuevo Contrato Social y Ambiental para la Bogotá del Siglo XXI | L63: 49 | M63: =IF(ISERROR(VLOOKUP(L63,Proposito_programa!$C$2:$E$59,2,FALSE))," ",VLOOKUP(L63,Proposito_programa!$C$2:$E$59,2,FALSE)) -> Movilidad segura, sostenible y accesible | N63: =IF(ISERROR(VLOOKUP(L63,Proposito_programa!$C$2:$E$59,3,FALSE))," ",VLOOKUP(L63,Proposito_programa!$C$2:$E$59,3,FALSE)) -> Propósito 4: Hacer de Bogotá Región un modelo de movilidad multimodal, incluyente y sostenible | O63: 133011604490000001734 | P63: 1 | Q63: 1033722125 | R63: MAIVEL DANIELA VELASQUEZ RICO | S63: Persona Natural | W63: 21805000 | Y63: 1 | Z63: 10902500 | AA63: 32707500 | AB63: 30236267 | AC63: 2021-03-01 | AD63: 2021-03-03 | AE63: 2021-10-17 | AF63: 150 | AG63: 1 | AH63: 30 | AO63: X | AQ63: 0.9244444546
A64: 1 | B64: 51 | C64: 2021 | D64: FDLCH-CPS-051-2021 | E64: https://community.secop.gov.co/Public/Tendering/OpportunityDetail/Index?noticeUID=CO1.NTC.1799698&isFromPublicArea=True&isModal=true&asPopupView=true | F64: Contratos de prestación de servicios profesionales y de apoyo a la gestión | G64: Contratación directa | H64: Prestación de servicios profesionales y de apoyo a la gestión, o para la ejecución de trabajos artísticos que sólo puedan encomendarse a determinadas personas naturales; | I64: Prestar los servicios profesionales de apoyo a la gestión para la formulación, desarrollo y seguimiento de las actividades derivadas del proyecto de inversión chapinero modelo de movilidad inteligente | J64: Inversión | K64: Un Nuevo Contrato Social y Ambiental para la Bogotá del Siglo XXI | L64: 49 | M64: =IF(ISERROR(VLOOKUP(L64,Proposito_programa!$C$2:$E$59,2,FALSE))," ",VLOOKUP(L64,Proposito_programa!$C$2:$E$59,2,FALSE)) -> Movilidad segura, sostenible y accesible | N64: =IF(ISERROR(VLOOKUP(L64,Proposito_programa!$C$2:$E$59,3,FALSE))," ",VLOOKUP(L64,Proposito_programa!$C$2:$E$59,3,FALSE)) -> Propósito 4: Hacer de Bogotá Región un modelo de movilidad multimodal, incluyente y sostenible | O64: 133011604490000001734 | P64: 1 | Q64: 1070011854 | R64: SANDRA PAOLA SALAMANCA RIAÑO | S64: Persona Natural | W64: 21805000 | Y64: 1 | Z64: 10902500 | AA64: 32707500 | AB64: 32707500 | AC64: 2021-02-25 | AD64: 2021-03-01 | AE64: 2021-10-15 | AF64: 150 | AG64: 1 | AH64: 30 | AO64: X | AQ64: 1
A65: 1 | B65: 52 | C65: 2021 | D65: FDLCH-CPS-052-2021 | E65: https://community.secop.gov.co/Public/Tendering/OpportunityDetail/Index?noticeUID=CO1.NTC.1800575&isFromPublicArea=True&isModal=true&asPopupView=true | F65: Contratos de prestación de servicios profesionales y de apoyo a la gestión | G65: Contratación directa | H65: Prestación de servicios profesionales y de apoyo a la gestión, o para la ejecución de trabajos artísticos que sólo puedan encomendarse a determinadas personas naturales; | I65: Apoyar jurídicamente la ejecución de las acciones requeridas para la depuración de las actuaciones administrativas que cursan en la Alcaldía Local | J65: Inversión | K65: Un Nuevo Contrato Social y Ambiental para la Bogotá del Siglo XXI | L65: 57 | M65: =IF(ISERROR(VLOOKUP(L65,Proposito_programa!$C$2:$E$59,2,FALSE))," ",VLOOKUP(L65,Proposito_programa!$C$2:$E$59,2,FALSE)) -> Gestión pública local | N65: =IF(ISERROR(VLOOKUP(L65,Proposito_programa!$C$2:$E$59,3,FALSE))," ",VLOOKUP(L65,Proposito_programa!$C$2:$E$59,3,FALSE)) -> Propósito 5: Construir Bogotá - Región con gobierno abierto, transparente y ciudadanía consciente | O65: 133011605570000001841 | P65: 1 | Q65: 1022327851 | R65: JUAN CAMILO RAMIREZ PINTO | S65: Persona Natural | W65: 26400000 | Y65: 1 | Z65: 13200000 | AA65: 39600000 | AB65: 35200000 | AC65: 2021-02-26 | AD65: 2021-03-01 | AE65: 2021-11-30 | AF65: 180 | AG65: 1 | AH65: 30 | AO65: X | AQ65: 0.8888888889
A66: 1 | B66: 53 | C66: 2021 | D66: FDLCH-CPS-053-2021 | E66: https://community.secop.gov.co/Public/Tendering/OpportunityDetail/Index?noticeUID=CO1.NTC.1805518&isFromPublicArea=True&isModal=true&asPopupView=true | F66: Contratos de prestación de servicios profesionales y de apoyo a la gestión | G66: Contratación directa | H66: Prestación de servicios profesionales y de apoyo a la gestión, o para la ejecución de trabajos artísticos que sólo puedan encomendarse a determinadas personas naturales; | I66: Prestar los servicios profesionales para apoyar el área de Gestión del Desarrollo local de la Alcaldía Local de Chapinero, en la formulación, gestión, ejecución y apoyo a la supervisión de los proyectos relacionados con los temas de salud, en cumplimiento de las metas y objetivos del Plan de Desarrollo Local | J66: Inversión | K66: Un Nuevo Contrato Social y Ambiental para la Bogotá del Siglo XXI | L66: 6 | M66: =IF(ISERROR(VLOOKUP(L66,Proposito_programa!$C$2:$E$59,2,FALSE))," ",VLOOKUP(L66,Proposito_programa!$C$2:$E$59,2,FALSE)) -> Sistema Distrital de Cuidado | N66: =IF(ISERROR(VLOOKUP(L66,Proposito_programa!$C$2:$E$59,3,FALSE))," ",VLOOKUP(L66,Proposito_programa!$C$2:$E$59,3,FALSE)) -> Propósito 1: Hacer un nuevo contrato social para incrementar la inclusión social, productiva y política | O66: 133011601060000002024 | P66: 1 | Q66: 53037864 | R66: DIANA CAROLINA MORENO RINCON | S66: Persona Natural | W66: 30000000 | AA66: 30000000 | AB66: 30000000 | AC66: 2021-03-01 | AD66: 2021-03-01 | AE66: 2021-08-31 | AF66: 180 | AH66: 0 | AO66: X | AQ66: 1
A67: 1 | B67: 54 | C67: 2021 | D67: FDLCH-CPS-054-2021 | E67: https://community.secop.gov.co/Public/Tendering/OpportunityDetail/Index?noticeUID=CO1.NTC.1805379&isFromPublicArea=True&isModal=true&asPopupView=true | F67: Contratos de prestación de servicios profesionales y de apoyo a la gestión | G67: Contratación directa | H67: Prestación de servicios profesionales y de apoyo a la gestión, o para la ejecución de trabajos artísticos que sólo puedan encomendarse a determinadas personas naturales; | I67: Prestar servicios profesionales para apoyar al área de Gestión del Desarrollo Local de la Alcaldía Local de Chapinero, en la gestión, formulación, desarrollo, seguimiento y evaluación del proyecto de inversión “Chapinero es Primera Infancia” del programa Educación inicial: Bases Sólidas para la vida. | J67: Inversión | K67: Un Nuevo Contrato Social y Ambiental para la Bogotá del Siglo XXI | L67: 12 | M67: =IF(ISERROR(VLOOKUP(L67,Proposito_programa!$C$2:$E$59,2,FALSE))," ",VLOOKUP(L67,Proposito_programa!$C$2:$E$59,2,FALSE)) -> Educación inicial: Bases sólidas para la vida. | N67: =IF(ISERROR(VLOOKUP(L67,Proposito_programa!$C$2:$E$59,3,FALSE))," ",VLOOKUP(L67,Proposito_programa!$C$2:$E$59,3,FALSE)) -> Propósito 1: Hacer un nuevo contrato social para incrementar la inclusión social, productiva y política | O67: 133011601120000001830 | P67: 1 | Q67: 52312234 | R67: CLAUDIA MARCELA LOPEZ SERRATO | S67: Persona Natural | W67: 33000000 | AA67: 33000000 | AB67: 33000000 | AC67: 2021-03-01 | AD67: 2021-03-01 | AE67: 2021-08-31 | AF67: 180 | AH67: 0 | AO67: X | AQ67: 1
A68: 1 | B68: 55 | C68: 2021 | D68: FDLCH-CPS-055-2021 | E68: https://community.secop.gov.co/Public/Tendering/OpportunityDetail/Index?noticeUID=CO1.NTC.1822001&isFromPublicArea=True&isModal=true&asPopupView=true | F68: Contratos de prestación de servicios profesionales y de apoyo a la gestión | G68: Contratación directa | H68: Prestación de servicios profesionales y de apoyo a la gestión, o para la ejecución de trabajos artísticos que sólo puedan encomendarse a determinadas personas naturales; | I68: Prestar srvicios profesionales para apoyar a los responsable se integrantes de los procesos en la implementación de herramientas de gestión, siguiendo los lineamientos metodológios establecidos por la oficina asesora de planeación de la Secretaria Distrital de Gobierno. | J68: Inversión | K68: Un Nuevo Contrato Social y Ambiental para la Bogotá del Siglo XXI | L68: 57 | M68: =IF(ISERROR(VLOOKUP(L68,Proposito_programa!$C$2:$E$59,2,FALSE))," ",VLOOKUP(L68,Proposito_programa!$C$2:$E$59,2,FALSE)) -> Gestión pública local | N68: =IF(ISERROR(VLOOKUP(L68,Proposito_programa!$C$2:$E$59,3,FALSE))," ",VLOOKUP(L68,Proposito_programa!$C$2:$E$59,3,FALSE)) -> Propósito 5: Construir Bogotá - Región con gobierno abierto, transparente y ciudadanía consciente | O68: 133011605570000001741 | P68: 1 | Q68: 1030525081 | R68: BLANCA LEIDY NAVARRO DOMINGUEZ | S68: Persona Natural | W68: 27000000 | AA68: 27000000 | AB68: 27000000 | AC68: 2021-03-08 | AD68: 2021-03-08 | AE68: 2021-09-07 | AF68: 180 | AH68: 0 | AO68: X | AQ68: 1
A69: 1 | B69: 56 | C69: 2021 | D69: FDLCH-CPS-056-2021 | E69: https://community.secop.gov.co/Public/Tendering/OpportunityDetail/Index?noticeUID=CO1.NTC.1835293&isFromPublicArea=True&isModal=true&asPopupView=true | F69: Contratos de prestación de servicios profesionales y de apoyo a la gestión | G69: Contratación directa | H69: Prestación de servicios profesionales y de apoyo a la gestión, o para la ejecución de trabajos artísticos que sólo puedan encomendarse a determinadas personas naturales; | I69: Prestar servicios profesionales para la administración, soporte técnico y correcto funcionamiento de la infraestructura tecnológica en propiedad o custodia de la Alcaldía Local de Chapinero, así como la formulación de proyectos relacionados | J69: Inversión | K69: Un Nuevo Contrato Social y Ambiental para la Bogotá del Siglo XXI | L69: 57 | M69: =IF(ISERROR(VLOOKUP(L69,Proposito_programa!$C$2:$E$59,2,FALSE))," ",VLOOKUP(L69,Proposito_programa!$C$2:$E$59,2,FALSE)) -> Gestión pública local | N69: =IF(ISERROR(VLOOKUP(L69,Proposito_programa!$C$2:$E$59,3,FALSE))," ",VLOOKUP(L69,Proposito_programa!$C$2:$E$59,3,FALSE)) -> Propósito 5: Construir Bogotá - Región con gobierno abierto, transparente y ciudadanía consciente | O69: 133011605570000001741 | P69: 1 | Q69: 1014217289 | R69: JONATHAN FERNANDO ESCAMILLA RIAÑO | S69: Persona Natural | W69: 16000000 | AA69: 16000000 | AB69: 14666667 | AC69: 2021-03-10 | AD69: 2021-03-11 | AE69: 2021-07-10 | AF69: 120 | AH69: 0 | AO69: X | AQ69: 0.9166666875
A70: 1 | B70: 57 | C70: 2021 | D70: FDLCH-CPS-057-2021 | E70: https://community.secop.gov.co/Public/Tendering/OpportunityDetail/Index?noticeUID=CO1.NTC.1803517&isFromPublicArea=True&isModal=true&asPopupView=true | F70: Contratos de prestación de servicios profesionales y de apoyo a la gestión | G70: Contratación directa | H70: Prestación de servicios profesionales y de apoyo a la gestión, o para la ejecución de trabajos artísticos que sólo puedan encomendarse a determinadas personas naturales; | I70: Prestar servicios profesionales para apoyar técnicamente las actuaciones administrativas, impulso procesal y de inspección, vigilancia y control de competencia de la alcaldía local de chapinero | J70: Inversión | K70: Un Nuevo Contrato Social y Ambiental para la Bogotá del Siglo XXI | L70: 57 | M70: =IF(ISERROR(VLOOKUP(L70,Proposito_programa!$C$2:$E$59,2,FALSE))," ",VLOOKUP(L70,Proposito_programa!$C$2:$E$59,2,FALSE)) -> Gestión pública local | N70: =IF(ISERROR(VLOOKUP(L70,Proposito_programa!$C$2:$E$59,3,FALSE))," ",VLOOKUP(L70,Proposito_programa!$C$2:$E$59,3,FALSE)) -> Propósito 5: Construir Bogotá - Región con gobierno abierto, transparente y ciudadanía consciente | O70: 133011605570000001841 | P70: 1 | Q70: 1030625256 | R70: ANDRES FELIPE RAMOS ARENAS | S70: Persona Natural | W70: 27600000 | AA70: 27600000 | AB70: 27600000 | AC70: 2021-02-26 | AD70: 2021-03-01 | AE70: 2021-08-31 | AF70: 180 | AH70: 0 | AO70: X | AQ70: 1
A71: 1 | B71: 58 | C71: 2021 | D71: FDLCH-CPS-058-2021 | E71: https://community.secop.gov.co/Public/Tendering/OpportunityDetail/Index?noticeUID=CO1.NTC.1805829&isFromPublicArea=True&isModal=true&asPopupView=true | F71: Contratos de prestación de servicios profesionales y de apoyo a la gestión | G71: Contratación directa | H71: Prestación de servicios profesionales y de apoyo a la gestión, o para la ejecución de trabajos artísticos que sólo puedan encomendarse a determinadas personas naturales; | I71: Prestar servicios profesionales para apoyar técnicamente las actuaciones administrativas, impulso procesal y de inspección, vigilancia y control de competencia de la alcaldía local de chapinero | J71: Inversión | K71: Un Nuevo Contrato Social y Ambiental para la Bogotá del Siglo XXI | L71: 57 | M71: =IF(ISERROR(VLOOKUP(L71,Proposito_programa!$C$2:$E$59,2,FALSE))," ",VLOOKUP(L71,Proposito_programa!$C$2:$E$59,2,FALSE)) -> Gestión pública local | N71: =IF(ISERROR(VLOOKUP(L71,Proposito_programa!$C$2:$E$59,3,FALSE))," ",VLOOKUP(L71,Proposito_programa!$C$2:$E$59,3,FALSE)) -> Propósito 5: Construir Bogotá - Región con gobierno abierto, transparente y ciudadanía consciente | O71: 133011605570000001841 | P71: 1 | Q71: 52533394 | R71: MARICELA PALACIO RODRIGUEZ | S71: Persona Natural | W71: 27600000 | AA71: 27600000 | AB71: 27140000 | AC71: 2021-03-02 | AD71: 2021-03-04 | AE71: 2021-09-03 | AF71: 180 | AH71: 0 | AO71: X | AQ71: 0.9833333333
A72: 1 | B72: 59 | C72: 2021 | D72: FDLCH-CPS-059-2021 | E72: https://community.secop.gov.co/Public/Tendering/OpportunityDetail/Index?noticeUID=CO1.NTC.1805645&isFromPublicArea=True&isModal=true&asPopupView=true | F72: Contratos de prestación de servicios profesionales y de apoyo a la gestión | G72: Contratación directa | H72: Prestación de servicios profesionales y de apoyo a la gestión, o para la ejecución de trabajos artísticos que sólo puedan encomendarse a determinadas personas naturales; | I72: Prestar servicios profesionales para apoyar técnicamente las actuaciones administrativas, impulso procesal y de inspección, vigilancia y control de competencia de la alcaldía local de chapinero | J72: Inversión | K72: Un Nuevo Contrato Social y Ambiental para la Bogotá del Siglo XXI | L72: 57 | M72: =IF(ISERROR(VLOOKUP(L72,Proposito_programa!$C$2:$E$59,2,FALSE))," ",VLOOKUP(L72,Proposito_programa!$C$2:$E$59,2,FALSE)) -> Gestión pública local | N72: =IF(ISERROR(VLOOKUP(L72,Proposito_programa!$C$2:$E$59,3,FALSE))," ",VLOOKUP(L72,Proposito_programa!$C$2:$E$59,3,FALSE)) -> Propósito 5: Construir Bogotá - Región con gobierno abierto, transparente y ciudadanía consciente | O72: 133011605570000001841 | P72: 1 | Q72: 80825882 | R72: CARLOS ANDRES GIL RUEDA | S72: Persona Natural | W72: 27600000 | AA72: 27600000 | AB72: 26526667 | AC72: 2021-03-02 | AD72: 2021-03-08 | AE72: 2021-09-07 | AF72: 180 | AH72: 0 | AO72: X | AQ72: 0.9611111232
A73: 1 | B73: 60 | C73: 2021 | D73: FDLCH-CPS-060-2021 | E73: https://community.secop.gov.co/Public/Tendering/OpportunityDetail/Index?noticeUID=CO1.NTC.1805832&isFromPublicArea=True&isModal=true&asPopupView=true | F73: Contratos de prestación de servicios profesionales y de apoyo a la gestión | G73: Contratación directa | H73: Prestación de servicios profesionales y de apoyo a la gestión, o para la ejecución de trabajos artísticos que sólo puedan encomendarse a determinadas personas naturales; | I73: Prestar servicios profesionales para apoyar técnicamente las actuaciones administrativas, impulso procesal y de inspección, vigilancia y control de competencia de la alcaldía local de chapinero | J73: Inversión | K73: Un Nuevo Contrato Social y Ambiental para la Bogotá del Siglo XXI | L73: 57 | M73: =IF(ISERROR(VLOOKUP(L73,Proposito_programa!$C$2:$E$59,2,FALSE))," ",VLOOKUP(L73,Proposito_programa!$C$2:$E$59,2,FALSE)) -> Gestión pública local | N73: =IF(ISERROR(VLOOKUP(L73,Proposito_programa!$C$2:$E$59,3,FALSE))," ",VLOOKUP(L73,Proposito_programa!$C$2:$E$59,3,FALSE)) -> Propósito 5: Construir Bogotá - Región con gobierno abierto, transparente y ciudadanía consciente | O73: 133011605570000001841 | P73: 1 | Q73: 80799927 | R73: SALOMON RODRIGUEZ LAGUNA | S73: Persona Natural | W73: 27600000 | AA73: 27600000 | AB73: 27140000 | AC73: 2021-03-02 | AD73: 2021-03-04 | AE73: 2021-09-03 | AF73: 180 | AH73: 0 | AO73: X | AQ73: 0.9833333333
A74: 1 | B74: 61 | C74: 2021 | D74: FDLCH-CPS-061-2021 | E74: https://community.secop.gov.co/Directory/Profile/703274274 | F74: Contratos de prestación de servicios profesionales y de apoyo a la gestión | G74: Contratación directa | H74: Prestación de servicios profesionales y de apoyo a la gestión, o para la ejecución de trabajos artísticos que sólo puedan encomendarse a determinadas personas naturales; | I74: Apoyar en las tareas operativas de carácter archivístico desarrolladas en la Alcaldía Local de Chapinero para garantizar la aplicación correcta de los procedimientos técnicos | J74: Inversión | K74: Un Nuevo Contrato Social y Ambiental para la Bogotá del Siglo XXI | L74: 57 | M74: =IF(ISERROR(VLOOKUP(L74,Proposito_programa!$C$2:$E$59,2,FALSE))," ",VLOOKUP(L74,Proposito_programa!$C$2:$E$59,2,FALSE)) -> Gestión pública local | N74: =IF(ISERROR(VLOOKUP(L74,Proposito_programa!$C$2:$E$59,3,FALSE))," ",VLOOKUP(L74,Proposito_programa!$C$2:$E$59,3,FALSE)) -> Propósito 5: Construir Bogotá - Región con gobierno abierto, transparente y ciudadanía consciente | O74: 133011605570000001741 | P74: 1 | Q74: 52423626 | R74: DIANA PAOLA OVALLE RODRIGUEZ | S74: Persona Natural | W74: 16000000 | Y74: 1 | Z74: 8000000 | AA74: 24000000 | AB74: 24000000 | AC74: 2021-03-02 | AD74: 2021-03-04 | AE74: 2021-10-18 | AF74: 150 | AG74: 1 | AH74: 30 | AO74: X | AQ74: 1
A75: 1 | B75: 62 | C75: 2021 | D75: FDLCH-CPS-062-2021 | E75: https://community.secop.gov.co/Public/Tendering/OpportunityDetail/Index?noticeUID=CO1.NTC.1803626&isFromPublicArea=True&isModal=true&asPopupView=true | F75: Contratos de prestación de servicios profesionales y de apoyo a la gestión | G75: Contratación directa | H75: Prestación de servicios profesionales y de apoyo a la gestión, o para la ejecución de trabajos artísticos que sólo puedan encomendarse a determinadas personas naturales; | I75: Prestar los servicios profesionales para coordinar la articulación, asistencia y acompañamiento de los procesos de planeación local, para la promoción de la participación de las mujeres y de la equida | J75: Inversión | K75: Un Nuevo Contrato Social y Ambiental para la Bogotá del Siglo XXI | L75: 40 | M75: =IF(ISERROR(VLOOKUP(L75,Proposito_programa!$C$2:$E$59,2,FALSE))," ",VLOOKUP(L75,Proposito_programa!$C$2:$E$59,2,FALSE)) -> Más mujeres viven una vida libre de violencias, se sienten seguras y acceden con confianza al sistema de justicia | N75: =IF(ISERROR(VLOOKUP(L75,Proposito_programa!$C$2:$E$59,3,FALSE))," ",VLOOKUP(L75,Proposito_programa!$C$2:$E$59,3,FALSE)) -> Propósito 3: Inspirar confianza y legitimidad para vivir sin miedo y ser epicentro de cultura ciudadana, paz y reconciliación | O75: 133011603400000002035 | P75: 1 | Q75: 1110174525 | R75: VIVIANA LOZANO DUCUAR | S75: Persona Natural | W75: 36600000 | AA75: 36600000 | AB75: 36600000 | AC75: 2021-02-26 | AD75: 2021-03-01 | AE75: 2021-08-30 | AF75: 180 | AH75: 0 | AO75: X | AQ75: 1
A76: 1 | B76: 63 | C76: 2021 | D76: FDLCH-CPS-063-2021 | E76: https://community.secop.gov.co/Public/Tendering/OpportunityDetail/Index?noticeUID=CO1.NTC.1805041&isFromPublicArea=True&isModal=true&asPopupView=true | F76: Contratos de prestación de servicios profesionales y de apoyo a la gestión | G76: Contratación directa | H76: Prestación de servicios profesionales y de apoyo a la gestión, o para la ejecución de trabajos artísticos que sólo puedan encomendarse a determinadas personas naturales; | I76: Prestar los servicios profesionales de apoyo a la gestión para la formulación, desarrollo y seguimiento del proyecto de inversión “chapinero modelo de movilidad inteligente” y la supervisión de contratos que le sean asignados | J76: Inversión | K76: Un Nuevo Contrato Social y Ambiental para la Bogotá del Siglo XXI | L76: 49 | M76: =IF(ISERROR(VLOOKUP(L76,Proposito_programa!$C$2:$E$59,2,FALSE))," ",VLOOKUP(L76,Proposito_programa!$C$2:$E$59,2,FALSE)) -> Movilidad segura, sostenible y accesible | N76: =IF(ISERROR(VLOOKUP(L76,Proposito_programa!$C$2:$E$59,3,FALSE))," ",VLOOKUP(L76,Proposito_programa!$C$2:$E$59,3,FALSE)) -> Propósito 4: Hacer de Bogotá Región un modelo de movilidad multimodal, incluyente y sostenible | O76: 133011604490000001734 | P76: 1 | Q76: 1090435721 | R76: JORGE ENRIQUE ABREO REYES | S76: Persona Natural | W76: 37200000 | AA76: 37200000 | AB76: 37200000 | AC76: 2021-02-26 | AD76: 2021-03-01 | AE76: 2021-08-31 | AF76: 180 | AH76: 0 | AO76: X | AQ76: 1
A77: 1 | B77: 64 | C77: 2021 | D77: FDLCH-CPS-064-2021 | E77: https://community.secop.gov.co/Public/Tendering/OpportunityDetail/Index?noticeUID=CO1.NTC.1812724&isFromPublicArea=True&isModal=true&asPopupView=true | F77: Contratos de prestación de servicios profesionales y de apoyo a la gestión | G77: Contratación directa | H77: Prestación de servicios profesionales y de apoyo a la gestión, o para la ejecución de trabajos artísticos que sólo puedan encomendarse a determinadas personas naturales; | I77: Prestar servicios de apoyo a la gestión en la ejecución de las actividades administrativas y documentales relacionadas con la gestión policiva en la Alcaldía Local de Chapinero. | J77: Inversión | K77: Un Nuevo Contrato Social y Ambiental para la Bogotá del Siglo XXI | L77: 57 | M77: =IF(ISERROR(VLOOKUP(L77,Proposito_programa!$C$2:$E$59,2,FALSE))," ",VLOOKUP(L77,Proposito_programa!$C$2:$E$59,2,FALSE)) -> Gestión pública local | N77: =IF(ISERROR(VLOOKUP(L77,Proposito_programa!$C$2:$E$59,3,FALSE))," ",VLOOKUP(L77,Proposito_programa!$C$2:$E$59,3,FALSE)) -> Propósito 5: Construir Bogotá - Región con gobierno abierto, transparente y ciudadanía consciente | O77: 133011605570000001841 | P77: 1 | Q77: 37626709 | R77: LUDY MARCELA MORENO SUAREZ | S77: Persona Natural | W77: 12000000 | Y77: 1 | Z77: 6000000 | AA77: 18000000 | AB77: 17800000 | AC77: 2021-03-03 | AD77: 2021-03-04 | AE77: 2021-12-03 | AF77: 180 | AG77: 1 | AH77: 30 | AO77: X | AQ77: 0.9888888889
A78: 1 | B78: 65 | C78: 2021 | D78: FDLCH-CPS-065-2021 | E78: https://community.secop.gov.co/Public/Tendering/OpportunityDetail/Index?noticeUID=CO1.NTC.1818982&isFromPublicArea=True&isModal=true&asPopupView=true | F78: Contratos de prestación de servicios profesionales y de apoyo a la gestión | G78: Contratación directa | H78: Prestación de servicios profesionales y de apoyo a la gestión, o para la ejecución de trabajos artísticos que sólo puedan encomendarse a determinadas personas naturales; | I78: Prestar servicios profesionales de apoyo jurídico en la ejecución de las acciones requeridas para el trámite e impulso procesoal de las actuaciones administrativas y de cobro persuasivo de competencia de la Alcaldía Local de Chapinero. | J78: Inversión | K78: Un Nuevo Contrato Social y Ambiental para la Bogotá del Siglo XXI | L78: 57 | M78: =IF(ISERROR(VLOOKUP(L78,Proposito_programa!$C$2:$E$59,2,FALSE))," ",VLOOKUP(L78,Proposito_programa!$C$2:$E$59,2,FALSE)) -> Gestión pública local | N78: =IF(ISERROR(VLOOKUP(L78,Proposito_programa!$C$2:$E$59,3,FALSE))," ",VLOOKUP(L78,Proposito_programa!$C$2:$E$59,3,FALSE)) -> Propósito 5: Construir Bogotá - Región con gobierno abierto, transparente y ciudadanía consciente | O78: 133011605570000001841 | P78: 1 | Q78: 1020734444 | R78: JUAN CAMILO MENDOZA MARTINEZ | S78: Persona Natural | W78: 13083000 | Y78: 1 | Z78: 6541500 | AA78: =+W78+X78+Z78 -> 19624500 | AB78: 19624500 | AC78: 2021-03-04 | AD78: 2021-03-04 | AE78: 2021-07-22 | AF78: 90 | AG78: 1 | AH78: 30 | AO78: X | AQ78: 1
A79: 1 | B79: 66 | C79: 2021 | D79: FDLCH-CPS-066-2021 | E79: https://community.secop.gov.co/Public/Tendering/OpportunityDetail/Index?noticeUID=CO1.NTC.1812454&isFromPublicArea=True&isModal=true&asPopupView=true | F79: Contratos de prestación de servicios profesionales y de apoyo a la gestión | G79: Contratación directa | H79: Prestación de servicios profesionales y de apoyo a la gestión, o para la ejecución de trabajos artísticos que sólo puedan encomendarse a determinadas personas naturales; | I79: Prestar los servicios profesionales para la operación, prestación, seguimiento y cumplimiento de los procedimientos administrativos, operativos y programáticos del Servicio Apoyo Económico Tipo C, que contribuyan a la garantía de los derechos de la población mayor en el marco de la Política Pública Social para el Envejecimiento y la Vejez en el Distrito Capital a cargo de la Alcaldía Local de Chapinero | J79: Inversión | K79: Un Nuevo Contrato Social y Ambiental para la Bogotá del Siglo XXI | L79: 1 | M79: =IF(ISERROR(VLOOKUP(L79,Proposito_programa!$C$2:$E$59,2,FALSE))," ",VLOOKUP(L79,Proposito_programa!$C$2:$E$59,2,FALSE)) -> Subsidios y transferencias para la equidad | N79: =IF(ISERROR(VLOOKUP(L79,Proposito_programa!$C$2:$E$59,3,FALSE))," ",VLOOKUP(L79,Proposito_programa!$C$2:$E$59,3,FALSE)) -> Propósito 1: Hacer un nuevo contrato social para incrementar la inclusión social, productiva y política | O79: 133011601010000001815 | P79: 1 | Q79: 52559313 | R79: ALICIA CUJABAN ZAZA | S79: Persona Natural | W79: 17444000 | Y79: 1 | Z79: 8722000 | AA79: 26166000 | AB79: 26166000 | AC79: 2021-03-02 | AD79: 2021-03-03 | AE79: 2021-09-03 | AF79: 120 | AG79: 1 | AH79: =+AG79*30 -> 30 | AO79: X | AQ79: 1
A80: 1 | B80: 67 | C80: 2021 | D80: FDLCH-CPS-067-2021 | E80: https://community.secop.gov.co/Public/Tendering/OpportunityDetail/Index?noticeUID=CO1.NTC.1817213&isFromPublicArea=True&isModal=true&asPopupView=true | F80: Contratos de prestación de servicios profesionales y de apoyo a la gestión | G80: Contratación directa | H80: Prestación de servicios profesionales y de apoyo a la gestión, o para la ejecución de trabajos artísticos que sólo puedan encomendarse a determinadas personas naturales; | I80: Prestación de servicios de apoyo necesarios para apoyar la gestión y ejecución de actividades administrativas, operativas y logísticas que se adelantan en el área de gestión del desarrollo local de la Alcaldía Local de Chapinero | J80: Inversión | K80: Un Nuevo Contrato Social y Ambiental para la Bogotá del Siglo XXI | L80: 57 | M80: =IF(ISERROR(VLOOKUP(L80,Proposito_programa!$C$2:$E$59,2,FALSE))," ",VLOOKUP(L80,Proposito_programa!$C$2:$E$59,2,FALSE)) -> Gestión pública local | N80: =IF(ISERROR(VLOOKUP(L80,Proposito_programa!$C$2:$E$59,3,FALSE))," ",VLOOKUP(L80,Proposito_programa!$C$2:$E$59,3,FALSE)) -> Propósito 5: Construir Bogotá - Región con gobierno abierto, transparente y ciudadanía consciente | O80: 133011605570000001741 | P80: 1 | Q80: 2996195 | R80: MEYER JAIRO GACHARNA VILLALBA | S80: Persona Natural | W80: 8800000 | Y80: 1 | Z80: 4400000 | AA80: 13200000 | AB80: 13200000 | AC80: 2021-03-03 | AD80: 2021-03-04 | AE80: 2021-09-03 | AF80: 120 | AG80: 1 | AH80: 30 | AO80: X | AQ80: 1
A81: 1 | B81: 68 | C81: 2021 | D81: FDLCH-CPS-068-2021 | E81: https://community.secop.gov.co/Public/Tendering/OpportunityDetail/Index?noticeUID=CO1.NTC.1817160&isFromPublicArea=True&isModal=true&asPopupView=true | F81: Contratos de prestación de servicios profesionales y de apoyo a la gestión | G81: Contratación directa | H81: Prestación de servicios profesionales y de apoyo a la gestión, o para la ejecución de trabajos artísticos que sólo puedan encomendarse a determinadas personas naturales; | I81: Apoyar profesional y jurídicamente el seguimiento, supervisión estratégica y sustanciación de procesos de competencia de la Alcaldía Local de Chapinero anteriores a la entrada en vigencia de la Ley 1801 de 2016. | J81: Inversión | K81: Un Nuevo Contrato Social y Ambiental para la Bogotá del Siglo XXI | L81: 57 | M81: =IF(ISERROR(VLOOKUP(L81,Proposito_programa!$C$2:$E$59,2,FALSE))," ",VLOOKUP(L81,Proposito_programa!$C$2:$E$59,2,FALSE)) -> Gestión pública local | N81: =IF(ISERROR(VLOOKUP(L81,Proposito_programa!$C$2:$E$59,3,FALSE))," ",VLOOKUP(L81,Proposito_programa!$C$2:$E$59,3,FALSE)) -> Propósito 5: Construir Bogotá - Región con gobierno abierto, transparente y ciudadanía consciente | O81: 133011605570000001841 | P81: 1 | Q81: 19271830 | R81: MANUEL FALLA BUSTOS | S81: Persona Natural | W81: 30000000 | Y81: 1 | Z81: 15000000 | AA81: 45000000 | AB81: 44500000 | AC81: 2021-03-03 | AD81: 2021-03-04 | AE81: 2021-12-05 | AF81: 180 | AG81: 1 | AH81: 30 | AO81: X | AQ81: 0.9888888889
A82: 1 | B82: 69 | C82: 2021 | D82: FDLCH-CPS-069-2021 | E82: https://community.secop.gov.co/Public/Tendering/OpportunityDetail/Index?noticeUID=CO1.NTC.1828452&isFromPublicArea=True&isModal=true&asPopupView=true | F82: Contratos de prestación de servicios profesionales y de apoyo a la gestión | G82: Contratación directa | H82: Prestación de servicios profesionales y de apoyo a la gestión, o para la ejecución de trabajos artísticos que sólo puedan encomendarse a determinadas personas naturales; | I82: Prestar los servicios de apoyo a la gestión en la implementación, atención, verificación, soporte y acompañamiento de los procesos y/o actuaciones administrativas de registro y seguimiento a la propiedad horizontal en los aplicativos y/o herramientas vituales en la localidad de Chapinero. | J82: Inversión | K82: Un Nuevo Contrato Social y Ambiental para la Bogotá del Siglo XXI | L82: 57 | M82: =IF(ISERROR(VLOOKUP(L82,Proposito_programa!$C$2:$E$59,2,FALSE))," ",VLOOKUP(L82,Proposito_programa!$C$2:$E$59,2,FALSE)) -> Gestión pública local | N82: =IF(ISERROR(VLOOKUP(L82,Proposito_programa!$C$2:$E$59,3,FALSE))," ",VLOOKUP(L82,Proposito_programa!$C$2:$E$59,3,FALSE)) -> Propósito 5: Construir Bogotá - Región con gobierno abierto, transparente y ciudadanía consciente | O82: 133011605570000001741 | P82: 1 | Q82: 1070021566 | R82: MAUREN DARLINE FORERO RONCANCIO | S82: Persona Natural | W82: 6000000 | Y82: 1 | Z82: 3000000 | AA82: 9000000 | AB82: 9000000 | AC82: 2021-03-08 | AD82: 2021-03-09 | AE82: 2021-07-23 | AF82: 90 | AG82: 1 | AH82: 30 | AO82: X | AQ82: 1
A83: 1 | B83: 70 | C83: 2021 | D83: FDLCH-CPS-070-2021 | E83: https://community.secop.gov.co/Directory/Profile/710466202 | F83: Contratos de prestación de servicios profesionales y de apoyo a la gestión | G83: Contratación directa | H83: Prestación de servicios profesionales y de apoyo a la gestión, o para la ejecución de trabajos artísticos que sólo puedan encomendarse a determinadas personas naturales; | I83: Prestar servicios profesionales de apoyo jurídico en la ejecución de las acciones requeridas para el trámite e impulso procesal de las actuaciones administrativas y de cobro persuasivo de competencia de la Alcaldía Local de Chapinero. | J83: Inversión | K83: Un Nuevo Contrato Social y Ambiental para la Bogotá del Siglo XXI | L83: 57 | M83: =IF(ISERROR(VLOOKUP(L83,Proposito_programa!$C$2:$E$59,2,FALSE))," ",VLOOKUP(L83,Proposito_programa!$C$2:$E$59,2,FALSE)) -> Gestión pública local | N83: =IF(ISERROR(VLOOKUP(L83,Proposito_programa!$C$2:$E$59,3,FALSE))," ",VLOOKUP(L83,Proposito_programa!$C$2:$E$59,3,FALSE)) -> Propósito 5: Construir Bogotá - Región con gobierno abierto, transparente y ciudadanía consciente | O83: 133011605570000001841 | P83: 1 | Q83: 11796268 | R83: ARIEL VALENCIA VALENCIA | S83: Persona Natural | W83: 26400000 | X83: -5280000 | Y83: 1 | Z83: 13200000 | AA83: 34320000 | AB83: 25373333 | AC83: 2021-03-08 | AD83: 2021-03-08 | AE83: 2021-12-07 | AF83: 180 | AG83: 1 | AH83: 30 | AI83: 79965971 | AJ83: CARLOS MANUEL GARZON | AK83: 2021-11-02 | AL83: 5280000 | AO83: X | AQ83: =IF(ISERROR(AB83/AA83),"-",(AB83/AA83)) -> 0.7393162296
A84: 1 | B84: 71 | C84: 2021 | D84: FDLCH-CPS-070-2021 | E84: https://community.secop.gov.co/Directory/Profile/710466202 | F84: Contratos de prestación de servicios profesionales y de apoyo a la gestión | G84: Contratación directa | H84: Prestación de servicios profesionales y de apoyo a la gestión, o para la ejecución de trabajos artísticos que sólo puedan encomendarse a determinadas personas naturales; | I84: Prestar servicios profesionales de apoyo jurídico en la ejecución de las acciones requeridas para el trámite e impulso procesal de las actuaciones administrativas y de cobro persuasivo de competencia de la Alcaldía Local de Chapinero. | J84: Inversión | K84: Un Nuevo Contrato Social y Ambiental para la Bogotá del Siglo XXI | L84: 57 | M84: =IF(ISERROR(VLOOKUP(L84,Proposito_programa!$C$2:$E$59,2,FALSE))," ",VLOOKUP(L84,Proposito_programa!$C$2:$E$59,2,FALSE)) -> Gestión pública local | N84: =IF(ISERROR(VLOOKUP(L84,Proposito_programa!$C$2:$E$59,3,FALSE))," ",VLOOKUP(L84,Proposito_programa!$C$2:$E$59,3,FALSE)) -> Propósito 5: Construir Bogotá - Región con gobierno abierto, transparente y ciudadanía consciente | O84: 133011605570000001841 | P84: 1 | Q84: 79965971 | R84: CARLOS MANUEL GARZON HERNANDEZ | S84: Persona Natural | W84: 5280000 | AA84: 5280000 | AB84: 0 | AC84: 2021-03-08 | AD84: 2021-03-08 | AE84: 2021-12-07 | AF84: 180 | AG84: 1 | AH84: =+AG84*30 -> 30 | AO84: X | AQ84: 1
A85: 1 | B85: 72 | C85: 2021 | D85: FDLCH-CPS-071-2021 | E85: https://colombiacompra.gov.co/tienda-virtual-del-estado-colombiano/ordenes-compra/65068 | F85: Contratos de prestación de servicios | G85: Selección abreviada | H85: Selección abreviada por menor cuantía | I85: Prestar los servicios de aseo y cafeteria en la Alcaldía Local de Chapinero y sus sedes, conforme a lo estipulado en el Acuerdo Marco de Precios III | J85: Funcionamiento | K85: Un Nuevo Contrato Social y Ambiental para la Bogotá del Siglo XXI | L85: No aplica | M85: =IF(ISERROR(VLOOKUP(L85,Proposito_programa!$C$2:$E$59,2,FALSE))," ",VLOOKUP(L85,Proposito_programa!$C$2:$E$59,2,FALSE)) ->  | N85: =IF(ISERROR(VLOOKUP(L85,Proposito_programa!$C$2:$E$59,3,FALSE))," ",VLOOKUP(L85,Proposito_programa!$C$2:$E$59,3,FALSE)) ->  | O85: 1310202020101 | P85: 16 | Q85: 830068543 | R85: MUNDOLIMPIEZA LTDA | S85: Persona Jurídica | W85: 15726007 | Y85: 1 | Z85: 273993 | AA85: 16000000 | AB85: 0 | AC85: 2021-03-04 | AD85: 2021-03-04 | AE85: 2022-04-04 | AF85: 270 | AG85: 1 | AH85: 30 | AN85: X | AQ85: 0.66
A86: 1 | B86: 73 | C86: 2021 | D86: FDLCH-CPS-071-2021 | E86: https://colombiacompra.gov.co/tienda-virtual-del-estado-colombiano/ordenes-compra/65068 | F86: Contratos de prestación de servicios | G86: Selección abreviada | H86: Selección abreviada por menor cuantía | I86: Prestar los servicios de aseo y cafeteria en la Alcaldía Local de Chapinero y sus sedes, conforme a lo estipulado en el Acuerdo Marco de Precios III | J86: Funcionamiento | K86: Un Nuevo Contrato Social y Ambiental para la Bogotá del Siglo XXI | L86: No aplica | O86: 131020202030502 | P86: 16 | Q86: 830068543 | R86: MUNDOLIMPIEZA LTDA | S86: Persona Jurídica | W86: 123070624 | Y86: 2 | Z86: 67236860 | AA86: 190307484 | AB86: 125806444 | AC86: 2021-03-04 | AD86: 2021-03-04 | AE86: 2022-04-04 | AF86: 270 | AG86: 1 | AH86: =+AG86*30 -> 30 | AN86: X | AQ86: 0.6610693461
A87: 1 | B87: 74 | C87: 2021 | D87: FDLCH-CPS-072-2021 | E87: https://community.secop.gov.co/Public/Tendering/OpportunityDetail/Index?noticeUID=CO1.NTC.1829154&isFromPublicArea=True&isModal=true&asPopupView=true | F87: Contratos de prestación de servicios profesionales y de apoyo a la gestión | G87: Contratación directa | H87: Prestación de servicios profesionales y de apoyo a la gestión, o para la ejecución de trabajos artísticos que sólo puedan encomendarse a determinadas personas naturales; | I87: Prestación de servicios profesionales para la atención integral del manejo de las comisiones judiciales ordenadas por las autoridades jurisdiccionales y prestar apoyo al cobro persuasivo, actuaciones administrativas y policivas de competencia de la Alcaldía Local de Chapinero. | J87: Inversión | K87: Un Nuevo Contrato Social y Ambiental para la Bogotá del Siglo XXI | L87: 57 | M87: =IF(ISERROR(VLOOKUP(L87,Proposito_programa!$C$2:$E$59,2,FALSE))," ",VLOOKUP(L87,Proposito_programa!$C$2:$E$59,2,FALSE)) -> Gestión pública local | N87: =IF(ISERROR(VLOOKUP(L87,Proposito_programa!$C$2:$E$59,3,FALSE))," ",VLOOKUP(L87,Proposito_programa!$C$2:$E$59,3,FALSE)) -> Propósito 5: Construir Bogotá - Región con gobierno abierto, transparente y ciudadanía consciente | O87: 133011605570000001841 | P87: 1 | Q87: 79729789 | R87: ALFREDO ENRIQUE CACERES MENDOZA | S87: Persona Natural | W87: 26000000 | Y87: 1 | Z87: 13000000 | AA87: 39000000 | AB87: 39000000 | AC87: 2021-03-08 | AD87: 2021-03-09 | AE87: 2021-10-23 | AF87: 150 | AG87: 1 | AH87: 30 | AO87: X | AQ87: 1
A88: 1 | B88: 75 | C88: 2021 | D88: FDLCH-CPS-073-2021 | E88: https://community.secop.gov.co/Public/Tendering/OpportunityDetail/Index?noticeUID=CO1.NTC.1831691&isFromPublicArea=True&isModal=true&asPopupView=true | F88: Contratos de prestación de servicios profesionales y de apoyo a la gestión | G88: Contratación directa | H88: Prestación de servicios profesionales y de apoyo a la gestión, o para la ejecución de trabajos artísticos que sólo puedan encomendarse a determinadas personas naturales; | I88: Prestar servicios profesionales para apoyar al equipo de prensa y comunicaciones de la Alcaldía Local en la realización de productos y piezas digitales, impresas y publicitarias de gran formato y de animación gráfica, así como apoyar la producción y montaje de eventos | J88: Inversión | K88: Un Nuevo Contrato Social y Ambiental para la Bogotá del Siglo XXI | L88: 57 | M88: =IF(ISERROR(VLOOKUP(L88,Proposito_programa!$C$2:$E$59,2,FALSE))," ",VLOOKUP(L88,Proposito_programa!$C$2:$E$59,2,FALSE)) -> Gestión pública local | N88: =IF(ISERROR(VLOOKUP(L88,Proposito_programa!$C$2:$E$59,3,FALSE))," ",VLOOKUP(L88,Proposito_programa!$C$2:$E$59,3,FALSE)) -> Propósito 5: Construir Bogotá - Región con gobierno abierto, transparente y ciudadanía consciente | O88: 133011605570000001741 | P88: 1 | Q88: 1026269094 | R88: EIDER EIMER HERNANDEZ POLANCO | S88: Persona Natural | W88: 16000000 | Y88: 1 | Z88: 8000000 | AA88: 24000000 | AB88: 24000000 | AC88: 2021-03-10 | AD88: 2021-03-10 | AE88: 2021-09-09 | AF88: 120 | AG88: 1 | AH88: 30 | AO88: X | AQ88: 1
A89: 1 | B89: 76 | C89: 2021 | D89: FDLCH-CCBM-074-2021 | E89: https://community.secop.gov.co/Public/Tendering/OpportunityDetail/Index?noticeUID=CO1.NTC.1834562&isFromPublicArea=True&isModal=False | F89: Contratos de prestación de servicios | G89: Selección abreviada | H89: Bolsas de productos | I89: La adquisición a traves de la BMC - BOLSA MERCANTIL DE COLOMBIA S.A del servicio de vigilancia y seguridas privada integral permanente en la modalidad fija para protección y cuidado de los funcionarios, usuarios y todos los bienes muebles e inmuebles de propiedad o en custodia del Fondo de Desarrollo Local de Chapinero y todos aquellos d elos que llegare a adquirir. | J89: Funcionamiento | K89: Un Nuevo Contrato Social y Ambiental para la Bogotá del Siglo XXI | L89: No aplica | M89: =IF(ISERROR(VLOOKUP(L89,Proposito_programa!$C$2:$E$59,2,FALSE))," ",VLOOKUP(L89,Proposito_programa!$C$2:$E$59,2,FALSE)) ->  | N89: =IF(ISERROR(VLOOKUP(L89,Proposito_programa!$C$2:$E$59,3,FALSE))," ",VLOOKUP(L89,Proposito_programa!$C$2:$E$59,3,FALSE)) ->  | O89: 131020202030501 | P89: 1 | Q89: 805000867 | R89: CORREAGRO S.A. | S89: Persona Jurídica | W89: 531324026 | AA89: 531324026 | AB89: 283432184 | AC89: 2021-03-10 | AD89: 2021-03-23 | AF89: 330 | AG89: 1 | AH89: 30 | AM89: X | AQ89: 0.5334450733
A90: 1 | B90: 77 | C90: 2021 | D90: FDLCH-CPS-075-2021 | E90: https://community.secop.gov.co/Public/Tendering/OpportunityDetail/Index?noticeUID=CO1.NTC.1837390&isFromPublicArea=True&isModal=true&asPopupView=true | F90: Contratos de prestación de servicios profesionales y de apoyo a la gestión | G90: Contratación directa | H90: Prestación de servicios profesionales y de apoyo a la gestión, o para la ejecución de trabajos artísticos que sólo puedan encomendarse a determinadas personas naturales; | I90: Prestar servicios profesionales para apoyar técnicamente las actuaciones administrativas, impulso procesal y de inspección, vigilancia y control en las zonas de especial protección de cerros orientales de competencia de la alcaldía local de Chapinero”. | J90: Inversión | K90: Un Nuevo Contrato Social y Ambiental para la Bogotá del Siglo XXI | L90: 57 | M90: =IF(ISERROR(VLOOKUP(L90,Proposito_programa!$C$2:$E$59,2,FALSE))," ",VLOOKUP(L90,Proposito_programa!$C$2:$E$59,2,FALSE)) -> Gestión pública local | N90: =IF(ISERROR(VLOOKUP(L90,Proposito_programa!$C$2:$E$59,3,FALSE))," ",VLOOKUP(L90,Proposito_programa!$C$2:$E$59,3,FALSE)) -> Propósito 5: Construir Bogotá - Región con gobierno abierto, transparente y ciudadanía consciente | O90: 133011605570000001841 | P90: 1 | Q90: 79531247 | R90: RICARDO ALBERTO CORNEJO GONZALEZ | S90: Persona Natural | W90: 27600000 | X90: -19013333 | AA90: 8586667 | AB90: 8586667 | AC90: 2021-03-11 | AD90: 2021-03-11 | AE90: 2021-12-10 | AF90: 180 | AG90: 1 | AH90: 30 | AI90: 1000145771 | AJ90: DIANA CAROLINA ERAZO FLOREZ | AK90: 2021-05-07 | AL90: 19013333 | AO90: X | AQ90: 1
A91: 1 | B91: 78 | C91: 2021 | D91: FDLCH-CPS-075-2021 | E91: https://community.secop.gov.co/Public/Tendering/OpportunityDetail/Index?noticeUID=CO1.NTC.1837390&isFromPublicArea=True&isModal=true&asPopupView=true | F91: Contratos de prestación de servicios profesionales y de apoyo a la gestión | G91: Contratación directa | H91: Prestación de servicios profesionales y de apoyo a la gestión, o para la ejecución de trabajos artísticos que sólo puedan encomendarse a determinadas personas naturales; | I91: Prestar servicios profesionales para apoyar técnicamente las actuaciones administrativas, impulso procesal y de inspección, vigilancia y control en las zonas de especial protección de cerros orientales de competencia de la alcaldía local de Chapinero”. | J91: Inversión | K91: Un Nuevo Contrato Social y Ambiental para la Bogotá del Siglo XXI | L91: 57 | M91: =IF(ISERROR(VLOOKUP(L91,Proposito_programa!$C$2:$E$59,2,FALSE))," ",VLOOKUP(L91,Proposito_programa!$C$2:$E$59,2,FALSE)) -> Gestión pública local | N91: =IF(ISERROR(VLOOKUP(L91,Proposito_programa!$C$2:$E$59,3,FALSE))," ",VLOOKUP(L91,Proposito_programa!$C$2:$E$59,3,FALSE)) -> Propósito 5: Construir Bogotá - Región con gobierno abierto, transparente y ciudadanía consciente | O91: 133011605570000001841 | P91: 0 | Q91: 1006269530 | R91: DIANA CAROLINA ERAZO FLOREZ | S91: Persona Natural | W91: 19013333 | Y91: 1 | Z91: 13800000 | AA91: 32813333 | AB91: 32813333 | AC91: 2021-03-11 | AD91: 2021-03-11 | AE91: 2021-12-10 | AF91: 180 | AG91: 1 | AH91: =+AG91*30 -> 30 | AO91: X | AQ91: 1
A92: 1 | B92: 79 | C92: 2021 | D92: FDLCH-CPS-076-2021 | E92: https://community.secop.gov.co/Public/Tendering/OpportunityDetail/Index?noticeUID=CO1.NTC.1837778&isFromPublicArea=True&isModal=true&asPopupView=true | F92: Contratos de prestación de servicios profesionales y de apoyo a la gestión | G92: Contratación directa | H92: Prestación de servicios profesionales y de apoyo a la gestión, o para la ejecución de trabajos artísticos que sólo puedan encomendarse a determinadas personas naturales; | I92: Prestar servicios profesionales para apoyar la formulación, ejecución, seguimiento y mejora continua de las herramientas que conforman la gestión ambiental institucional de la Alcaldía Local de Chapinero. | J92: Inversión | K92: Un Nuevo Contrato Social y Ambiental para la Bogotá del Siglo XXI | L92: 57 | M92: =IF(ISERROR(VLOOKUP(L92,Proposito_programa!$C$2:$E$59,2,FALSE))," ",VLOOKUP(L92,Proposito_programa!$C$2:$E$59,2,FALSE)) -> Gestión pública local | N92: =IF(ISERROR(VLOOKUP(L92,Proposito_programa!$C$2:$E$59,3,FALSE))," ",VLOOKUP(L92,Proposito_programa!$C$2:$E$59,3,FALSE)) -> Propósito 5: Construir Bogotá - Región con gobierno abierto, transparente y ciudadanía consciente | O92: 133011605570000001741 | P92: 1 | Q92: 1032460215 | R92: EDWAR STIVEN BARRERA GONZALEZ | S92: Persona Natural | W92: 17444000 | Y92: 1 | Z92: 8722000 | AA92: 26166000 | AB92: 26166000 | AC92: 2021-03-11 | AD92: 2021-03-12 | AE92: 2021-09-11 | AF92: 120 | AG92: 1 | AH92: 30 | AO92: X | AQ92: 1
A93: 1 | B93: 80 | C93: 2021 | D93: FDLCH-CPS-077-2021 | E93: https://community.secop.gov.co/Public/Tendering/OpportunityDetail/Index?noticeUID=CO1.NTC.1835071&isFromPublicArea=True&isModal=true&asPopupView=true | F93: Contratos de prestación de servicios profesionales y de apoyo a la gestión | G93: Contratación directa | H93: Prestación de servicios profesionales y de apoyo a la gestión, o para la ejecución de trabajos artísticos que sólo puedan encomendarse a determinadas personas naturales; | I93: Prestar servicios profesionales para apoyar la gestión, formulación, desarrollo, seguimiento y evaluación del proyecto de inversión “chapinero promueve y genera confianza ciudadana” y realizar los apoyos a la supervisión de los contrataos que de él se deriven | J93: Inversión | K93: Un Nuevo Contrato Social y Ambiental para la Bogotá del Siglo XXI | L93: 43 | M93: =IF(ISERROR(VLOOKUP(L93,Proposito_programa!$C$2:$E$59,2,FALSE))," ",VLOOKUP(L93,Proposito_programa!$C$2:$E$59,2,FALSE)) -> Cultura ciudadana para la confianza, la convivencia y la participación desde la vida cotidiana | N93: =IF(ISERROR(VLOOKUP(L93,Proposito_programa!$C$2:$E$59,3,FALSE))," ",VLOOKUP(L93,Proposito_programa!$C$2:$E$59,3,FALSE)) -> Propósito 3: Inspirar confianza y legitimidad para vivir sin miedo y ser epicentro de cultura ciudadana, paz y reconciliación | O93: 133011603430000001735 | P93: 1 | Q93: 1026568660 | R93: CRISTIAN ANDRES MONROY CARANTON | S93: Persona Natural | W93: 21805000 | AA93: 21805000 | AB93: 21805000 | AC93: 2021-03-10 | AD93: 2021-03-11 | AE93: 2021-08-10 | AF93: 150 | AH93: 0 | AO93: X | AQ93: 1
A94: 1 | B94: 81 | C94: 2021 | D94: FDLCH-CPS-078-2021 | E94: https://community.secop.gov.co/Public/Tendering/OpportunityDetail/Index?noticeUID=CO1.NTC.1842003&isFromPublicArea=True&isModal=true&asPopupView=true | F94: Contratos de prestación de servicios profesionales y de apoyo a la gestión | G94: Contratación directa | H94: Prestación de servicios profesionales y de apoyo a la gestión, o para la ejecución de trabajos artísticos que sólo puedan encomendarse a determinadas personas naturales; | I94: Prestar los servicios profesionales para el apoyo al área de gestión del desarrollo local de la Alcaldía Local de Chapinero en la formulación, gestión, ejecución y seguimiento económico de los contratos derivados del proyecto “Chapinero Productivo y emprendedor”, la Estrategia de Mitigación y Reactivación Económica, EMRE Local y la supervisión de contratos que le sean asignados | J94: Inversión | K94: Un Nuevo Contrato Social y Ambiental para la Bogotá del Siglo XXI | L94: 6 | M94: =IF(ISERROR(VLOOKUP(L94,Proposito_programa!$C$2:$E$59,2,FALSE))," ",VLOOKUP(L94,Proposito_programa!$C$2:$E$59,2,FALSE)) -> Sistema Distrital de Cuidado | N94: =IF(ISERROR(VLOOKUP(L94,Proposito_programa!$C$2:$E$59,3,FALSE))," ",VLOOKUP(L94,Proposito_programa!$C$2:$E$59,3,FALSE)) -> Propósito 1: Hacer un nuevo contrato social para incrementar la inclusión social, productiva y política | O94: 133011601060000001671 | P94: 1 | Q94: 79341550 | R94: EDGAR ARTURO GARZON LEON | S94: Persona Natural | W94: 17443700 | X94: -10756948 | AA94: 6686752 | AB94: 6686752 | AC94: 2021-03-12 | AD94: 2021-03-15 | AE94: 2021-05-03 | AF94: 120 | AH94: 0 | AO94: X | AQ94: 1
A95: 1 | B95: 82 | C95: 2021 | D95: FDLCH-CPS-079-2021 | E95: https://community.secop.gov.co/Public/Tendering/OpportunityDetail/Index?noticeUID=CO1.NTC.1851946&isFromPublicArea=True&isModal=true&asPopupView=true | F95: Contratos de prestación de servicios profesionales y de apoyo a la gestión | G95: Contratación directa | H95: Prestación de servicios profesionales y de apoyo a la gestión, o para la ejecución de trabajos artísticos que sólo puedan encomendarse a determinadas personas naturales; | I95: Prestar servicios profesionales para apoyar técnicamente las distintas etapas de los procesos de competencia de las inspecciones de policía d ela localidad de chapinero, segpun reparto. | J95: Inversión | K95: Un Nuevo Contrato Social y Ambiental para la Bogotá del Siglo XXI | L95: 57 | M95: =IF(ISERROR(VLOOKUP(L95,Proposito_programa!$C$2:$E$59,2,FALSE))," ",VLOOKUP(L95,Proposito_programa!$C$2:$E$59,2,FALSE)) -> Gestión pública local | N95: =IF(ISERROR(VLOOKUP(L95,Proposito_programa!$C$2:$E$59,3,FALSE))," ",VLOOKUP(L95,Proposito_programa!$C$2:$E$59,3,FALSE)) -> Propósito 5: Construir Bogotá - Región con gobierno abierto, transparente y ciudadanía consciente | O95: 133011605570000001841 | P95: 1 | Q95: 52308262 | R95: IRISAYDEE NOVOA MEDELLIN | S95: Persona Natural | W95: 18400000 | X95: -9200000 | Y95: 1 | Z95: 9200000 | AA95: 18400000 | AB95: 18400000 | AC95: 2021-03-17 | AD95: 2021-03-17 | AE95: 2021-09-16 | AF95: 120 | AG95: 1 | AH95: 30 | AO95: X | AQ95: 1
A96: 1 | B96: 83 | C96: 2021 | D96: FDLCH-CPS-080-2021 | E96: https://community.secop.gov.co/Public/Tendering/OpportunityDetail/Index?noticeUID=CO1.NTC.1848576&isFromPublicArea=True&isModal=true&asPopupView=true | F96: Contratos de prestación de servicios profesionales y de apoyo a la gestión | G96: Contratación directa | H96: Prestación de servicios profesionales y de apoyo a la gestión, o para la ejecución de trabajos artísticos que sólo puedan encomendarse a determinadas personas naturales; | I96: Prestar servicios técnicos para apoyar el área Gestión del Desarrollo Local en las actividades presupuestales requeridas por la Alcaldía Local de Chapinero | J96: Inversión | K96: Un Nuevo Contrato Social y Ambiental para la Bogotá del Siglo XXI | L96: 57 | M96: =IF(ISERROR(VLOOKUP(L96,Proposito_programa!$C$2:$E$59,2,FALSE))," ",VLOOKUP(L96,Proposito_programa!$C$2:$E$59,2,FALSE)) -> Gestión pública local | N96: =IF(ISERROR(VLOOKUP(L96,Proposito_programa!$C$2:$E$59,3,FALSE))," ",VLOOKUP(L96,Proposito_programa!$C$2:$E$59,3,FALSE)) -> Propósito 5: Construir Bogotá - Región con gobierno abierto, transparente y ciudadanía consciente | O96: 133011605570000001741 | P96: 1 | Q96: 1023893986 | R96: EILIN NATALY VILLABON PARDO | S96: Persona Natural | W96: 10600000 | Y96: 1 | Z96: 5300000 | AA96: 15900000 | AB96: 15900000 | AC96: 2021-03-16 | AD96: 2021-03-17 | AE96: 2021-09-16 | AF96: 120 | AG96: 1 | AH96: 30 | AO96: X | AQ96: 1
A97: 1 | B97: 84 | C97: 2021 | D97: FDLCH-CPS-081-2021 | E97: https://community.secop.gov.co/Public/Tendering/OpportunityDetail/Index?noticeUID=CO1.NTC.1845780&isFromPublicArea=True&isModal=true&asPopupView=true | F97: Contratos de prestación de servicios profesionales y de apoyo a la gestión | G97: Contratación directa | H97: Prestación de servicios profesionales y de apoyo a la gestión, o para la ejecución de trabajos artísticos que sólo puedan encomendarse a determinadas personas naturales; | I97: Prestación de servicios profesionales para apoyar al área de Gestión del Desarrollo Local de la Alcaldía Local de Chapinero, en la gestión, formulación, desarrollo, seguimiento y evaluación de los temas relacionados con Educación superior en la Localidad de Chapinero, enmarcados en el proyecto de inversión “Chapinero Construye Futuro” y realizar el apoyo a la supervisión de los contratos y/o convenios que de él se deriven | J97: Inversión | K97: Un Nuevo Contrato Social y Ambiental para la Bogotá del Siglo XXI | L97: 17 | M97: =IF(ISERROR(VLOOKUP(L97,Proposito_programa!$C$2:$E$59,2,FALSE))," ",VLOOKUP(L97,Proposito_programa!$C$2:$E$59,2,FALSE)) -> Jóvenes con capacidades: Proyecto de vida para la ciudadanía, la innovación y el trabajo del siglo XXI | N97: =IF(ISERROR(VLOOKUP(L97,Proposito_programa!$C$2:$E$59,3,FALSE))," ",VLOOKUP(L97,Proposito_programa!$C$2:$E$59,3,FALSE)) -> Propósito 1: Hacer un nuevo contrato social para incrementar la inclusión social, productiva y política | O97: 133011601170000001743 | P97: 1 | Q97: 52918081 | R97: DIANA YELIXA BARINAS RAMIREZ | S97: Persona Natural | W97: 25000000 | AA97: 25000000 | AB97: 25000000 | AC97: 2021-03-15 | AD97: 2021-03-16 | AE97: 2021-08-15 | AF97: 150 | AH97: 0 | AO97: X | AQ97: 1
A98: 1 | B98: 85 | C98: 2021 | D98: FDLCH-CPS-082-2021 | E98: https://community.secop.gov.co/Public/Tendering/OpportunityDetail/Index?noticeUID=CO1.NTC.1851912&isFromPublicArea=True&isModal=true&asPopupView=true | F98: Contratos de prestación de servicios profesionales y de apoyo a la gestión | G98: Contratación directa | H98: Prestación de servicios profesionales y de apoyo a la gestión, o para la ejecución de trabajos artísticos que sólo puedan encomendarse a determinadas personas naturales; | I98: Prestar servicios profesionales para apoyar el área Gestión del Desarrollo Local de la Alcaldía Local de Chapinero en los aspectos económicos y financieros de las etapas pre contractuales, contractuales y post contractuales de los proyectos de inversión, así como la producción, consolidación y análisis de datos, estadísticas e informes de impacto del Plan de Desarrollo Local. | J98: Inversión | K98: Un Nuevo Contrato Social y Ambiental para la Bogotá del Siglo XXI | L98: 57 | M98: =IF(ISERROR(VLOOKUP(L98,Proposito_programa!$C$2:$E$59,2,FALSE))," ",VLOOKUP(L98,Proposito_programa!$C$2:$E$59,2,FALSE)) -> Gestión pública local | N98: =IF(ISERROR(VLOOKUP(L98,Proposito_programa!$C$2:$E$59,3,FALSE))," ",VLOOKUP(L98,Proposito_programa!$C$2:$E$59,3,FALSE)) -> Propósito 5: Construir Bogotá - Región con gobierno abierto, transparente y ciudadanía consciente | O98: 133011605570000001741 | P98: 1 | Q98: 1023884331 | R98: JHON HENRY CAMARGO ALEMAN | S98: Persona Natural | W98: 16800000 | X98: -5320000 | AA98: 11480000 | AB98: 10360000 | AC98: 2021-03-17 | AD98: 2021-03-17 | AE98: 2021-09-16 | AF98: 120 | AG98: 1 | AH98: 30 | AI98: 1016059999 | AJ98: CRISTIAN DANIEL VILLARREAL PARROQUIANO | AK98: 2021-06-09 | AL98: 5320000 | AO98: X | AQ98: 0.9024390244
A99: 1 | B99: 86 | C99: 2021 | D99: FDLCH-CPS-082-2021 | E99: https://community.secop.gov.co/Public/Tendering/OpportunityDetail/Index?noticeUID=CO1.NTC.1851912&isFromPublicArea=True&isModal=true&asPopupView=true | F99: Contratos de prestación de servicios profesionales y de apoyo a la gestión | G99: Contratación directa | H99: Prestación de servicios profesionales y de apoyo a la gestión, o para la ejecución de trabajos artísticos que sólo puedan encomendarse a determinadas personas naturales; | I99: CESION CONTRATO 082-2021. PRESTAR SERVICIOS PROFESIONALES PARA APOYAR LOS ASPECTOS ECONÓMICOS Y FINANCIEROS DE LAS ETAPAS PRE CONTRACTUALES, CONTRACTUALES Y POSTCONTRACTURALES DE LOS PROYECTOS DE INVERSIÓN, ASÍ COMO LA PRODUCCIÓN, CONSOLIDACIÓN Y ANÁLISIS DE DATOS, ESTADISTICAS E INFORMES DE IMPACTO DEL PLAN DE DESARROLLO DEL FONDO DE DESARROLLO LOCAL DE CHAPINERO. | J99: Inversión | L99: 57 | M99: =IF(ISERROR(VLOOKUP(L99,Proposito_programa!$C$2:$E$59,2,FALSE))," ",VLOOKUP(L99,Proposito_programa!$C$2:$E$59,2,FALSE)) -> Gestión pública local | N99: =IF(ISERROR(VLOOKUP(L99,Proposito_programa!$C$2:$E$59,3,FALSE))," ",VLOOKUP(L99,Proposito_programa!$C$2:$E$59,3,FALSE)) -> Propósito 5: Construir Bogotá - Región con gobierno abierto, transparente y ciudadanía consciente | O99: 133011605570000001741 | P99: 1 | Q99: 1016059999 | R99: CRISTIAN DANIEL VILLARREAL PARROQUIANO | S99: Persona Natural | W99: 5320000 | Y99: 1 | Z99: 8400000 | AA99: 13720000 | AB99: 13720000 | AC99: 2021-03-17 | AD99: 2021-03-17 | AE99: 2021-09-16 | AF99: 120 | AG99: 1 | AH99: =+AG99*30 -> 30 | AO99: X | AQ99: 0.9
A100: 1 | B100: 87 | C100: 2021 | D100: FDLCH-CPS-083-2021 | E100: https://community.secop.gov.co/Public/Tendering/OpportunityDetail/Index?noticeUID=CO1.NTC.1859400&isFromPublicArea=True&isModal=true&asPopupView=true | F100: Contratos de prestación de servicios profesionales y de apoyo a la gestión | G100: Contratación directa | H100: Prestación de servicios profesionales y de apoyo a la gestión, o para la ejecución de trabajos artísticos que sólo puedan encomendarse a determinadas personas naturales; | I100: Prestar servicios técnicos de apoyo a la gestión, para el desarrollo de estrategias que promuevan el uso adecuado del espacio público en el marco del proyecto “CHAPINERO ES ESPACIO PUBLICO INCLUYENTE Y DEMOCRATICO | J100: Inversión | K100: Un Nuevo Contrato Social y Ambiental para la Bogotá del Siglo XXI | L100: 45 | M100: =IF(ISERROR(VLOOKUP(L100,Proposito_programa!$C$2:$E$59,2,FALSE))," ",VLOOKUP(L100,Proposito_programa!$C$2:$E$59,2,FALSE)) -> Espacio público más seguro y construido colectivamente | N100: =IF(ISERROR(VLOOKUP(L100,Proposito_programa!$C$2:$E$59,3,FALSE))," ",VLOOKUP(L100,Proposito_programa!$C$2:$E$59,3,FALSE)) -> Propósito 3: Inspirar confianza y legitimidad para vivir sin miedo y ser epicentro de cultura ciudadana, paz y reconciliación | O100: 133011603450000001736 | P100: 1 | Q100: 15677463 | R100: JOSE GREGORIO BOLAÑO MARTINEZ | S100: Persona Natural | W100: 12000000 | Y100: 1 | Z100: 6000000 | AA100: 18000000 | AB100: 18000000 | AC100: 2021-03-23 | AD100: 2021-03-25 | AE100: 2021-09-24 | AF100: 120 | AG100: 1 | AH100: 30 | AO100: X | AQ100: 1
A101: 1 | B101: 88 | C101: 2021 | D101: FDLCH-CPS-085-2021 | E101: https://community.secop.gov.co/Public/Tendering/OpportunityDetail/Index?noticeUID=CO1.NTC.1871730&isFromPublicArea=True&isModal=true&asPopupView=true | F101: Contratos de prestación de servicios profesionales y de apoyo a la gestión | G101: Contratación directa | H101: Prestación de servicios profesionales y de apoyo a la gestión, o para la ejecución de trabajos artísticos que sólo puedan encomendarse a determinadas personas naturales; | I101: Prestar servicios profesionales de apoyo a la gestión al area de gestión del desarrollo local de la Alcaldía Local de Chapinero en la formulacion gestion ejecucion y seguimiento financiero de los contratos derivados del proyecto Chapinero Productivo y emprendedor la Estrategia de Mitigación y Reactivación Economica EMRE Local y la supervisión de contratos que le sean asignados | J101: Inversión | K101: Un Nuevo Contrato Social y Ambiental para la Bogotá del Siglo XXI | L101: 6 | M101: =IF(ISERROR(VLOOKUP(L101,Proposito_programa!$C$2:$E$59,2,FALSE))," ",VLOOKUP(L101,Proposito_programa!$C$2:$E$59,2,FALSE)) -> Sistema Distrital de Cuidado | N101: =IF(ISERROR(VLOOKUP(L101,Proposito_programa!$C$2:$E$59,3,FALSE))," ",VLOOKUP(L101,Proposito_programa!$C$2:$E$59,3,FALSE)) -> Propósito 1: Hacer un nuevo contrato social para incrementar la inclusión social, productiva y política | O101: 133011601060000001671 | P101: 1 | Q101: 60256522 | R101: NUBIA CONSTANZA MOGOLLON ACEVEDO | S101: Persona Natural | W101: 17444000 | Y101: 1 | Z101: 8722000 | AA101: 26166000 | AB101: 26166000 | AC101: 2021-03-25 | AD101: 2021-03-25 | AE101: 2021-09-24 | AF101: 120 | AG101: 1 | AH101: 30 | AO101: X | AQ101: 1
A102: 1 | B102: 89 | C102: 2021 | D102: FDLCH-CPS-087-2021 | E102: https://community.secop.gov.co/Public/Tendering/OpportunityDetail/Index?noticeUID=CO1.NTC.1875987&isFromPublicArea=True&isModal=true&asPopupView=true | F102: Contratos de prestación de servicios profesionales y de apoyo a la gestión | G102: Contratación directa | H102: Prestación de servicios profesionales y de apoyo a la gestión, o para la ejecución de trabajos artísticos que sólo puedan encomendarse a determinadas personas naturales; | I102: Prestar los servicios de apoyo a la gestión en la implementación, atención, verificación, soporte y acompañamiento de los procesos y/o actuaciones administrativas de registro y seguimiento a la propiedad horizontal en los aplicativos y/o herramientas virtuales en la localidad de Chapinero | J102: Inversión | K102: Un Nuevo Contrato Social y Ambiental para la Bogotá del Siglo XXI | L102: 57 | M102: =IF(ISERROR(VLOOKUP(L102,Proposito_programa!$C$2:$E$59,2,FALSE))," ",VLOOKUP(L102,Proposito_programa!$C$2:$E$59,2,FALSE)) -> Gestión pública local | N102: =IF(ISERROR(VLOOKUP(L102,Proposito_programa!$C$2:$E$59,3,FALSE))," ",VLOOKUP(L102,Proposito_programa!$C$2:$E$59,3,FALSE)) -> Propósito 5: Construir Bogotá - Región con gobierno abierto, transparente y ciudadanía consciente | O102: 133011605570000001741 | P102: 1 | Q102: 1026595076 | R102: VALENTINA SALGADO RODRIGUEZ | S102: Persona Natural | W102: 6000000 | Y102: 1 | Z102: 3000000 | AA102: 9000000 | AB102: 9000000 | AC102: 2021-03-26 | AD102: 2021-03-27 | AE102: 2021-08-10 | AF102: 90 | AG102: 1 | AH102: 30 | AO102: X | AQ102: 1
A103: 1 | B103: 90 | C103: 2021 | D103: FDLCH-CSE-088-2021 | E103: https://community.secop.gov.co/Public/Tendering/OpportunityDetail/Index?noticeUID=CO1.NTC.1823951&isFromPublicArea=True&isModal=False | F103: Seguros | G103: Selección abreviada | H103: Bolsas de productos | I103: Contratar los seguros que amparen los intereses patrimoniales actuales y futuros, así como los bienes de propiedad del Fondo de Desarrollo Locla de Chapinero, que esten bajo su responsabilidad y custodia y aquellos que sean adquiridos para desarrollar las funciones inherentes a su actuvidad asi coo cualquier otra póliza de seguros que requiera la entidad en el desarrollo de su actividad. | J103: Funcionamiento | K103: Un Nuevo Contrato Social y Ambiental para la Bogotá del Siglo XXI | L103: No aplica | M103: =IF(ISERROR(VLOOKUP(L103,Proposito_programa!$C$2:$E$59,2,FALSE))," ",VLOOKUP(L103,Proposito_programa!$C$2:$E$59,2,FALSE)) ->  | N103: =IF(ISERROR(VLOOKUP(L103,Proposito_programa!$C$2:$E$59,3,FALSE))," ",VLOOKUP(L103,Proposito_programa!$C$2:$E$59,3,FALSE)) ->  | O103: 131020202020107 | P103: 2 | Q103: 891700037 | R103: MAPFRE SEGUROS GENERALES DE COLOMBIA | S103: Persona Jurídica | W103: 11164339 | Y103: 1 | Z103: 4984817 | AA103: 16149156 | AB103: 30678201 | AC103: 2021-03-30 | AD103: 2021-03-30 | AE103: 2022-04-30 | AF103: 300 | AG103: 1 | AH103: 30 | AN103: X | AQ103: 1.899678287
A104: 1 | B104: 91 | C104: 2021 | D104: FDLCH-CPS-089-2021 | E104: https://community.secop.gov.co/Public/Tendering/OpportunityDetail/Index?noticeUID=CO1.NTC.1891240&isFromPublicArea=True&isModal=true&asPopupView=true | F104: Contratos de prestación de servicios profesionales y de apoyo a la gestión | G104: Contratación directa | H104: Prestación de servicios profesionales y de apoyo a la gestión, o para la ejecución de trabajos artísticos que sólo puedan encomendarse a determinadas personas naturales; | I104: Prestar servicios profesionales para apoyar la gestión, formulación, desarrollo, seguimiento y evaluación del proyecto de inversión 1738: “justicia accesible y oportuna para chapinero | J104: Inversión | K104: Un Nuevo Contrato Social y Ambiental para la Bogotá del Siglo XXI | L104: 48 | M104: =IF(ISERROR(VLOOKUP(L104,Proposito_programa!$C$2:$E$59,2,FALSE))," ",VLOOKUP(L104,Proposito_programa!$C$2:$E$59,2,FALSE)) -> Plataforma institucional para la seguridad y justicia | N104: =IF(ISERROR(VLOOKUP(L104,Proposito_programa!$C$2:$E$59,3,FALSE))," ",VLOOKUP(L104,Proposito_programa!$C$2:$E$59,3,FALSE)) -> Propósito 3: Inspirar confianza y legitimidad para vivir sin miedo y ser epicentro de cultura ciudadana, paz y reconciliación | O104: 133011603480000001738 | P104: 1 | Q104: 1010219432 | R104: SANTIAGO ALEJANDRO CARDENAS CABALLERO | S104: Persona Natural | W104: 21805000 | Y104: 1 | Z104: 10902500 | AA104: 32707500 | AB104: 32707500 | AC104: 2021-04-06 | AD104: 2021-04-06 | AE104: 2021-11-20 | AF104: 150 | AG104: 1 | AH104: 30 | AO104: X | AQ104: 1
A105: 1 | B105: 92 | C105: 2021 | D105: FDLCH-CPS-090-2021 | E105: https://community.secop.gov.co/Public/Tendering/OpportunityDetail/Index?noticeUID=CO1.NTC.1898309&isFromPublicArea=True&isModal=true&asPopupView=true | F105: Contratos de prestación de servicios profesionales y de apoyo a la gestión | G105: Contratación directa | H105: Prestación de servicios profesionales y de apoyo a la gestión, o para la ejecución de trabajos artísticos que sólo puedan encomendarse a determinadas personas naturales; | I105: Prestar los servicios de apoyo para la operación, seguimiento y cumplimiento de los procesos y procedimientos del Servicio Apoyos Económicos Tipo C, requeridos para el oportuno y adecuado registro, cruce y reporte de los datos en el Sistema Misional–SIRBE, que contribuyan a la garantía de los derechos de la población mayor en el marco de la Política Pública Social para el Envejecimiento y la Vejez en el Distrito Capital a cargo de la Alcaldía Local. | J105: Inversión | K105: Un Nuevo Contrato Social y Ambiental para la Bogotá del Siglo XXI | L105: 1 | M105: =IF(ISERROR(VLOOKUP(L105,Proposito_programa!$C$2:$E$59,2,FALSE))," ",VLOOKUP(L105,Proposito_programa!$C$2:$E$59,2,FALSE)) -> Subsidios y transferencias para la equidad | N105: =IF(ISERROR(VLOOKUP(L105,Proposito_programa!$C$2:$E$59,3,FALSE))," ",VLOOKUP(L105,Proposito_programa!$C$2:$E$59,3,FALSE)) -> Propósito 1: Hacer un nuevo contrato social para incrementar la inclusión social, productiva y política | O105: 133011601010000001815 | P105: 1 | Q105: 80449648 | R105: JUAN CARLOS AREVALO | S105: Persona Natural | W105: 15000000 | AA105: 15000000 | AB105: 15000000 | AC105: 2021-04-08 | AD105: 2021-04-09 | AE105: 2021-09-08 | AF105: 150 | AH105: 0 | AO105: X | AQ105: 1
A106: 1 | B106: 93 | C106: 2021 | D106: FDLCH-CPS-091-2021 | E106: https://community.secop.gov.co/Public/Tendering/OpportunityDetail/Index?noticeUID=CO1.NTC.1908167&isFromPublicArea=True&isModal=true&asPopupView=true | F106: Contratos de prestación de servicios profesionales y de apoyo a la gestión | G106: Contratación directa | H106: Prestación de servicios profesionales y de apoyo a la gestión, o para la ejecución de trabajos artísticos que sólo puedan encomendarse a determinadas personas naturales; | I106: Prestar servicios de apoyo a la gestion para desarrollar las actividades de radicacion y gestion de correspondencia de la documentacion que expide y se allega a la Alcaldia Local de Chapinero | J106: Inversión | K106: Un Nuevo Contrato Social y Ambiental para la Bogotá del Siglo XXI | L106: 57 | M106: =IF(ISERROR(VLOOKUP(L106,Proposito_programa!$C$2:$E$59,2,FALSE))," ",VLOOKUP(L106,Proposito_programa!$C$2:$E$59,2,FALSE)) -> Gestión pública local | N106: =IF(ISERROR(VLOOKUP(L106,Proposito_programa!$C$2:$E$59,3,FALSE))," ",VLOOKUP(L106,Proposito_programa!$C$2:$E$59,3,FALSE)) -> Propósito 5: Construir Bogotá - Región con gobierno abierto, transparente y ciudadanía consciente | O106: 133011605570000001741 | P106: 1 | Q106: 1023007285 | R106: JENNIFER MARIA SAUCEDO FUENTES | S106: Persona Natural | W106: 6400000 | AA106: 6400000 | AB106: 6400000 | AC106: 2021-04-13 | AD106: 2021-04-13 | AE106: 2021-08-12 | AF106: 120 | AH106: 0 | AO106: X | AQ106: 1
A107: 1 | B107: 94 | C107: 2021 | D107: FDLCH-CPS-092-2021 | E107: https://community.secop.gov.co/Public/Tendering/OpportunityDetail/Index?noticeUID=CO1.NTC.1901622&isFromPublicArea=True&isModal=true&asPopupView=true | F107: Contratos de prestación de servicios profesionales y de apoyo a la gestión | G107: Contratación directa | H107: Prestación de servicios profesionales y de apoyo a la gestión, o para la ejecución de trabajos artísticos que sólo puedan encomendarse a determinadas personas naturales; | I107: Prestar los servicios de apoyo necesarios para la conducción de los vehículos que conforman el parque automotor en propiedad o custodia del Fondo de Desarrollo Local de Chapinero, y el transporte de servidores públicos para la realización de las actividades misionales de la Alcaldía Local de Chapinero | J107: Inversión | K107: Un Nuevo Contrato Social y Ambiental para la Bogotá del Siglo XXI | L107: 57 | M107: =IF(ISERROR(VLOOKUP(L107,Proposito_programa!$C$2:$E$59,2,FALSE))," ",VLOOKUP(L107,Proposito_programa!$C$2:$E$59,2,FALSE)) -> Gestión pública local | N107: =IF(ISERROR(VLOOKUP(L107,Proposito_programa!$C$2:$E$59,3,FALSE))," ",VLOOKUP(L107,Proposito_programa!$C$2:$E$59,3,FALSE)) -> Propósito 5: Construir Bogotá - Región con gobierno abierto, transparente y ciudadanía consciente | O107: 133011605570000001741 | P107: 1 | Q107: 1018407451 | R107: EMERSON HERNANDO HUERTAS FONSECA | S107: Persona Natural | W107: 12000000 | Y107: 1 | Z107: 6000000 | AA107: 18000000 | AB107: 18000000 | AC107: 2021-04-09 | AD107: 2021-04-10 | AE107: 2021-11-25 | AF107: 150 | AG107: 1 | AH107: 30 | AO107: X | AQ107: 1
A108: 1 | B108: 95 | C108: 2021 | D108: FDLCH-CPS-093-2021 | E108: https://community.secop.gov.co/Public/Tendering/OpportunityDetail/Index?noticeUID=CO1.NTC.1902017&isFromPublicArea=True&isModal=true&asPopupView=true | F108: Contratos de prestación de servicios profesionales y de apoyo a la gestión | G108: Contratación directa | H108: Prestación de servicios profesionales y de apoyo a la gestión, o para la ejecución de trabajos artísticos que sólo puedan encomendarse a determinadas personas naturales; | I108: Prestar servicios para apoyar al área de gestión del desarrollo local de Chapinero, en el acompañamiento, atención, promoción y fortalecimiento de los procesos comunitarios locales de participación ciudadana, los espacios e instancias interinstitucionales que le sean asignados; así como, los procesos administrativos de los diferentes proyectos de la Alcaldía Local de Chapinero | J108: Inversión | K108: Un Nuevo Contrato Social y Ambiental para la Bogotá del Siglo XXI | L108: 57 | M108: =IF(ISERROR(VLOOKUP(L108,Proposito_programa!$C$2:$E$59,2,FALSE))," ",VLOOKUP(L108,Proposito_programa!$C$2:$E$59,2,FALSE)) -> Gestión pública local | N108: =IF(ISERROR(VLOOKUP(L108,Proposito_programa!$C$2:$E$59,3,FALSE))," ",VLOOKUP(L108,Proposito_programa!$C$2:$E$59,3,FALSE)) -> Propósito 5: Construir Bogotá - Región con gobierno abierto, transparente y ciudadanía consciente | O108: 133011605570000001741 | P108: 1 | Q108: 1014284420 | R108: LAURA DANIELA GONZALEZ PACHECO | S108: Persona Natural | W108: 18000000 | Y108: 1 | Z108: 9000000 | AA108: 27000000 | AB108: 24300000 | AC108: 2021-04-09 | AD108: 2021-04-13 | AE108: 2022-01-12 | AF108: 180 | AG108: 1 | AH108: 30 | AN108: X | AQ108: 0.9
A109: 1 | B109: 96 | C109: 2021 | D109: FDLCH-CPS-094-2021 | E109: https://community.secop.gov.co/Public/Tendering/OpportunityDetail/Index?noticeUID=CO1.NTC.1908785&isFromPublicArea=True&isModal=true&asPopupView=true | F109: Contratos de prestación de servicios profesionales y de apoyo a la gestión | G109: Contratación directa | H109: Prestación de servicios profesionales y de apoyo a la gestión, o para la ejecución de trabajos artísticos que sólo puedan encomendarse a determinadas personas naturales; | I109: Prestar servicios profesionales de apoyo a la gestión, formulación, desarrollo, seguimiento y evaluación de los proyectos del sector educación. | J109: Inversión | K109: Un Nuevo Contrato Social y Ambiental para la Bogotá del Siglo XXI | L109: 17 | M109: =IF(ISERROR(VLOOKUP(L109,Proposito_programa!$C$2:$E$59,2,FALSE))," ",VLOOKUP(L109,Proposito_programa!$C$2:$E$59,2,FALSE)) -> Jóvenes con capacidades: Proyecto de vida para la ciudadanía, la innovación y el trabajo del siglo XXI | N109: =IF(ISERROR(VLOOKUP(L109,Proposito_programa!$C$2:$E$59,3,FALSE))," ",VLOOKUP(L109,Proposito_programa!$C$2:$E$59,3,FALSE)) -> Propósito 1: Hacer un nuevo contrato social para incrementar la inclusión social, productiva y política | O109: 133011601170000001743 | P109: 1 | Q109: 52169417 | R109: SANDRA LILIANA ERAZO ISRAEL | S109: Persona Natural | W109: 17444000 | AA109: 17444000 | AB109: 17444000 | AC109: 2021-04-13 | AD109: 2021-04-14 | AE109: 2021-08-13 | AF109: 120 | AH109: 0 | AO109: X | AQ109: 1
A110: 1 | B110: 97 | C110: 2021 | D110: FDLCH-CPS-095 | E110: https://community.secop.gov.co/Public/Tendering/OpportunityDetail/Index?noticeUID=CO1.NTC.1901443&isFromPublicArea=True&isModal=true&asPopupView=true | F110: Contratos de prestación de servicios profesionales y de apoyo a la gestión | G110: Contratación directa | H110: Prestación de servicios profesionales y de apoyo a la gestión, o para la ejecución de trabajos artísticos que sólo puedan encomendarse a determinadas personas naturales; | I110: Brindar apoyo en la implementación de acciones del plan local de convivencia, seguridad y justicia y el desarrollo de estrategias de dialogo, mediación, convivencia y prevención de conflictividades, violencias y delitos en la localidad de chapinero, para mejorar la seguridad y convivencia | J110: Inversión | K110: Un Nuevo Contrato Social y Ambiental para la Bogotá del Siglo XXI | L110: 48 | M110: =IF(ISERROR(VLOOKUP(L110,Proposito_programa!$C$2:$E$59,2,FALSE))," ",VLOOKUP(L110,Proposito_programa!$C$2:$E$59,2,FALSE)) -> Plataforma institucional para la seguridad y justicia | N110: =IF(ISERROR(VLOOKUP(L110,Proposito_programa!$C$2:$E$59,3,FALSE))," ",VLOOKUP(L110,Proposito_programa!$C$2:$E$59,3,FALSE)) -> Propósito 3: Inspirar confianza y legitimidad para vivir sin miedo y ser epicentro de cultura ciudadana, paz y reconciliación | O110: 133011603480000001738 | P110: 1 | Q110: 1022364268 | R110: LUIS ALEJANDRO MARTINEZ MARTINEZ | S110: Persona Natural | W110: 14700000 | AA110: 14700000 | AB110: 14700000 | AC110: 2021-04-09 | AD110: 2021-04-10 | AE110: 2021-10-09 | AF110: 180 | AH110: 0 | AO110: X | AQ110: 1
A111: 1 | B111: 98 | C111: 2021 | D111: FDLCH-CPS-096-2021 | E111: https://community.secop.gov.co/Public/Tendering/OpportunityDetail/Index?noticeUID=CO1.NTC.1901609&isFromPublicArea=True&isModal=true&asPopupView=true | F111: Contratos de prestación de servicios profesionales y de apoyo a la gestión | G111: Contratación directa | H111: Prestación de servicios profesionales y de apoyo a la gestión, o para la ejecución de trabajos artísticos que sólo puedan encomendarse a determinadas personas naturales; | I111: Brindar apoyo en la implementación de acciones del plan local de convivencia seguridad y justicia y el desarrollo de estrategias de dialogo, mediación convivencia y prevención de conflictividades violencias y delitos en la localidad de chapinero, para mejorar la seguridad y convivencia | J111: Inversión | K111: Un Nuevo Contrato Social y Ambiental para la Bogotá del Siglo XXI | L111: 48 | M111: =IF(ISERROR(VLOOKUP(L111,Proposito_programa!$C$2:$E$59,2,FALSE))," ",VLOOKUP(L111,Proposito_programa!$C$2:$E$59,2,FALSE)) -> Plataforma institucional para la seguridad y justicia | N111: =IF(ISERROR(VLOOKUP(L111,Proposito_programa!$C$2:$E$59,3,FALSE))," ",VLOOKUP(L111,Proposito_programa!$C$2:$E$59,3,FALSE)) -> Propósito 3: Inspirar confianza y legitimidad para vivir sin miedo y ser epicentro de cultura ciudadana, paz y reconciliación | O111: 133011603480000001738 | P111: 1 | Q111: 1000251989 | R111: PAULA ANDREA BERNAL SALDAÑA | S111: Persona Natural | W111: 14700000 | AA111: 14700000 | AB111: 14700000 | AC111: 2021-04-09 | AD111: 2021-04-10 | AE111: 2021-10-09 | AF111: 180 | AH111: 0 | AO111: X | AQ111: 1
A112: 1 | B112: 99 | C112: 2021 | D112: FDLCH-CPS-097-2021 | E112: https://community.secop.gov.co/Public/Tendering/OpportunityDetail/Index?noticeUID=CO1.NTC.1902009&isFromPublicArea=True&isModal=true&asPopupView=true | F112: Contratos de prestación de servicios profesionales y de apoyo a la gestión | G112: Contratación directa | H112: Prestación de servicios profesionales y de apoyo a la gestión, o para la ejecución de trabajos artísticos que sólo puedan encomendarse a determinadas personas naturales; | I112: Brindar apoyo en la implementacion de acciones del plan local de convivencia seguridad y justicia y el desarrollo de estrategias de dialogo, mediacion convivencia y prevención de conflictividades violencias y delitos en la localidad de chapinero, para mejorar la seguridad y convivencia | J112: Inversión | K112: Un Nuevo Contrato Social y Ambiental para la Bogotá del Siglo XXI | L112: 48 | M112: =IF(ISERROR(VLOOKUP(L112,Proposito_programa!$C$2:$E$59,2,FALSE))," ",VLOOKUP(L112,Proposito_programa!$C$2:$E$59,2,FALSE)) -> Plataforma institucional para la seguridad y justicia | N112: =IF(ISERROR(VLOOKUP(L112,Proposito_programa!$C$2:$E$59,3,FALSE))," ",VLOOKUP(L112,Proposito_programa!$C$2:$E$59,3,FALSE)) -> Propósito 3: Inspirar confianza y legitimidad para vivir sin miedo y ser epicentro de cultura ciudadana, paz y reconciliación | O112: 133011603480000001738 | P112: 1 | Q112: 1015996478 | R112: JEAN MICHEL ALBARRACIN MERCADO | S112: Persona Natural | W112: 14700000 | AA112: 14700000 | AB112: 14700000 | AC112: 2021-04-09 | AD112: 2021-04-10 | AE112: 2021-10-09 | AF112: 180 | AH112: 0 | AO112: X | AQ112: 1
A113: 1 | B113: 100 | C113: 2021 | D113: FDLCH-CPS-098-2021 | E113: https://community.secop.gov.co/Public/Tendering/OpportunityDetail/Index?noticeUID=CO1.NTC.1909417&isFromPublicArea=True&isModal=true&asPopupView=true | F113: Contratos de prestación de servicios profesionales y de apoyo a la gestión | G113: Contratación directa | H113: Prestación de servicios profesionales y de apoyo a la gestión, o para la ejecución de trabajos artísticos que sólo puedan encomendarse a determinadas personas naturales; | I113: Prestación de servicios de apoyo en la gestión de los asuntos relacionados con la comunicación ciudadana para la seguridad ciudadana, la convivencia y la prevención de conflictividades, violencias y delitos en la localidad de Chapinero, en el marco del proyecto “Chapinero promueve y genera confianza ciudadana”. | J113: Inversión | K113: Un Nuevo Contrato Social y Ambiental para la Bogotá del Siglo XXI | L113: 43 | M113: =IF(ISERROR(VLOOKUP(L113,Proposito_programa!$C$2:$E$59,2,FALSE))," ",VLOOKUP(L113,Proposito_programa!$C$2:$E$59,2,FALSE)) -> Cultura ciudadana para la confianza, la convivencia y la participación desde la vida cotidiana | N113: =IF(ISERROR(VLOOKUP(L113,Proposito_programa!$C$2:$E$59,3,FALSE))," ",VLOOKUP(L113,Proposito_programa!$C$2:$E$59,3,FALSE)) -> Propósito 3: Inspirar confianza y legitimidad para vivir sin miedo y ser epicentro de cultura ciudadana, paz y reconciliación | O113: 133011603430000001735 | P113: 1 | Q113: 51646432 | R113: MARTHA PATRICIA MUÑOZ RUIZ | S113: Persona Natural | W113: 19200000 | Y113: 1 | Z113: 9600000 | AA113: 28800000 | AB113: 25813333 | AC113: 2021-04-13 | AD113: 2021-04-14 | AE113: 2022-01-13 | AF113: 180 | AG113: 1 | AH113: 30 | AN113: X | AQ113: 0.8962962847
A114: 1 | B114: 101 | C114: 2021 | D114: FDLCH-CPS-099-2021 | E114: https://community.secop.gov.co/Public/Tendering/OpportunityDetail/Index?noticeUID=CO1.NTC.1911307&isFromPublicArea=True&isModal=true&asPopupView=true | F114: Contratos de prestación de servicios profesionales y de apoyo a la gestión | G114: Contratación directa | H114: Prestación de servicios profesionales y de apoyo a la gestión, o para la ejecución de trabajos artísticos que sólo puedan encomendarse a determinadas personas naturales; | I114: Prestar servicios profesionales para apoyar la gestión precontractual, contractual y pos contractual que adelante el fondo de desarrollo local de chapinero | J114: Inversión | K114: Un Nuevo Contrato Social y Ambiental para la Bogotá del Siglo XXI | L114: 57 | M114: =IF(ISERROR(VLOOKUP(L114,Proposito_programa!$C$2:$E$59,2,FALSE))," ",VLOOKUP(L114,Proposito_programa!$C$2:$E$59,2,FALSE)) -> Gestión pública local | N114: =IF(ISERROR(VLOOKUP(L114,Proposito_programa!$C$2:$E$59,3,FALSE))," ",VLOOKUP(L114,Proposito_programa!$C$2:$E$59,3,FALSE)) -> Propósito 5: Construir Bogotá - Región con gobierno abierto, transparente y ciudadanía consciente | O114: 133011605570000001741 | P114: 1 | Q114: 79373304 | R114: ANDERSON MEJIA GARZON | S114: Persona Natural | W114: 21805000 | AA114: 21805000 | AB114: 21805000 | AC114: 2021-04-14 | AD114: 2021-04-14 | AE114: 2021-09-13 | AF114: 150 | AH114: 0 | AO114: X | AQ114: 1
A115: 1 | B115: 102 | C115: 2021 | D115: FDLCH-CPS-100-2021 | E115: https://community.secop.gov.co/Public/Tendering/OpportunityDetail/Index?noticeUID=CO1.NTC.1927255&isFromPublicArea=True&isModal=true&asPopupView=true | F115: Contratos de prestación de servicios profesionales y de apoyo a la gestión | G115: Contratación directa | H115: Prestación de servicios profesionales y de apoyo a la gestión, o para la ejecución de trabajos artísticos que sólo puedan encomendarse a determinadas personas naturales; | I115: Prestar los servicios de apoyo necesarios para la conducción de los vehículos que conforman el parque automotor en propiedad o custodia del Fondo de Desarrollo Local de Chapinero, y el transporte de servidores públicos para la realización de las actividades misionales de la Alcaldía Local de Chapinero. | J115: Inversión | K115: Un Nuevo Contrato Social y Ambiental para la Bogotá del Siglo XXI | L115: 57 | M115: =IF(ISERROR(VLOOKUP(L115,Proposito_programa!$C$2:$E$59,2,FALSE))," ",VLOOKUP(L115,Proposito_programa!$C$2:$E$59,2,FALSE)) -> Gestión pública local | N115: =IF(ISERROR(VLOOKUP(L115,Proposito_programa!$C$2:$E$59,3,FALSE))," ",VLOOKUP(L115,Proposito_programa!$C$2:$E$59,3,FALSE)) -> Propósito 5: Construir Bogotá - Región con gobierno abierto, transparente y ciudadanía consciente | O115: 133011605570000001741 | P115: 1 | Q115: 1070704250 | R115: WILMER ANDRES MALDONADO RAMIREZ | S115: Persona Natural | W115: 12000000 | Y115: 1 | Z115: 6000000 | AA115: 18000000 | AB115: 18000000 | AC115: 2021-04-21 | AD115: 2021-04-22 | AE115: 2021-12-06 | AF115: 150 | AG115: 1 | AH115: 30 | AO115: X | AQ115: 1
A116: 1 | B116: 103 | C116: 2021 | D116: FDLCH-CPS-101-2021 | E116: https://community.secop.gov.co/Public/Tendering/OpportunityDetail/Index?noticeUID=CO1.NTC.1926558&isFromPublicArea=True&isModal=true&asPopupView=true | F116: Contratos de prestación de servicios profesionales y de apoyo a la gestión | G116: Contratación directa | H116: Prestación de servicios profesionales y de apoyo a la gestión, o para la ejecución de trabajos artísticos que sólo puedan encomendarse a determinadas personas naturales; | I116: Prestar servicios técnicos para apoyo a la gestión, formulación, desarrollo y seguimieno del proyecto de inversión No. 1731 "CHAPINERO DEJANDO HUELLA POR LOS ANIMALES" | J116: Inversión | K116: Un Nuevo Contrato Social y Ambiental para la Bogotá del Siglo XXI | L116: 34 | M116: =IF(ISERROR(VLOOKUP(L116,Proposito_programa!$C$2:$E$59,2,FALSE))," ",VLOOKUP(L116,Proposito_programa!$C$2:$E$59,2,FALSE)) -> Bogotá protectora de los animales | N116: =IF(ISERROR(VLOOKUP(L116,Proposito_programa!$C$2:$E$59,3,FALSE))," ",VLOOKUP(L116,Proposito_programa!$C$2:$E$59,3,FALSE)) -> Propósito 2 : Cambiar Nuestros Hábitos de Vida para Reverdecer a Bogotá y Adaptarnos y Mitigar la Crisis Climática | O116: 133011602340000001731 | P116: 1 | Q116: 1022411110 | R116: VERONICA SIMONA MARTINEZ AREVALO | S116: Persona Natural | W116: 13500000 | Y116: 1 | Z116: 6750000 | AA116: 20250000 | AB116: 16650000 | AC116: 2021-04-22 | AD116: 2021-04-26 | AE116: 2021-12-10 | AF116: 150 | AG116: 1 | AH116: 30 | AO116: X | AQ116: 0.8222222222
A117: 1 | B117: 104 | C117: 2021 | D117: FDLCH-CPS-102-2021 | E117: https://community.secop.gov.co/Public/Tendering/OpportunityDetail/Index?noticeUID=CO1.NTC.1927329&isFromPublicArea=True&isModal=true&asPopupView=true | F117: Contratos de prestación de servicios profesionales y de apoyo a la gestión | G117: Contratación directa | H117: Prestación de servicios profesionales y de apoyo a la gestión, o para la ejecución de trabajos artísticos que sólo puedan encomendarse a determinadas personas naturales; | I117: Prestar los servicios profesionales para la gestión, formulación, desarrollo, seguimiento y evaluación del proyecto 1739 “Chapinero liderado por la ciudadanía”, así como el apoyo a la supervisión de los contratos que le sean asignados por el Alcalde Local | J117: Inversión | K117: Un Nuevo Contrato Social y Ambiental para la Bogotá del Siglo XXI | L117: 55 | M117: =IF(ISERROR(VLOOKUP(L117,Proposito_programa!$C$2:$E$59,2,FALSE))," ",VLOOKUP(L117,Proposito_programa!$C$2:$E$59,2,FALSE)) -> Fortalecimiento de cultura ciudadana y su institucionalidad | N117: =IF(ISERROR(VLOOKUP(L117,Proposito_programa!$C$2:$E$59,3,FALSE))," ",VLOOKUP(L117,Proposito_programa!$C$2:$E$59,3,FALSE)) -> Propósito 5: Construir Bogotá - Región con gobierno abierto, transparente y ciudadanía consciente | O117: 133011605550000001739 | P117: 1 | Q117: 80092921 | R117: FEDERICO SANTIAGO BALLESTEROS | S117: Persona Natural | W117: 17444000 | AA117: 17444000 | AB117: 17444000 | AC117: 2021-04-22 | AD117: 2021-04-22 | AE117: 2021-08-21 | AF117: 120 | AH117: 0 | AO117: X | AQ117: 1
A118: 1 | B118: 105 | C118: 2021 | D118: FDLCH-CPS-103-2021 | E118: https://community.secop.gov.co/Public/Tendering/OpportunityDetail/Index?noticeUID=CO1.NTC.1936898&isFromPublicArea=True&isModal=true&asPopupView=true | F118: Contratos de prestación de servicios profesionales y de apoyo a la gestión | G118: Contratación directa | H118: Prestación de servicios profesionales y de apoyo a la gestión, o para la ejecución de trabajos artísticos que sólo puedan encomendarse a determinadas personas naturales; | I118: Prestar servicios de apoyo a la gestión para desarrollar las actividades de atención y orientación al ciudadano que se requieran en las instalaciones de la Alcaldía local de Chapinero. | J118: Inversión | K118: Un Nuevo Contrato Social y Ambiental para la Bogotá del Siglo XXI | L118: 57 | M118: =IF(ISERROR(VLOOKUP(L118,Proposito_programa!$C$2:$E$59,2,FALSE))," ",VLOOKUP(L118,Proposito_programa!$C$2:$E$59,2,FALSE)) -> Gestión pública local | N118: =IF(ISERROR(VLOOKUP(L118,Proposito_programa!$C$2:$E$59,3,FALSE))," ",VLOOKUP(L118,Proposito_programa!$C$2:$E$59,3,FALSE)) -> Propósito 5: Construir Bogotá - Región con gobierno abierto, transparente y ciudadanía consciente | O118: 133011605570000001741 | P118: 1 | Q118: 1018478763 | R118: YANN SEBASTIAN AREVALO MORALES | S118: Persona Natural | W118: 6400000 | AA118: 6400000 | AB118: 6400000 | AC118: 2021-04-26 | AD118: 2021-04-27 | AE118: 2021-09-06 | AF118: 120 | AH118: 0 | AO118: X | AQ118: 1
A119: 1 | B119: 106 | C119: 2021 | D119: FDLCH-CPS-104-2021 | E119: https://community.secop.gov.co/Public/Common/GoogleReCaptcha/Index?isModal=True&asPopupView=True&previousUrl=https%3a%2f%2fcommunity.secop.gov.co%2fPublic%2fTendering%2fOpportunityDetail%2fIndex%3fnoticeUID%3dCO1.NTC.1941890%26isFromPublicArea%3dTrue%26isModal%3dtrue%26asPopupView%3dtrue | F119: Contratos de prestación de servicios profesionales y de apoyo a la gestión | G119: Contratación directa | H119: Prestación de servicios profesionales y de apoyo a la gestión, o para la ejecución de trabajos artísticos que sólo puedan encomendarse a determinadas personas naturales; | I119: Prestar servicios profesionales de apoyo para la gestión y formulación desarrollo y seguimiento del proyecto de inversión No. 1715 Chapinero restaurador y cuidador del territorio. | J119: Inversión | K119: Un Nuevo Contrato Social y Ambiental para la Bogotá del Siglo XXI | L119: 28 | M119: =IF(ISERROR(VLOOKUP(L119,Proposito_programa!$C$2:$E$59,2,FALSE))," ",VLOOKUP(L119,Proposito_programa!$C$2:$E$59,2,FALSE)) -> Bogotá protectora de sus recursos naturales | N119: =IF(ISERROR(VLOOKUP(L119,Proposito_programa!$C$2:$E$59,3,FALSE))," ",VLOOKUP(L119,Proposito_programa!$C$2:$E$59,3,FALSE)) -> Propósito 2 : Cambiar Nuestros Hábitos de Vida para Reverdecer a Bogotá y Adaptarnos y Mitigar la Crisis Climática | O119: 133011602280000001715 | P119: 1 | Q119: 11442710 | R119: TITO FABIAN RUIZ BARAJAS | S119: Persona Natural | W119: 19200000 | AA119: 19200000 | AB119: 18560000 | AC119: 2021-05-03 | AD119: 2021-05-05 | AE119: 2021-09-04 | AF119: 120 | AH119: 0 | AO119: X | AQ119: 0.9666666667
A120: 1 | B120: 107 | C120: 2021 | D120: FDLCH-CPS-105-2021 | E120: https://community.secop.gov.co/Public/Tendering/OpportunityDetail/Index?noticeUID=CO1.NTC.1937415&isFromPublicArea=True&isModal=true&asPopupView=true | F120: Contratos de prestación de servicios profesionales y de apoyo a la gestión | G120: Contratación directa | H120: Prestación de servicios profesionales y de apoyo a la gestión, o para la ejecución de trabajos artísticos que sólo puedan encomendarse a determinadas personas naturales; | I120: Prestar servicios profesionales para apoyar al alcalde local en la promoción, articulación, acompañamiento y seguimiento para la atención y protección de los animales domésticos y silvestres de la localidad | J120: Inversión | K120: Un Nuevo Contrato Social y Ambiental para la Bogotá del Siglo XXI | L120: 34 | M120: =IF(ISERROR(VLOOKUP(L120,Proposito_programa!$C$2:$E$59,2,FALSE))," ",VLOOKUP(L120,Proposito_programa!$C$2:$E$59,2,FALSE)) -> Bogotá protectora de los animales | N120: =IF(ISERROR(VLOOKUP(L120,Proposito_programa!$C$2:$E$59,3,FALSE))," ",VLOOKUP(L120,Proposito_programa!$C$2:$E$59,3,FALSE)) -> Propósito 2 : Cambiar Nuestros Hábitos de Vida para Reverdecer a Bogotá y Adaptarnos y Mitigar la Crisis Climática | O120: 133011602340000001731 | P120: 1 | Q120: 33366680 | R120: FRANCY PAOLA MONROY ALVAREZ | S120: Persona Natural | W120: 19200000 | AA120: 19200000 | AB120: 19200000 | AC120: 2021-04-26 | AD120: 2021-04-27 | AE120: 2021-08-26 | AF120: 120 | AH120: 0 | AO120: X | AQ120: 1
A121: 1 | B121: 108 | C121: 2021 | D121: FDLCH-CPS-106-2021 | E121: https://community.secop.gov.co/Public/Tendering/OpportunityDetail/Index?noticeUID=CO1.NTC.1941882&isFromPublicArea=True&isModal=true&asPopupView=true | F121: Contratos de prestación de servicios profesionales y de apoyo a la gestión | G121: Contratación directa | H121: Prestación de servicios profesionales y de apoyo a la gestión, o para la ejecución de trabajos artísticos que sólo puedan encomendarse a determinadas personas naturales; | I121: Prestar servicios técnicos para apoyar la gestión jurídica en la ejecución de las actividades administrativas y documentales con contenido jurídico, relacionadas con los procesos de inspección, vigilancia y control que adelanta la Alcaldía Local de Chapinero | J121: Inversión | K121: Un Nuevo Contrato Social y Ambiental para la Bogotá del Siglo XXI | L121: 57 | M121: =IF(ISERROR(VLOOKUP(L121,Proposito_programa!$C$2:$E$59,2,FALSE))," ",VLOOKUP(L121,Proposito_programa!$C$2:$E$59,2,FALSE)) -> Gestión pública local | N121: =IF(ISERROR(VLOOKUP(L121,Proposito_programa!$C$2:$E$59,3,FALSE))," ",VLOOKUP(L121,Proposito_programa!$C$2:$E$59,3,FALSE)) -> Propósito 5: Construir Bogotá - Región con gobierno abierto, transparente y ciudadanía consciente | O121: 133011605570000001841 | P121: 1 | Q121: 52524843 | R121: YADY MATILDE MORENO VARGAS | S121: Persona Natural | W121: 10500000 | AA121: 10500000 | AB121: 10266667 | AC121: 2021-04-28 | AD121: 2021-05-03 | AE121: 2021-08-02 | AF121: 90 | AH121: 0 | AO121: X | AQ121: 0.9777778095
A122: 1 | B122: 109 | C122: 2021 | D122: FDLCH-CPS-107-2021 | E122: https://community.secop.gov.co/Public/Tendering/OpportunityDetail/Index?noticeUID=CO1.NTC.1951575&isFromPublicArea=True&isModal=true&asPopupView=true | F122: Contratos de prestación de servicios profesionales y de apoyo a la gestión | G122: Contratación directa | H122: Prestación de servicios profesionales y de apoyo a la gestión, o para la ejecución de trabajos artísticos que sólo puedan encomendarse a determinadas personas naturales; | I122: Prestación de servicios personales de apoyo a la getión necesarios para el apoyo en la ejecución de actividades administrativas y operativas adelantadas en la Junta Administrativa Local de Chapinero. | J122: Inversión | K122: Un Nuevo Contrato Social y Ambiental para la Bogotá del Siglo XXI | L122: 57 | M122: =IF(ISERROR(VLOOKUP(L122,Proposito_programa!$C$2:$E$59,2,FALSE))," ",VLOOKUP(L122,Proposito_programa!$C$2:$E$59,2,FALSE)) -> Gestión pública local | N122: =IF(ISERROR(VLOOKUP(L122,Proposito_programa!$C$2:$E$59,3,FALSE))," ",VLOOKUP(L122,Proposito_programa!$C$2:$E$59,3,FALSE)) -> Propósito 5: Construir Bogotá - Región con gobierno abierto, transparente y ciudadanía consciente | O122: 133011605570000001741 | P122: 1 | Q122: 52523548 | R122: SANDRA MILENA GOMEZ SALAZAR | S122: Persona Natural | W122: 14880000 | Y122: 1 | Z122: 5082667 | AA122: 19962667 | AB122: 18269333 | AC122: 2021-05-05 | AD122: 2021-05-05 | AE122: 2022-01-05 | AF122: 180 | AG122: 1 | AH122: 30 | AO122: X | AQ122: 0.9151749613
A123: 1 | B123: 110 | C123: 2021 | D123: FDLCH-CPS-108-2021 | E123: https://community.secop.gov.co/Public/Tendering/OpportunityDetail/Index?noticeUID=CO1.NTC.1947372&isFromPublicArea=True&isModal=true&asPopupView=true | F123: Contratos de prestación de servicios profesionales y de apoyo a la gestión | G123: Contratación directa | H123: Prestación de servicios profesionales y de apoyo a la gestión, o para la ejecución de trabajos artísticos que sólo puedan encomendarse a determinadas personas naturales; | I123: Prestación de servicios personales de apoyo a la gestión necesarios para el apoyo en la ejecución de actividades administrativas y operativas adelantadas en la Junta Administradora Local de Chapinero. | J123: Inversión | K123: Un Nuevo Contrato Social y Ambiental para la Bogotá del Siglo XXI | L123: 57 | M123: =IF(ISERROR(VLOOKUP(L123,Proposito_programa!$C$2:$E$59,2,FALSE))," ",VLOOKUP(L123,Proposito_programa!$C$2:$E$59,2,FALSE)) -> Gestión pública local | N123: =IF(ISERROR(VLOOKUP(L123,Proposito_programa!$C$2:$E$59,3,FALSE))," ",VLOOKUP(L123,Proposito_programa!$C$2:$E$59,3,FALSE)) -> Propósito 5: Construir Bogotá - Región con gobierno abierto, transparente y ciudadanía consciente | O123: 133011605570000001741 | P123: 1 | Q123: 1018448341 | R123: PEDRO ANGEL ZABALETA POLO | S123: Persona Natural | W123: 14880000 | Y123: 1 | Z123: 5208000 | AA123: 20088000 | AB123: 18434667 | AC123: 2021-05-03 | AD123: 2021-05-03 | AE123: 2022-01-05 | AF123: 180 | AG123: 1 | AH123: 30 | AO123: X | AQ123: 0.9176954898
A124: 1 | B124: 111 | C124: 2021 | D124: FDLCH-CPS-109-2021 | E124: https://community.secop.gov.co/Public/Tendering/OpportunityDetail/Index?noticeUID=CO1.NTC.1956922&isFromPublicArea=True&isModal=true&asPopupView=true | F124: Contratos de prestación de servicios profesionales y de apoyo a la gestión | G124: Contratación directa | H124: Prestación de servicios profesionales y de apoyo a la gestión, o para la ejecución de trabajos artísticos que sólo puedan encomendarse a determinadas personas naturales; | I124: Prestar los servicios de apoyo para la operación, seguimiento y cumplimiento de los procesos y procedimientos del Servicio de salud, que contribuyan a la garantía de los derechos de los diferentes grupos poblacionales en el marco de las Políticas Públicas de los proyectos relacionados con los temas de salud, en cumplimiento de las metas y objetivos del Plan de Desarrollo Local. | J124: Inversión | K124: Un Nuevo Contrato Social y Ambiental para la Bogotá del Siglo XXI | L124: 1 | M124: =IF(ISERROR(VLOOKUP(L124,Proposito_programa!$C$2:$E$59,2,FALSE))," ",VLOOKUP(L124,Proposito_programa!$C$2:$E$59,2,FALSE)) -> Subsidios y transferencias para la equidad | N124: =IF(ISERROR(VLOOKUP(L124,Proposito_programa!$C$2:$E$59,3,FALSE))," ",VLOOKUP(L124,Proposito_programa!$C$2:$E$59,3,FALSE)) -> Propósito 1: Hacer un nuevo contrato social para incrementar la inclusión social, productiva y política | O124: 133011601060000002024 | P124: 1 | Q124: 52428639 | R124: LILIANA RUIZ JIMENEZ | S124: Persona Natural | W124: 13200000 | Y124: 1 | Z124: 5133333 | AA124: 18333333 | AB124: 16133333 | AC124: 2021-05-05 | AD124: 2021-05-05 | AE124: 2022-01-15 | AF124: 180 | AG124: 1 | AH124: 30 | AN124: X | AQ124: 0.8799999978
A125: 1 | B125: 112 | C125: 2021 | D125: FDLCH-CPS-110-2021 | E125: https://community.secop.gov.co/Public/Tendering/OpportunityDetail/Index?noticeUID=CO1.NTC.1959040&isFromPublicArea=True&isModal=true&asPopupView=true | F125: Contratos de prestación de servicios profesionales y de apoyo a la gestión | G125: Contratación directa | H125: Prestación de servicios profesionales y de apoyo a la gestión, o para la ejecución de trabajos artísticos que sólo puedan encomendarse a determinadas personas naturales; | I125: Prestar servicios profesionales para coordinar, liderar y asesorar los planes y estrategias de comunicación interna y externa para la divulgación de los programas, proyectos y actividades de la Alcaldía Local | J125: Inversión | K125: Un Nuevo Contrato Social y Ambiental para la Bogotá del Siglo XXI | L125: 57 | M125: =IF(ISERROR(VLOOKUP(L125,Proposito_programa!$C$2:$E$59,2,FALSE))," ",VLOOKUP(L125,Proposito_programa!$C$2:$E$59,2,FALSE)) -> Gestión pública local | N125: =IF(ISERROR(VLOOKUP(L125,Proposito_programa!$C$2:$E$59,3,FALSE))," ",VLOOKUP(L125,Proposito_programa!$C$2:$E$59,3,FALSE)) -> Propósito 5: Construir Bogotá - Región con gobierno abierto, transparente y ciudadanía consciente | O125: 133011605570000001741 | P125: 1 | Q125: 1026259433 | R125: HAYDIBERS ARREDONDO BAUTISTA | S125: Persona Natural | W125: 33000000 | AA125: 33000000 | AB125: 33000000 | AC125: 2021-05-06 | AD125: 2021-05-07 | AE125: 2021-11-06 | AF125: 180 | AH125: 0 | AO125: X | AQ125: 1
A126: 1 | B126: 113 | C126: 2021 | D126: FDLCH-CPS-111-2021 | E126: https://colombiacompra.gov.co/tienda-virtual-del-estado-colombiano/ordenes-compra/68635 | F126: Contratos de prestación de servicios | G126: Selección abreviada | H126: Selección abreviada por menor cuantía | I126: PRESTAR SERVICIOS DE MANTENIMIENTO PREVENTIVO Y CORRECTIVO PARA EL PARQUE AUTOMOTOR DE PROPIEDAD DEL FONDO DE DESARROLLO LOCAL DE CHAPINERO, ÁSI COMO EL SUMINISTRO DE REPUESTOS QUE REQUIERA EL MISMO EN LAS CONDICIONES DEL ACUERDO MARCO DE PRECIOS NÚMERO CCE-286-AMP-2020 | J126: Funcionamiento | K126: Un Nuevo Contrato Social y Ambiental para la Bogotá del Siglo XXI | L126: No aplica | M126: =IF(ISERROR(VLOOKUP(L126,Proposito_programa!$C$2:$E$59,2,FALSE))," ",VLOOKUP(L126,Proposito_programa!$C$2:$E$59,2,FALSE)) ->  | N126: =IF(ISERROR(VLOOKUP(L126,Proposito_programa!$C$2:$E$59,3,FALSE))," ",VLOOKUP(L126,Proposito_programa!$C$2:$E$59,3,FALSE)) ->  | O126: 131020202030604 | P126: 4 | Q126: 900110012 | R126: MORARCI GROUP SAS | S126: Persona Jurídica | W126: 10000000 | Y126: 1 | Z126: 5000000 | AA126: 15000000 | AB126: 9857044 | AC126: 2021-05-10 | AD126: 2021-05-10 | AE126: 2022-05-09 | AF126: 360 | AH126: 0 | AN126: X | AQ126: 0.6571362667
A127: 1 | B127: 114 | C127: 2021 | D127: FDLCH-CPS-112-2021 | E127: https://colombiacompra.gov.co/tienda-virtual-del-estado-colombiano/ordenes-compra/68634 | F127: Contratos de prestación de servicios | G127: Selección abreviada | H127: Selección abreviada por menor cuantía | I127: PRESTAR SERVICIOS DE MANTENIMIENTO PREVENTIVO Y CORRECTIVO PARA EL PARQUE AUTOMOTOR DE PROPIEDAD DEL FONDO DE DESARROLLO LOCAL DE CHAPINERO, ÁSI COMO EL SUMINISTRO DE REPUESTOS QUE REQUIERA EL MISMO EN LAS CONDICIONES DEL ACUERDO MARCO DE PRECIOS NÚMERO CCE-286-AMP-2020 | J127: Funcionamiento | K127: Un Nuevo Contrato Social y Ambiental para la Bogotá del Siglo XXI | L127: No aplica | M127: =IF(ISERROR(VLOOKUP(L127,Proposito_programa!$C$2:$E$59,2,FALSE))," ",VLOOKUP(L127,Proposito_programa!$C$2:$E$59,2,FALSE)) ->  | N127: =IF(ISERROR(VLOOKUP(L127,Proposito_programa!$C$2:$E$59,3,FALSE))," ",VLOOKUP(L127,Proposito_programa!$C$2:$E$59,3,FALSE)) ->  | O127: 131020202030604 | P127: 4 | Q127: 830031296 | R127: CENTRO INTEGRAL DE MANTENIMIENTO AUTOCARS SAS | S127: Persona Jurídica | W127: 4000000 | Y127: 1 | Z127: 2000000 | AA127: 6000000 | AB127: 1598408 | AC127: 2021-05-10 | AD127: 2021-05-10 | AE127: 2022-05-09 | AF127: 360 | AH127: 0 | AN127: X | AQ127: 0.2664013333
A128: 1 | B128: 115 | C128: 2021 | D128: FDLCH-CPS-113-2021 | E128: https://colombiacompra.gov.co/tienda-virtual-del-estado-colombiano/ordenes-compra/68633 | F128: Contratos de prestación de servicios | G128: Selección abreviada | H128: Selección abreviada por menor cuantía | I128: PRESTAR SERVICIOS DE MANTENIMIENTO PREVENTIVO Y CORRECTIVO PARA EL PARQUE AUTOMOTOR DE PROPIEDAD DEL FONDO DE DESARROLLO LOCAL DE CHAPINERO, ÁSI COMO EL SUMINISTRO DE REPUESTOS QUE REQUIERA EL MISMO EN LAS CONDICIONES DEL ACUERDO MARCO DE PRECIOS NÚMERO CCE-286-AMP-2020 | J128: Funcionamiento | K128: Un Nuevo Contrato Social y Ambiental para la Bogotá del Siglo XXI | L128: No aplica | M128: =IF(ISERROR(VLOOKUP(L128,Proposito_programa!$C$2:$E$59,2,FALSE))," ",VLOOKUP(L128,Proposito_programa!$C$2:$E$59,2,FALSE)) ->  | N128: =IF(ISERROR(VLOOKUP(L128,Proposito_programa!$C$2:$E$59,3,FALSE))," ",VLOOKUP(L128,Proposito_programa!$C$2:$E$59,3,FALSE)) ->  | O128: 131020202030604 | P128: 4 | Q128: 800020006 | R128: AUTO INVERSIONES COLOMBIA S.A.-AUTOINVERCOL | S128: Persona Jurídica | W128: 16000000 | Y128: 1 | Z128: 8000000 | AA128: 24000000 | AB128: 11404381 | AC128: 2021-05-10 | AD128: 2021-05-10 | AE128: 2022-05-09 | AF128: 360 | AH128: 0 | AN128: X | AQ128: 0.4751825417
A129: 1 | B129: 116 | C129: 2021 | D129: FDLCH-CPS-114-2021 | E129: https://community.secop.gov.co/Public/Tendering/OpportunityDetail/Index?noticeUID=CO1.NTC.1961823&isFromPublicArea=True&isModal=true&asPopupView=true | F129: Contratos de prestación de servicios profesionales y de apoyo a la gestión | G129: Contratación directa | H129: Prestación de servicios profesionales y de apoyo a la gestión, o para la ejecución de trabajos artísticos que sólo puedan encomendarse a determinadas personas naturales; | I129: Prestar servicios asistenciales para apoyar al alcalde local en la promoción, articulación, acompañamiento y seguimiento para la atención y protección de los animales domésticos y silvestres de la localidad | J129: Inversión | K129: Un Nuevo Contrato Social y Ambiental para la Bogotá del Siglo XXI | L129: 34 | M129: =IF(ISERROR(VLOOKUP(L129,Proposito_programa!$C$2:$E$59,2,FALSE))," ",VLOOKUP(L129,Proposito_programa!$C$2:$E$59,2,FALSE)) -> Bogotá protectora de los animales | N129: =IF(ISERROR(VLOOKUP(L129,Proposito_programa!$C$2:$E$59,3,FALSE))," ",VLOOKUP(L129,Proposito_programa!$C$2:$E$59,3,FALSE)) -> Propósito 2 : Cambiar Nuestros Hábitos de Vida para Reverdecer a Bogotá y Adaptarnos y Mitigar la Crisis Climática | O129: 133011602340000001731 | P129: 1 | Q129: 52335022 | R129: PAOLA ANDREA SANCHEZ BRAUSSIN | S129: Persona Natural | W129: 8800000 | AA129: 8800000 | AB129: 8800000 | AC129: 2021-05-07 | AD129: 2021-05-10 | AE129: 2021-09-09 | AF129: 120 | AH129: 0 | AO129: X | AQ129: 1
A130: 1 | B130: 117 | C130: 2021 | D130: FDLCH-CPS-115-2021 | E130: https://community.secop.gov.co/Public/Tendering/OpportunityDetail/Index?noticeUID=CO1.NTC.1989024&isFromPublicArea=True&isModal=true&asPopupView=true | F130: Contratos de prestación de servicios profesionales y de apoyo a la gestión | G130: Contratación directa | H130: Prestación de servicios profesionales y de apoyo a la gestión, o para la ejecución de trabajos artísticos que sólo puedan encomendarse a determinadas personas naturales; | I130: Prestar servicios técnicos para apoyar al área de Gestión del Desarrollo Local de Chapinero, en el acompañamiento y atención de la ejecución de las actividades derivadas del proyecto de inversión CHAPINERO CULTURAL Y CREATIVO. | J130: Inversión | K130: Un Nuevo Contrato Social y Ambiental para la Bogotá del Siglo XXI | L130: 21 | M130: =IF(ISERROR(VLOOKUP(L130,Proposito_programa!$C$2:$E$59,2,FALSE))," ",VLOOKUP(L130,Proposito_programa!$C$2:$E$59,2,FALSE)) -> Creación y vida cotidiana: Apropiación ciudadana del arte, la cultura y el patrimonio, para la democracia cultural | N130: =IF(ISERROR(VLOOKUP(L130,Proposito_programa!$C$2:$E$59,3,FALSE))," ",VLOOKUP(L130,Proposito_programa!$C$2:$E$59,3,FALSE)) -> Propósito 1: Hacer un nuevo contrato social para incrementar la inclusión social, productiva y política | O130: 133011601210000001848 | P130: 1 | Q130: 55061809 | R130: CLAUDIA YANETH FERRO DUCUARA | S130: Persona Natural | W130: 21000000 | Y130: 1 | Z130: 6300000 | AA130: 27300000 | AB130: 23566667 | AC130: 2021-05-21 | AD130: 2021-05-24 | AE130: 2022-01-16 | AF130: 180 | AG130: 1 | AH130: 30 | AN130: X | AQ130: 0.8632478755
A131: 1 | B131: 118 | C131: 2021 | D131: FDLCH-CPS-116-2021 | E131: https://community.secop.gov.co/Public/Tendering/OpportunityDetail/Index?noticeUID=CO1.NTC.1985989&isFromPublicArea=True&isModal=true&asPopupView=true | F131: Contratos de prestación de servicios profesionales y de apoyo a la gestión | G131: Contratación directa | H131: Prestación de servicios profesionales y de apoyo a la gestión, o para la ejecución de trabajos artísticos que sólo puedan encomendarse a determinadas personas naturales; | I131: Prestar servicios asistenciales de apoyo a la gestión, para el desarrollo de estrategias que promuevan el uso adecuado del espacio público en el marco del proyecto “chapinero es espacio público incluyente y democrático. | J131: Inversión | K131: Un Nuevo Contrato Social y Ambiental para la Bogotá del Siglo XXI | L131: 45 | M131: =IF(ISERROR(VLOOKUP(L131,Proposito_programa!$C$2:$E$59,2,FALSE))," ",VLOOKUP(L131,Proposito_programa!$C$2:$E$59,2,FALSE)) -> Espacio público más seguro y construido colectivamente | N131: =IF(ISERROR(VLOOKUP(L131,Proposito_programa!$C$2:$E$59,3,FALSE))," ",VLOOKUP(L131,Proposito_programa!$C$2:$E$59,3,FALSE)) -> Propósito 3: Inspirar confianza y legitimidad para vivir sin miedo y ser epicentro de cultura ciudadana, paz y reconciliación | O131: 133011603450000001736 | P131: 1 | Q131: 79237228 | R131: OMAR ORLANDO BARON VELASCO | S131: Persona Natural | W131: 8000000 | Y131: 1 | Z131: 4000000 | AA131: 12000000 | AB131: 12000000 | AC131: 2021-05-20 | AD131: 2021-05-24 | AE131: 2021-11-23 | AF131: 120 | AG131: 1 | AH131: 30 | AO131: X | AQ131: 1
A132: 1 | B132: 119 | C132: 2021 | D132: FDLCH-CPS-117-2021 | E132: https://community.secop.gov.co/Public/Tendering/OpportunityDetail/Index?noticeUID=CO1.NTC.1985989&isFromPublicArea=True&isModal=true&asPopupView=true | F132: Contratos de prestación de servicios profesionales y de apoyo a la gestión | G132: Contratación directa | H132: Prestación de servicios profesionales y de apoyo a la gestión, o para la ejecución de trabajos artísticos que sólo puedan encomendarse a determinadas personas naturales; | I132: Prestar servicios asistenciales de apoyo para la gestión y desarrollo del proyecto de inversión no. 1715 chapinero restaurador y cuidador del territorio. | J132: Inversión | K132: Un Nuevo Contrato Social y Ambiental para la Bogotá del Siglo XXI | L132: 28 | M132: =IF(ISERROR(VLOOKUP(L132,Proposito_programa!$C$2:$E$59,2,FALSE))," ",VLOOKUP(L132,Proposito_programa!$C$2:$E$59,2,FALSE)) -> Bogotá protectora de sus recursos naturales | N132: =IF(ISERROR(VLOOKUP(L132,Proposito_programa!$C$2:$E$59,3,FALSE))," ",VLOOKUP(L132,Proposito_programa!$C$2:$E$59,3,FALSE)) -> Propósito 2 : Cambiar Nuestros Hábitos de Vida para Reverdecer a Bogotá y Adaptarnos y Mitigar la Crisis Climática | O132: 133011602280000001715 | P132: 1 | Q132: 52960241 | R132: MARIA NANCY LOPEZ | S132: Persona Natural | W132: 8800000 | Y132: 1 | Z132: 4400000 | AA132: 13200000 | AB132: 10926667 | AC132: 2021-06-01 | AD132: 2021-06-01 | AE132: 2021-12-01 | AF132: 120 | AG132: 1 | AH132: 30 | AO132: X | AQ132: 0.827777803
A133: 1 | B133: 120 | C133: 2021 | D133: FDLCH-CPS-120-2021 | E133: https://community.secop.gov.co/Public/Tendering/OpportunityDetail/Index?noticeUID=CO1.NTC.2023962&isFromPublicArea=True&isModal=true&asPopupView=true | F133: Contratos de prestación de servicios profesionales y de apoyo a la gestión | G133: Contratación directa | H133: Prestación de servicios profesionales y de apoyo a la gestión, o para la ejecución de trabajos artísticos que sólo puedan encomendarse a determinadas personas naturales; | I133: Apoyar jurídicamente la ejecución de las acciones requeridas para la depuración d elas actuaciones administrativas que cursan en la Alcaldía Local. | J133: Inversión | K133: Un Nuevo Contrato Social y Ambiental para la Bogotá del Siglo XXI | L133: 57 | M133: =IF(ISERROR(VLOOKUP(L133,Proposito_programa!$C$2:$E$59,2,FALSE))," ",VLOOKUP(L133,Proposito_programa!$C$2:$E$59,2,FALSE)) -> Gestión pública local | N133: =IF(ISERROR(VLOOKUP(L133,Proposito_programa!$C$2:$E$59,3,FALSE))," ",VLOOKUP(L133,Proposito_programa!$C$2:$E$59,3,FALSE)) -> Propósito 5: Construir Bogotá - Región con gobierno abierto, transparente y ciudadanía consciente | O133: 133011605570000001841 | P133: 1 | Q133: 1026267438 | R133: SERGIO GEOVANNY TOCANCIPA ARIZA | S133: Persona Natural | W133: 17444000 | AA133: 17444000 | AB133: 17444000 | AC133: 2021-08-30 | AD133: 2021-06-10 | AE133: 2021-10-09 | AF133: 120 | AH133: 0 | AO133: X | AQ133: 1
A134: 1 | B134: 121 | C134: 2021 | D134: FDLCH-CPS-122-2021 | E134: https://community.secop.gov.co/Public/Tendering/OpportunityDetail/Index?noticeUID=CO1.NTC.2038573&isFromPublicArea=True&isModal=true&asPopupView=true | F134: Contratos de prestación de servicios profesionales y de apoyo a la gestión | G134: Contratación directa | H134: Prestación de servicios profesionales y de apoyo a la gestión, o para la ejecución de trabajos artísticos que sólo puedan encomendarse a determinadas personas naturales; | I134: Prestar los servicios de apoyo a la gestión administrativa y asistencial a las Inspecciones de Policía de la Localidad. | J134: Inversión | K134: Un Nuevo Contrato Social y Ambiental para la Bogotá del Siglo XXI | L134: 57 | M134: =IF(ISERROR(VLOOKUP(L134,Proposito_programa!$C$2:$E$59,2,FALSE))," ",VLOOKUP(L134,Proposito_programa!$C$2:$E$59,2,FALSE)) -> Gestión pública local | N134: =IF(ISERROR(VLOOKUP(L134,Proposito_programa!$C$2:$E$59,3,FALSE))," ",VLOOKUP(L134,Proposito_programa!$C$2:$E$59,3,FALSE)) -> Propósito 5: Construir Bogotá - Región con gobierno abierto, transparente y ciudadanía consciente | O134: 133011605570000001841 | P134: 1 | Q134: 1032462820 | R134: JENNIFER VANNESA DIAZ NIÑO | S134: Persona Natural | W134: 10000000 | Y134: 1 | Z134: 4000000 | AA134: 14000000 | AB134: 11666667 | AC134: 2021-08-31 | AD134: 2021-06-21 | AE134: 2022-01-20 | AF134: 150 | AG134: 1 | AH134: 30 | AN134: X | AQ134: 0.8333333571
A135: 1 | B135: 122 | C135: 2021 | D135: FDLCH-CIA-123-2021 | E135: https://www.contratos.gov.co/consultas/detalleProceso.do?numConstancia=21-22-27794&g-recaptcha-response=03AGdBq27EP_ia82UNeOgxGGx5ylASu7OcoSZ2Ipp0a5D1NlWRIlz4gwkwp2ZcXqUTBBsZvl8oH5FHiyZWyGVw683MLynHXb7046EKq4H-pvTAXFzCyGQrosQGHddax-1nW5cKy9IOyc1nqABFICd54bqyh4UMAp4Su6L2KCLrzo47vyBdaSBHpsNaRITp9ZIZDlWYCuOXJ59tZo5yi-YgYuaRjzdsOHADUUoNNqFlMU_OZG0cSwXtcIMEj7693Ey5l-m5Mbl80ektgPSx9OvKw_4dCOtzsADs84KUZ6iRhdco4Ecc9xstUY0v6eU-J0tOYcMp4fcOVLmaVHs0hDJ_dy6VpkWJruHEsigXlC2JB-TB6PN7DujQniclddlbRZG1Qr7m0T4CH2ly4-VGGHtoP3oegi3xICiUvP0HfC6ZkUUENBSr5TD1Ak7DAvAslcZ5lByZg5LkHxnjO2x03ZWfwsf3-R49_9ctcQ | F135: Contratos interadministrativos | G135: Contratación directa | H135: Contratos interadministrativos | I135: Aunar esfuerzos técnicos, administrativos y financieros con el fin de desarrollar acciones articuladas entre las partes orientadas a fomentar la generación y circulación de bienes y servicios culturales, artísticos patrimoniales, asi como el fortalecimiento de los agentes de estos sectores en las localidades del Distrito Capital de acuerdo con los proyectos presentados a los fondos de desarrollo local que forman parte del convenio en el marco del programa "Cultura Local 2021. Convenio Interadministrativo No. 359 de 2021. | J135: Inversión | K135: Un Nuevo Contrato Social y Ambiental para la Bogotá del Siglo XXI | L135: 21 | M135: =IF(ISERROR(VLOOKUP(L135,Proposito_programa!$C$2:$E$59,2,FALSE))," ",VLOOKUP(L135,Proposito_programa!$C$2:$E$59,2,FALSE)) -> Creación y vida cotidiana: Apropiación ciudadana del arte, la cultura y el patrimonio, para la democracia cultural | N135: =IF(ISERROR(VLOOKUP(L135,Proposito_programa!$C$2:$E$59,3,FALSE))," ",VLOOKUP(L135,Proposito_programa!$C$2:$E$59,3,FALSE)) -> Propósito 1: Hacer un nuevo contrato social para incrementar la inclusión social, productiva y política | O135: 133011601060000001671 | P135: 1 | Q135: 899999061 | R135: SECRETARIA DE CULTURA RECREACION Y DEPORTE | S135: Persona Jurídica | W135: 203300000 | AA135: 203300000 | AB135: 203300000 | AC135: 2021-06-30 | AD135: 2021-07-07 | AE135: 2022-06-30 | AF135: 150 | AH135: 0 | AN135: X | AQ135: 1
A136: 1 | B136: 123 | C136: 2021 | D136: FDLCH-CIA-123-2021 | E136: https://www.contratos.gov.co/consultas/detalleProceso.do?numConstancia=21-22-27794&g-recaptcha-response=03AGdBq27EP_ia82UNeOgxGGx5ylASu7OcoSZ2Ipp0a5D1NlWRIlz4gwkwp2ZcXqUTBBsZvl8oH5FHiyZWyGVw683MLynHXb7046EKq4H-pvTAXFzCyGQrosQGHddax-1nW5cKy9IOyc1nqABFICd54bqyh4UMAp4Su6L2KCLrzo47vyBdaSBHpsNaRITp9ZIZDlWYCuOXJ59tZo5yi-YgYuaRjzdsOHADUUoNNqFlMU_OZG0cSwXtcIMEj7693Ey5l-m5Mbl80ektgPSx9OvKw_4dCOtzsADs84KUZ6iRhdco4Ecc9xstUY0v6eU-J0tOYcMp4fcOVLmaVHs0hDJ_dy6VpkWJruHEsigXlC2JB-TB6PN7DujQniclddlbRZG1Qr7m0T4CH2ly4-VGGHtoP3oegi3xICiUvP0HfC6ZkUUENBSr5TD1Ak7DAvAslcZ5lByZg5LkHxnjO2x03ZWfwsf3-R49_9ctcQ | F136: Contratos interadministrativos | G136: Contratación directa | H136: Contratos interadministrativos | I136: Aunar esfuerzos técnicos, administrativos y financieros con el fin de desarrollar acciones articuladas entre las partes orientadas a fomentar la generación y circulación de bienes y servicios culturales, artísticos patrimoniales, asi como el fortalecimiento de los agentes de estos sectores en las localidades del Distrito Capital de acuerdo con los proyectos presentados a los fondos de desarrollo local que forman parte del convenio en el marco del programa "Cultura Local 2021. Convenio Interadministrativo No. 359 de 2021. | J136: Inversión | K136: Un Nuevo Contrato Social y Ambiental para la Bogotá del Siglo XXI | L136: 21 | M136: =IF(ISERROR(VLOOKUP(L136,Proposito_programa!$C$2:$E$59,2,FALSE))," ",VLOOKUP(L136,Proposito_programa!$C$2:$E$59,2,FALSE)) -> Creación y vida cotidiana: Apropiación ciudadana del arte, la cultura y el patrimonio, para la democracia cultural | N136: =IF(ISERROR(VLOOKUP(L136,Proposito_programa!$C$2:$E$59,3,FALSE))," ",VLOOKUP(L136,Proposito_programa!$C$2:$E$59,3,FALSE)) -> Propósito 1: Hacer un nuevo contrato social para incrementar la inclusión social, productiva y política | O136: 133011601210000001848 | P136: 1 | Q136: 899999061 | R136: SECRETARIA DE CULTURA RECREACION Y DEPORTE | S136: Persona Jurídica | W136: 158000000 | AA136: 158000000 | AB136: 158000000 | AC136: 2021-06-30 | AD136: 2021-07-07 | AE136: 2022-06-30 | AF136: 150 | AH136: =+AG136*30 -> 0 | AN136: X | AQ136: 1
A137: 1 | B137: 124 | C137: 2021 | D137: FDLCH-CIA-123-2021 | E137: https://www.contratos.gov.co/consultas/detalleProceso.do?numConstancia=21-22-27794&g-recaptcha-response=03AGdBq27EP_ia82UNeOgxGGx5ylASu7OcoSZ2Ipp0a5D1NlWRIlz4gwkwp2ZcXqUTBBsZvl8oH5FHiyZWyGVw683MLynHXb7046EKq4H-pvTAXFzCyGQrosQGHddax-1nW5cKy9IOyc1nqABFICd54bqyh4UMAp4Su6L2KCLrzo47vyBdaSBHpsNaRITp9ZIZDlWYCuOXJ59tZo5yi-YgYuaRjzdsOHADUUoNNqFlMU_OZG0cSwXtcIMEj7693Ey5l-m5Mbl80ektgPSx9OvKw_4dCOtzsADs84KUZ6iRhdco4Ecc9xstUY0v6eU-J0tOYcMp4fcOVLmaVHs0hDJ_dy6VpkWJruHEsigXlC2JB-TB6PN7DujQniclddlbRZG1Qr7m0T4CH2ly4-VGGHtoP3oegi3xICiUvP0HfC6ZkUUENBSr5TD1Ak7DAvAslcZ5lByZg5LkHxnjO2x03ZWfwsf3-R49_9ctcQ | F137: Contratos interadministrativos | G137: Contratación directa | H137: Contratos interadministrativos | I137: Aunar esfuerzos técnicos, administrativos y financieros con el fin de desarrollar acciones articuladas entre las partes orientadas a fomentar la generación y circulación de bienes y servicios culturales, artísticos patrimoniales, asi como el fortalecimiento de los agentes de estos sectores en las localidades del Distrito Capital de acuerdo con los proyectos presentados a los fondos de desarrollo local que forman parte del convenio en el marco del programa "Cultura Local 2021. Convenio Interadministrativo No. 359 de 2021. | J137: Inversión | K137: Un Nuevo Contrato Social y Ambiental para la Bogotá del Siglo XXI | L137: 21 | M137: =IF(ISERROR(VLOOKUP(L137,Proposito_programa!$C$2:$E$59,2,FALSE))," ",VLOOKUP(L137,Proposito_programa!$C$2:$E$59,2,FALSE)) -> Creación y vida cotidiana: Apropiación ciudadana del arte, la cultura y el patrimonio, para la democracia cultural | N137: =IF(ISERROR(VLOOKUP(L137,Proposito_programa!$C$2:$E$59,3,FALSE))," ",VLOOKUP(L137,Proposito_programa!$C$2:$E$59,3,FALSE)) -> Propósito 1: Hacer un nuevo contrato social para incrementar la inclusión social, productiva y política | O137: 133011601240000001853 | P137: 1 | Q137: 899999061 | R137: SECRETARIA DE CULTURA RECREACION Y DEPORTE | S137: Persona Jurídica | W137: 195000000 | AA137: 195000000 | AB137: 195000000 | AC137: 2021-06-30 | AD137: 2021-07-07 | AE137: 2022-06-30 | AF137: 150 | AH137: 0 | AN137: X | AQ137: 1
A138: 1 | B138: 125 | C138: 2021 | D138: FDLCH-CIA-124-2021 | E138: https://www.contratos.gov.co/consultas/detalleProceso.do?numConstancia=21-22-27826&g-recaptcha-response=03AGdBq25Ote_ccB7hjMWNXyo1Xjyoys2JE0meg4BVDNiOwAmNL2x2X4z5t5J7YgK42k2IY_408NKed8CPWM9gY27hPDCKSIcoAKqmy6aztjvAyAOpe7URI_WPA9k12CiT3blf3n5Oapa8dm2zHy5JqwLWmWq4zYFEvemS0urLKGeDfQFLo9TWE8WItORlByFZuX5B4QZpFDTUkTQ8nykUK8-4D1lmUNuHJdKuDdFaYwu0LVBcmEHDgDr2Ei5KjzJj6Ci_DFDkfWwTeRy8x1A2uj-avM51QVjtsX_qYYc5-hLY6fmAnz0eZ1Hgb9lr_kn1jj7loU2yX2kFAMWx9VcD_vA4ugf7JaJ7k6PUCJ1BpeT2KynqPfAa6LLSfNDhVM327aSKV8pPA_8x0huz8coVfcbq4eCItVUHutPIHEg6NoZjdjEsonqWLhg0WlX0yrJ6rXX4P8nUpyBc3yuPbJfyO-zSayF0ZgMg6w | F138: Contratos interadministrativos | G138: Contratación directa | H138: Contratos interadministrativos | I138: Aunar esfuerzos técnicos, administrativos, jurídicos y financieros entre la Secretaría de Educación del Distrito y los Fondos de Desarrollo Local que hacen parte del Distrito Capital, para la implementación de un nuevo modelo inclusivo, eficiente y flexible para el acceso a la permanencia de las y los jóvenes egresados de instituciones de educación media a programas de educación superior. | J138: Inversión | K138: Un Nuevo Contrato Social y Ambiental para la Bogotá del Siglo XXI | L138: 17 | M138: =IF(ISERROR(VLOOKUP(L138,Proposito_programa!$C$2:$E$59,2,FALSE))," ",VLOOKUP(L138,Proposito_programa!$C$2:$E$59,2,FALSE)) -> Jóvenes con capacidades: Proyecto de vida para la ciudadanía, la innovación y el trabajo del siglo XXI | N138: =IF(ISERROR(VLOOKUP(L138,Proposito_programa!$C$2:$E$59,3,FALSE))," ",VLOOKUP(L138,Proposito_programa!$C$2:$E$59,3,FALSE)) -> Propósito 1: Hacer un nuevo contrato social para incrementar la inclusión social, productiva y política | O138: 133011601170000001743 | P138: 1 | Q138: 899999061 | R138: SECRETARIA DE EDUCACIÓN DEL DISTRITO | S138: Persona Jurídica | W138: 946160300 | AA138: 946160300 | AB138: 946160300 | AC138: 2021-06-28 | AD138: 2021-07-09 | AE138: 2027-06-30 | AF138: 210 | AH138: 0 | AN138: X | AQ138: 1
A139: 1 | B139: 126 | C139: 2021 | D139: FDLCH-CPS-125-2021 | E139: https://community.secop.gov.co/Public/Tendering/OpportunityDetail/Index?noticeUID=CO1.NTC.2086580&isFromPublicArea=True&isModal=true&asPopupView=true | F139: Contratos de prestación de servicios profesionales y de apoyo a la gestión | G139: Contratación directa | H139: Prestación de servicios profesionales y de apoyo a la gestión, o para la ejecución de trabajos artísticos que sólo puedan encomendarse a determinadas personas naturales; | I139: Prestar servicios de apoyo administrativo y asistencial la gestión de las inspecciones de policía que adelanta la Alcaldía Local de Chapinero. | J139: Inversión | K139: Un Nuevo Contrato Social y Ambiental para la Bogotá del Siglo XXI | L139: 57 | M139: =IF(ISERROR(VLOOKUP(L139,Proposito_programa!$C$2:$E$59,2,FALSE))," ",VLOOKUP(L139,Proposito_programa!$C$2:$E$59,2,FALSE)) -> Gestión pública local | N139: =IF(ISERROR(VLOOKUP(L139,Proposito_programa!$C$2:$E$59,3,FALSE))," ",VLOOKUP(L139,Proposito_programa!$C$2:$E$59,3,FALSE)) -> Propósito 5: Construir Bogotá - Región con gobierno abierto, transparente y ciudadanía consciente | O139: 133011605570000001841 | P139: 1 | Q139: 1032492446 | R139: ALVARO CUBILLOS RUIZ | S139: Persona Natural | W139: 8000000 | AA139: 8000000 | AB139: 8000000 | AC139: 2021-07-09 | AD139: 2021-07-12 | AE139: 2021-11-11 | AF139: 120 | AH139: 0 | AO139: X | AQ139: 1
A140: 1 | B140: 127 | C140: 2021 | D140: FDLCH-CPS-126-2021 | E140: https://community.secop.gov.co/Public/Tendering/OpportunityDetail/Index?noticeUID=CO1.NTC.2094286&isFromPublicArea=True&isModal=true&asPopupView=true | F140: Contratos de prestación de servicios profesionales y de apoyo a la gestión | G140: Contratación directa | H140: Prestación de servicios profesionales y de apoyo a la gestión, o para la ejecución de trabajos artísticos que sólo puedan encomendarse a determinadas personas naturales; | I140: Prestar servicios profesionales de apoyo jurídico en la ejecución de las acciones requeridas para el trámite e impulso procesal de las actuaciones administrativads y de cobro persuasivo de competencia de la Alcaldía Local de Chapinero. | J140: Inversión | K140: Un Nuevo Contrato Social y Ambiental para la Bogotá del Siglo XXI | L140: 57 | M140: =IF(ISERROR(VLOOKUP(L140,Proposito_programa!$C$2:$E$59,2,FALSE))," ",VLOOKUP(L140,Proposito_programa!$C$2:$E$59,2,FALSE)) -> Gestión pública local | N140: =IF(ISERROR(VLOOKUP(L140,Proposito_programa!$C$2:$E$59,3,FALSE))," ",VLOOKUP(L140,Proposito_programa!$C$2:$E$59,3,FALSE)) -> Propósito 5: Construir Bogotá - Región con gobierno abierto, transparente y ciudadanía consciente | O140: 133011605570000001841 | P140: 1 | Q140: 1010190690 | R140: ADRIANA ANDREA ARCHILA MOSCOSO | S140: Persona Natural | W140: 21805000 | AA140: 21805000 | AB140: 19915233 | AC140: 2021-07-14 | AD140: 2021-07-14 | AE140: 2021-12-13 | AF140: 150 | AH140: 0 | AO140: X | AQ140: 0.913333318
A141: 1 | B141: 128 | C141: 2021 | D141: FDLCH-CPS-127-2021 | E141: https://community.secop.gov.co/Public/Tendering/OpportunityDetail/Index?noticeUID=CO1.NTC.2097781&isFromPublicArea=True&isModal=False | F141: Contratos de prestación de servicios profesionales y de apoyo a la gestión | G141: Contratación directa | H141: Prestación de servicios profesionales y de apoyo a la gestión, o para la ejecución de trabajos artísticos que sólo puedan encomendarse a determinadas personas naturales; | I141: Prestar servicios profesionales para apoyar en la gestión de los asuntos relacionados con la prevención de hechos delictivos e inseguridad ciudadana, y el fortalecimiento de la cultura de convivencia ciudadana conformidad con el marco normativo vigente | J141: Inversión | K141: Un Nuevo Contrato Social y Ambiental para la Bogotá del Siglo XXI | L141: 45 | M141: =IF(ISERROR(VLOOKUP(L141,Proposito_programa!$C$2:$E$59,2,FALSE))," ",VLOOKUP(L141,Proposito_programa!$C$2:$E$59,2,FALSE)) -> Espacio público más seguro y construido colectivamente | N141: =IF(ISERROR(VLOOKUP(L141,Proposito_programa!$C$2:$E$59,3,FALSE))," ",VLOOKUP(L141,Proposito_programa!$C$2:$E$59,3,FALSE)) -> Propósito 3: Inspirar confianza y legitimidad para vivir sin miedo y ser epicentro de cultura ciudadana, paz y reconciliación | O141: 133011603450000001736 | P141: 1 | Q141: 79720862 | R141: IVAN GUILLERMO RAMIREZ REYES | S141: Persona Natural | W141: 33000000 | AA141: 33000000 | AB141: 24933333 | AC141: 2021-07-14 | AD141: 2021-07-15 | AE141: 2022-01-21 | AF141: 180 | AH141: 0 | AN141: X | AQ141: 0.7555555455
A142: 1 | B142: 129 | C142: 2021 | D142: FDLCH-CPS-128-2021 | E142: https://community.secop.gov.co/Public/Tendering/OpportunityDetail/Index?noticeUID=CO1.NTC.2133780&isFromPublicArea=True&isModal=true&asPopupView=true | F142: Contratos de prestación de servicios profesionales y de apoyo a la gestión | G142: Contratación directa | H142: Prestación de servicios profesionales y de apoyo a la gestión, o para la ejecución de trabajos artísticos que sólo puedan encomendarse a determinadas personas naturales; | I142: Prestar servicios técnicos para apoyar la gestión y ejecución de las actividades administrativas que se adelantan en el Despacho de la Alcaldía Local de Chapinero para el cumplimiento de las metas y objetivos del Plan de Desarrollo Local | J142: Inversión | K142: Un Nuevo Contrato Social y Ambiental para la Bogotá del Siglo XXI | L142: 57 | M142: =IF(ISERROR(VLOOKUP(L142,Proposito_programa!$C$2:$E$59,2,FALSE))," ",VLOOKUP(L142,Proposito_programa!$C$2:$E$59,2,FALSE)) -> Gestión pública local | N142: =IF(ISERROR(VLOOKUP(L142,Proposito_programa!$C$2:$E$59,3,FALSE))," ",VLOOKUP(L142,Proposito_programa!$C$2:$E$59,3,FALSE)) -> Propósito 5: Construir Bogotá - Región con gobierno abierto, transparente y ciudadanía consciente | O142: 133011605570000001741 | P142: 1 | Q142: 1091663411 | R142: JUAN PABLO SANJUAN ARIAS | S142: Persona Natural | W142: 13500000 | Y142: 1 | Z142: 1440000 | AA142: 14940000 | AB142: 12240000 | AC142: 2021-07-29 | AD142: 2021-07-30 | AE142: 2022-01-14 | AF142: 150 | AG142: 1 | AH142: 30 | AN142: X | AQ142: 0.8192771084
A143: 1 | B143: 130 | C143: 2021 | D143: FDLCH-CPS-129-2021 | E143: https://community.secop.gov.co/Public/Tendering/OpportunityDetail/Index?noticeUID=CO1.NTC.2137529&isFromPublicArea=True&isModal=true&asPopupView=true | F143: Contratos de prestación de servicios profesionales y de apoyo a la gestión | G143: Contratación directa | H143: Prestación de servicios profesionales y de apoyo a la gestión, o para la ejecución de trabajos artísticos que sólo puedan encomendarse a determinadas personas naturales; | I143: Prestar servicios de apoyo a la gestión para asistir logística y administrativamente al Despacho de la Alcaldía Local de Chapinero. | J143: Inversión | K143: Un Nuevo Contrato Social y Ambiental para la Bogotá del Siglo XXI | L143: 57 | M143: =IF(ISERROR(VLOOKUP(L143,Proposito_programa!$C$2:$E$59,2,FALSE))," ",VLOOKUP(L143,Proposito_programa!$C$2:$E$59,2,FALSE)) -> Gestión pública local | N143: =IF(ISERROR(VLOOKUP(L143,Proposito_programa!$C$2:$E$59,3,FALSE))," ",VLOOKUP(L143,Proposito_programa!$C$2:$E$59,3,FALSE)) -> Propósito 5: Construir Bogotá - Región con gobierno abierto, transparente y ciudadanía consciente | O143: 133011605570000001741 | P143: 1 | Q143: 73159185 | R143: GERMAN ENRIQUE CASTILLO CORREA | S143: Persona Natural | W143: 10500000 | Y143: 1 | Z143: 910000 | AA143: 11410000 | AB143: 9380000 | AC143: 2021-07-30 | AD143: 2021-08-02 | AE143: 2022-01-14 | AF143: 150 | AG143: 1 | AH143: 30 | AN143: X | AQ143: 0.8220858896
A144: 1 | B144: 131 | C144: 2021 | D144: FDLCH-CPS-130-2021 | E144: https://community.secop.gov.co/Public/Tendering/OpportunityDetail/Index?noticeUID=CO1.NTC.2141996&isFromPublicArea=True&isModal=true&asPopupView=true | F144: Contratos de prestación de servicios profesionales y de apoyo a la gestión | G144: Contratación directa | H144: Prestación de servicios profesionales y de apoyo a la gestión, o para la ejecución de trabajos artísticos que sólo puedan encomendarse a determinadas personas naturales; | I144: Prestar los servicios profesionales para apoyar el área Gestión del Desarrollo Local en las actividades contables requeridas por el Fondo de Desarrollo Local de Chapinero. | J144: Inversión | K144: Un Nuevo Contrato Social y Ambiental para la Bogotá del Siglo XXI | L144: 57 | M144: =IF(ISERROR(VLOOKUP(L144,Proposito_programa!$C$2:$E$59,2,FALSE))," ",VLOOKUP(L144,Proposito_programa!$C$2:$E$59,2,FALSE)) -> Gestión pública local | N144: =IF(ISERROR(VLOOKUP(L144,Proposito_programa!$C$2:$E$59,3,FALSE))," ",VLOOKUP(L144,Proposito_programa!$C$2:$E$59,3,FALSE)) -> Propósito 5: Construir Bogotá - Región con gobierno abierto, transparente y ciudadanía consciente | O144: 133011605570000001741 | P144: 1 | Q144: 7141790 | R144: LEONARDO OROZCO MARTINEZ MARTINEZ | S144: Persona Natural | W144: 22500000 | Y144: 1 | Z144: 1800000 | AA144: 24300000 | AB144: 19950000 | AC144: 2021-07-30 | AD144: 2021-08-03 | AE144: 2022-01-14 | AF144: 150 | AG144: 1 | AH144: 30 | AN144: X | AQ144: 0.8209876543
A145: 1 | B145: 132 | C145: 2021 | D145: FDLCH-ACI-131-2021 | E145: https://community.secop.gov.co/Public/Tendering/OpportunityDetail/Index?noticeUID=CO1.NTC.2106255&isFromPublicArea=True&isModal=False | F145: Convenios de cooperacion | G145: Contratación directa | H145: Contratos interadministrativos | I145: Aunar esfuerzos para la cooperación administrativa, técnica y financiera, entre el Programa para las Naciones Unidas para el Desarrollo (PNUD) y El Fondo de Desarrollo Local de Chapinero, con el fin de implementar estrategias que promuevan el fortalecimiento a los emprendimientos y/o Mipymes a través de actividades que permiten generar ingresos a las mismas. | J145: Inversión | K145: Un Nuevo Contrato Social y Ambiental para la Bogotá del Siglo XXI | L145: 6 | M145: =IF(ISERROR(VLOOKUP(L145,Proposito_programa!$C$2:$E$59,2,FALSE))," ",VLOOKUP(L145,Proposito_programa!$C$2:$E$59,2,FALSE)) -> Sistema Distrital de Cuidado | N145: =IF(ISERROR(VLOOKUP(L145,Proposito_programa!$C$2:$E$59,3,FALSE))," ",VLOOKUP(L145,Proposito_programa!$C$2:$E$59,3,FALSE)) -> Propósito 1: Hacer un nuevo contrato social para incrementar la inclusión social, productiva y política | O145: 133011601060000001671 | P145: 1 | Q145: 800091076 | R145: PROGRAMA DE LAS NACIONES UNIDAS PARA EL DESARROLLO PNUD | S145: Persona Jurídica | W145: 485462825 | AA145: 485462825 | AB145: 388370260 | AC145: 2021-07-16 | AD145: 2021-07-16 | AE145: 2022-07-15 | AF145: 360 | AH145: 0 | AN145: X | AQ145: 0.8
A146: 1 | B146: 133 | C146: 2021 | D146: FDLCH-CPS-132-2021 | E146: https://community.secop.gov.co/Public/Tendering/OpportunityDetail/Index?noticeUID=CO1.NTC.2124578&isFromPublicArea=True&isModal=true&asPopupView=true | F146: Contratos de prestación de servicios profesionales y de apoyo a la gestión | G146: Contratación directa | H146: Prestación de servicios profesionales y de apoyo a la gestión, o para la ejecución de trabajos artísticos que sólo puedan encomendarse a determinadas personas naturales; | I146: Prestar los servicios de apoyo a la gestión en la implementación, atención, verificación, soporte y acompañamiento de los procesos y/o actuaciones administrativas de registro y seguimiento a la propiedad horizontal en los aplicativos y/o herramientas virtuales en la localidad de Chapinero. | J146: Inversión | K146: Un Nuevo Contrato Social y Ambiental para la Bogotá del Siglo XXI | L146: 57 | M146: =IF(ISERROR(VLOOKUP(L146,Proposito_programa!$C$2:$E$59,2,FALSE))," ",VLOOKUP(L146,Proposito_programa!$C$2:$E$59,2,FALSE)) -> Gestión pública local | N146: =IF(ISERROR(VLOOKUP(L146,Proposito_programa!$C$2:$E$59,3,FALSE))," ",VLOOKUP(L146,Proposito_programa!$C$2:$E$59,3,FALSE)) -> Propósito 5: Construir Bogotá - Región con gobierno abierto, transparente y ciudadanía consciente | O146: 133011605570000001741 | P146: 1 | Q146: 1070021566 | R146: MAUREN DARLINE FORERO RONCANCIO | S146: Persona Natural | W146: 10000000 | Y146: 1 | Z146: 4166666 | AA146: 14166666 | AB146: 10333333 | AC146: 2021-07-26 | AD146: 2021-07-27 | AE146: 2021-10-26 | AF146: 120 | AH146: 0 | AO146: X | AQ146: 0.7294117755
A147: 1 | B147: 134 | C147: 2021 | D147: FDLCH-CPS-133-2021 | E147: https://community.secop.gov.co/Public/Tendering/OpportunityDetail/Index?noticeUID=CO1.NTC.2124673&isFromPublicArea=True&isModal=true&asPopupView=true | F147: Contratos de prestación de servicios profesionales y de apoyo a la gestión | G147: Contratación directa | H147: Prestación de servicios profesionales y de apoyo a la gestión, o para la ejecución de trabajos artísticos que sólo puedan encomendarse a determinadas personas naturales; | I147: Prestar servicios profesionales de apoyo jurídico en la ejecución de las acciones requeridas para el trámite e impulso procesal de las actuaciones administrativas y de cobro persuasivo de competencia de la alcaldía local de chapinero. | J147: Inversión | K147: Un Nuevo Contrato Social y Ambiental para la Bogotá del Siglo XXI | L147: 57 | M147: =IF(ISERROR(VLOOKUP(L147,Proposito_programa!$C$2:$E$59,2,FALSE))," ",VLOOKUP(L147,Proposito_programa!$C$2:$E$59,2,FALSE)) -> Gestión pública local | N147: =IF(ISERROR(VLOOKUP(L147,Proposito_programa!$C$2:$E$59,3,FALSE))," ",VLOOKUP(L147,Proposito_programa!$C$2:$E$59,3,FALSE)) -> Propósito 5: Construir Bogotá - Región con gobierno abierto, transparente y ciudadanía consciente | O147: 133011605570000001841 | P147: 1 | Q147: 1020734444 | R147: JUAN CAMILO MENDOZA MARTINEZ | S147: Persona Natural | W147: 21805000 | Y147: 1 | Z147: 2907332 | AA147: =+W147+X147+Z147 -> 24712332 | AB147: 20205967 | AC147: 2021-07-26 | AD147: 2021-07-27 | AE147: 2022-01-15 | AF147: 150 | AG147: 1 | AH147: 30 | AN147: X | AQ147: 0.8176471164
A148: 1 | B148: 135 | C148: 2021 | D148: FDLCH-CPS-134-2021 | E148: https://community.secop.gov.co/Public/Tendering/OpportunityDetail/Index?noticeUID=CO1.NTC.2131308&isFromPublicArea=True&isModal=true&asPopupView=true | F148: Contratos de prestación de servicios profesionales y de apoyo a la gestión | G148: Contratación directa | H148: Prestación de servicios profesionales y de apoyo a la gestión, o para la ejecución de trabajos artísticos que sólo puedan encomendarse a determinadas personas naturales; | I148: Prestar servicios técnicos de apoyo a la gestión al área de Gestión del Desarrollo Local en las actividades de planeación local para la formulación y seguimiento de proyectos de inversión local, así como el apoyo a la administración en el seguimiento, uso y soporte de herramientas y aplicativos en cumplimiento de los objetivos del Plan de Desarrollo Local. | J148: Inversión | K148: Un Nuevo Contrato Social y Ambiental para la Bogotá del Siglo XXI | L148: 57 | M148: =IF(ISERROR(VLOOKUP(L148,Proposito_programa!$C$2:$E$59,2,FALSE))," ",VLOOKUP(L148,Proposito_programa!$C$2:$E$59,2,FALSE)) -> Gestión pública local | N148: =IF(ISERROR(VLOOKUP(L148,Proposito_programa!$C$2:$E$59,3,FALSE))," ",VLOOKUP(L148,Proposito_programa!$C$2:$E$59,3,FALSE)) -> Propósito 5: Construir Bogotá - Región con gobierno abierto, transparente y ciudadanía consciente | O148: 133011605570000001741 | P148: 1 | Q148: 1033699910 | R148: JULIAN ANDRES JAIME ALARCON | S148: Persona Natural | W148: 13200000 | Y148: 1 | Z148: 4510000 | AA148: 17710000 | AB148: 15070000 | AC148: 2021-07-28 | AD148: 2021-07-29 | AE148: 2022-01-08 | AF148: 120 | AG148: 1 | AH148: =+AG148*30 -> 30 | AN148: X | AQ148: 0.850931677
A149: 1 | B149: 136 | C149: 2021 | D149: FDLCH-CPS-135-2021 | E149: https://community.secop.gov.co/Public/Tendering/OpportunityDetail/Index?noticeUID=CO1.NTC.2134826&isFromPublicArea=True&isModal=true&asPopupView=true | F149: Contratos de prestación de servicios profesionales y de apoyo a la gestión | G149: Contratación directa | H149: Prestación de servicios profesionales y de apoyo a la gestión, o para la ejecución de trabajos artísticos que sólo puedan encomendarse a determinadas personas naturales; | I149: Prestar servicios profesionales para apoyar la gestión jurídica en la ejecución de las acciones requeridas para el trámite e impulso procesal de las actuaciones adminsitrativas y de inspección, vigilancia y control de competencia de la Alcaldía Local de Chapinero en cerros orientales, zona de reserva forestal protectora, polígonos de monitoreo, áreas de ocupación pública prioritaria, franja de adecuación y zonas de especial protección ambiental. | J149: Inversión | K149: Un Nuevo Contrato Social y Ambiental para la Bogotá del Siglo XXI | L149: 57 | M149: =IF(ISERROR(VLOOKUP(L149,Proposito_programa!$C$2:$E$59,2,FALSE))," ",VLOOKUP(L149,Proposito_programa!$C$2:$E$59,2,FALSE)) -> Gestión pública local | N149: =IF(ISERROR(VLOOKUP(L149,Proposito_programa!$C$2:$E$59,3,FALSE))," ",VLOOKUP(L149,Proposito_programa!$C$2:$E$59,3,FALSE)) -> Propósito 5: Construir Bogotá - Región con gobierno abierto, transparente y ciudadanía consciente | O149: 133011605570000001841 | P149: 1 | Q149: 80881353 | R149: DIEGO FERNANDO LEON LEON | S149: Persona Natural | W149: 19200000 | Y149: 1 | Z149: 7520000 | AA149: 26720000 | AB149: 19360000 | AC149: 2021-07-30 | AD149: 2021-07-30 | AE149: 2022-01-15 | AF149: 120 | AG149: 1 | AH149: 30 | AN149: X | AQ149: 0.7245508982
A150: 1 | B150: 137 | C150: 2021 | D150: FDLCH-136-2021 | E150: https://community.secop.gov.co/Public/Tendering/OpportunityDetail/Index?noticeUID=CO1.NTC.2145182&isFromPublicArea=True&isModal=true&asPopupView=true | F150: Contratos de prestación de servicios profesionales y de apoyo a la gestión | G150: Contratación directa | H150: Prestación de servicios profesionales y de apoyo a la gestión, o para la ejecución de trabajos artísticos que sólo puedan encomendarse a determinadas personas naturales; | I150: Prestar servicios profesionales para apoyar tecnicamente las actuaciones administrativas, impulso procesar y de inspección, vigilancia y control de competencia de la alcaldía local de chapinero. | J150: Inversión | K150: Un Nuevo Contrato Social y Ambiental para la Bogotá del Siglo XXI | L150: 57 | M150: =IF(ISERROR(VLOOKUP(L150,Proposito_programa!$C$2:$E$59,2,FALSE))," ",VLOOKUP(L150,Proposito_programa!$C$2:$E$59,2,FALSE)) -> Gestión pública local | N150: =IF(ISERROR(VLOOKUP(L150,Proposito_programa!$C$2:$E$59,3,FALSE))," ",VLOOKUP(L150,Proposito_programa!$C$2:$E$59,3,FALSE)) -> Propósito 5: Construir Bogotá - Región con gobierno abierto, transparente y ciudadanía consciente | O150: 133011605570000001841 | P150: 1 | Q150: 52308262 | R150: IRISAYDEE NOVOA MEDELLIN | S150: Persona Natural | W150: 18400000 | Y150: 1 | Z150: 4600000 | AA150: 23000000 | AB150: 17940000 | AC150: 2021-08-03 | AD150: 2021-08-04 | AE150: 2022-01-03 | AF150: 120 | AG150: 1 | AH150: 30 | AO150: X | AQ150: 0.78
A151: 1 | B151: 138 | C151: 2021 | D151: FDLCH-CPS-137-2021 | E151: https://community.secop.gov.co/Public/Tendering/OpportunityDetail/Index?noticeUID=CO1.NTC.1719798&isFromPublicArea=True&isModal=true&asPopupView=true | F151: Contratos de prestación de servicios profesionales y de apoyo a la gestión | G151: Contratación directa | H151: Prestación de servicios profesionales y de apoyo a la gestión, o para la ejecución de trabajos artísticos que sólo puedan encomendarse a determinadas personas naturales; | I151: Prestar los servicios personales necesarios para la conducción de los vehículos que conforman el parque automotor en propiedad u custodia del fondo de Desarrollo Local de Chapinero y el transporte de servidores públicos para la realización de las actividades misionales de la Alcaldía Local de Chapinero. | J151: Inversión | K151: Un Nuevo Contrato Social y Ambiental para la Bogotá del Siglo XXI | L151: 57 | M151: =IF(ISERROR(VLOOKUP(L151,Proposito_programa!$C$2:$E$59,2,FALSE))," ",VLOOKUP(L151,Proposito_programa!$C$2:$E$59,2,FALSE)) -> Gestión pública local | N151: =IF(ISERROR(VLOOKUP(L151,Proposito_programa!$C$2:$E$59,3,FALSE))," ",VLOOKUP(L151,Proposito_programa!$C$2:$E$59,3,FALSE)) -> Propósito 5: Construir Bogotá - Región con gobierno abierto, transparente y ciudadanía consciente | O151: 133011605570000001741 | P151: 1 | Q151: 3220879 | R151: BENEDICTO VANEGAS CASTELLANOS | S151: Persona Natural | W151: 12000000 | Y151: 1 | Z151: 480000 | AA151: 12480000 | AB151: 10560000 | AC151: 2021-08-09 | AD151: 2021-08-10 | AE151: 2022-01-15 | AF151: 150 | AG151: 1 | AH151: 30 | AN151: X | AQ151: 0.8461538462
A152: 1 | B152: 139 | C152: 2021 | D152: FDLCH-CPS-138-2021 | E152: https://community.secop.gov.co/Public/Tendering/OpportunityDetail/Index?noticeUID=CO1.NTC.1703032&isFromPublicArea=True&isModal=true&asPopupView=true | F152: Contratos de prestación de servicios profesionales y de apoyo a la gestión | G152: Contratación directa | H152: Prestación de servicios profesionales y de apoyo a la gestión, o para la ejecución de trabajos artísticos que sólo puedan encomendarse a determinadas personas naturales; | I152: Prestar los servicios personales necesarios para la conducción de los vehículos que conforman el parque automotor en propiedad o custodia del Fondo de Desarrollo Local de Chapinero, y el transporte de servidores públicos para la realización de las actividades misionales de la Alcaldía Local de Chapinero. | J152: Inversión | K152: Un Nuevo Contrato Social y Ambiental para la Bogotá del Siglo XXI | L152: 57 | M152: =IF(ISERROR(VLOOKUP(L152,Proposito_programa!$C$2:$E$59,2,FALSE))," ",VLOOKUP(L152,Proposito_programa!$C$2:$E$59,2,FALSE)) -> Gestión pública local | N152: =IF(ISERROR(VLOOKUP(L152,Proposito_programa!$C$2:$E$59,3,FALSE))," ",VLOOKUP(L152,Proposito_programa!$C$2:$E$59,3,FALSE)) -> Propósito 5: Construir Bogotá - Región con gobierno abierto, transparente y ciudadanía consciente | O152: 133011605570000001741 | P152: 1 | Q152: 1018445848 | R152: JUAN DAVID CHICACAUSA SALAS | S152: Persona Natural | W152: 12000000 | Y152: 2 | Z152: 640000 | AA152: 12640000 | AB152: 10080000 | AC152: 2021-08-09 | AD152: 2021-08-10 | AE152: 2022-01-17 | AF152: 150 | AG152: 1 | AH152: 30 | AN152: X | AQ152: =IF(ISERROR(AB152/AA152),"-",(AB152/AA152)) -> 0.7974683544
A153: 1 | B153: 140 | C153: 2021 | D153: FDLCH-CPS- 139-2021 | E153: https://community.secop.gov.co/Public/Tendering/OpportunityDetail/Index?noticeUID=CO1.NTC.1735194&isFromPublicArea=True&isModal=true&asPopupView=true | F153: Contratos de prestación de servicios profesionales y de apoyo a la gestión | G153: Contratación directa | H153: Prestación de servicios profesionales y de apoyo a la gestión, o para la ejecución de trabajos artísticos que sólo puedan encomendarse a determinadas personas naturales; | I153: Prestar servicios de apoyo a la gestión para desarrollar las actividades de radicación, gestión de correspondencia y de la documentación que expide, se allega y controla la Alcaldía Local de Chapinero. | J153: Inversión | K153: Un Nuevo Contrato Social y Ambiental para la Bogotá del Siglo XXI | L153: 57 | M153: =IF(ISERROR(VLOOKUP(L153,Proposito_programa!$C$2:$E$59,2,FALSE))," ",VLOOKUP(L153,Proposito_programa!$C$2:$E$59,2,FALSE)) -> Gestión pública local | N153: =IF(ISERROR(VLOOKUP(L153,Proposito_programa!$C$2:$E$59,3,FALSE))," ",VLOOKUP(L153,Proposito_programa!$C$2:$E$59,3,FALSE)) -> Propósito 5: Construir Bogotá - Región con gobierno abierto, transparente y ciudadanía consciente | O153: 133011605570000001741 | P153: 1 | Q153: 1031147236 | R153: DEISY YINETH FRANCO PENAGOS | S153: Persona Natural | W153: 12000000 | Y153: 1 | Z153: 480000 | AA153: 12480000 | AB153: 10160000 | AC153: 2021-08-06 | AD153: 2021-08-09 | AE153: 2022-01-14 | AF153: 150 | AG153: 1 | AH153: 30 | AN153: X | AQ153: 0.8141025641
A154: 1 | B154: 141 | C154: 2021 | D154: FDLCH-CPS-140-2021 | E154: https://community.secop.gov.co/Public/Tendering/OpportunityDetail/Index?noticeUID=CO1.NTC.2163824&isFromPublicArea=True&isModal=true&asPopupView=true | F154: Contratos de prestación de servicios profesionales y de apoyo a la gestión | G154: Contratación directa | H154: Prestación de servicios profesionales y de apoyo a la gestión, o para la ejecución de trabajos artísticos que sólo puedan encomendarse a determinadas personas naturales; | I154: Prestar los servicios de Apoyo y dar soporte técnico al administrador y usuario final de la red de sistemas y tecnología e información de la Alcaldía Local. | J154: Inversión | K154: Un Nuevo Contrato Social y Ambiental para la Bogotá del Siglo XXI | L154: 57 | M154: =IF(ISERROR(VLOOKUP(L154,Proposito_programa!$C$2:$E$59,2,FALSE))," ",VLOOKUP(L154,Proposito_programa!$C$2:$E$59,2,FALSE)) -> Gestión pública local | N154: =IF(ISERROR(VLOOKUP(L154,Proposito_programa!$C$2:$E$59,3,FALSE))," ",VLOOKUP(L154,Proposito_programa!$C$2:$E$59,3,FALSE)) -> Propósito 5: Construir Bogotá - Región con gobierno abierto, transparente y ciudadanía consciente | O154: 133011605570000001741 | P154: 1 | Q154: 1032386167 | R154: ESTEBAN GONZALEZ PORTILLA | S154: Persona Natural | W154: 10800000 | Y154: 1 | Z154: 2700000 | AA154: 13500000 | AB154: 11250000 | AC154: 2021-08-10 | AD154: 2021-08-11 | AE154: 2022-01-10 | AF154: 120 | AG154: 1 | AH154: 30 | AN154: X | AQ154: 0.8333333333
A155: 1 | B155: 142 | C155: 2021 | D155: FDLCH-CPS-141-2021 | E155: https://community.secop.gov.co/Public/Tendering/OpportunityDetail/Index?noticeUID=CO1.NTC.2169873&isFromPublicArea=True&isModal=true&asPopupView=true | F155: Contratos de prestación de servicios profesionales y de apoyo a la gestión | G155: Contratación directa | H155: Prestación de servicios profesionales y de apoyo a la gestión, o para la ejecución de trabajos artísticos que sólo puedan encomendarse a determinadas personas naturales; | I155: Prestar servicios profesionales para apoyar la gestión, formulación, desarrollo, seguimiento y evaluación del proyecto de inversión“Chapinero promueve y genera confianza ciudadana y realizar los apoyos a la supervisión de los contratos que de él se deriven. | J155: Inversión | K155: Un Nuevo Contrato Social y Ambiental para la Bogotá del Siglo XXI | L155: 43 | M155: =IF(ISERROR(VLOOKUP(L155,Proposito_programa!$C$2:$E$59,2,FALSE))," ",VLOOKUP(L155,Proposito_programa!$C$2:$E$59,2,FALSE)) -> Cultura ciudadana para la confianza, la convivencia y la participación desde la vida cotidiana | N155: =IF(ISERROR(VLOOKUP(L155,Proposito_programa!$C$2:$E$59,3,FALSE))," ",VLOOKUP(L155,Proposito_programa!$C$2:$E$59,3,FALSE)) -> Propósito 3: Inspirar confianza y legitimidad para vivir sin miedo y ser epicentro de cultura ciudadana, paz y reconciliación | O155: 133011603430000001735 | P155: 1 | Q155: 1026568660 | R155: CRISTIAN ANDRES MONROY CARANTON | S155: Persona Natural | W155: 17444000 | Y155: 1 | Z155: 4070267 | AA155: 21514267 | AB155: 17880100 | AC155: 2021-08-13 | AD155: 2021-08-13 | AE155: 2022-01-09 | AF155: 120 | AG155: 1 | AH155: 30 | AN155: X | AQ155: 0.8310810682
A156: 1 | B156: 143 | C156: 2021 | D156: FDLCH-CPS-142-2021 | E156: https://community.secop.gov.co/Public/Tendering/OpportunityDetail/Index?noticeUID=CO1.NTC.2171228&isFromPublicArea=True&isModal=true&asPopupView=true | F156: Contratos de prestación de servicios profesionales y de apoyo a la gestión | G156: Contratación directa | H156: Prestación de servicios profesionales y de apoyo a la gestión, o para la ejecución de trabajos artísticos que sólo puedan encomendarse a determinadas personas naturales; | I156: Prestar los servicios profesionales de apoyo a la gestión, formulación, desarrollo, seguimiento y evaluación del proyecto de inversión chapinero epocentro del deporte y la recreación. | J156: Inversión | K156: Un Nuevo Contrato Social y Ambiental para la Bogotá del Siglo XXI | L156: 20 | M156: =IF(ISERROR(VLOOKUP(L156,Proposito_programa!$C$2:$E$59,2,FALSE))," ",VLOOKUP(L156,Proposito_programa!$C$2:$E$59,2,FALSE)) -> Bogotá, referente en cultura, deporte, recreación y actividad física, con parques para el desarrollo y la salud | N156: =IF(ISERROR(VLOOKUP(L156,Proposito_programa!$C$2:$E$59,3,FALSE))," ",VLOOKUP(L156,Proposito_programa!$C$2:$E$59,3,FALSE)) -> Propósito 1: Hacer un nuevo contrato social para incrementar la inclusión social, productiva y política | O156: 133011601200000001845 | P156: 1 | Q156: 1030592221 | R156: MIGUEL ANGEL DELGADO BARRERA | S156: Persona Natural | W156: 18000000 | Y156: 1 | Z156: 4500000 | AA156: 22500000 | AB156: 18450000 | AC156: 2021-08-13 | AD156: 2021-08-13 | AE156: 2022-01-12 | AF156: 120 | AG156: 1 | AH156: 30 | AN156: X | AQ156: 0.82
A157: 1 | B157: 144 | C157: 2021 | D157: FDLCH-CPS-143-2021 | E157: https://community.secop.gov.co/Public/Tendering/OpportunityDetail/Index?noticeUID=CO1.NTC.2173115&isFromPublicArea=True&isModal=true&asPopupView=true | F157: Contratos de prestación de servicios profesionales y de apoyo a la gestión | G157: Contratación directa | H157: Prestación de servicios profesionales y de apoyo a la gestión, o para la ejecución de trabajos artísticos que sólo puedan encomendarse a determinadas personas naturales; | I157: Prestar servicio técnico jurídicos de apoyo y asistencia administrativa al área de gestión del desarrollo administrativo y financiero del Fondo de Desarrollo Local de Chapinero. | J157: Inversión | K157: Un Nuevo Contrato Social y Ambiental para la Bogotá del Siglo XXI | L157: 57 | M157: =IF(ISERROR(VLOOKUP(L157,Proposito_programa!$C$2:$E$59,2,FALSE))," ",VLOOKUP(L157,Proposito_programa!$C$2:$E$59,2,FALSE)) -> Gestión pública local | N157: =IF(ISERROR(VLOOKUP(L157,Proposito_programa!$C$2:$E$59,3,FALSE))," ",VLOOKUP(L157,Proposito_programa!$C$2:$E$59,3,FALSE)) -> Propósito 5: Construir Bogotá - Región con gobierno abierto, transparente y ciudadanía consciente | O157: 133011605570000001741 | P157: 1 | Q157: 1144193027 | R157: JUAN FERNANDO VILLEGAS MOTOA | S157: Persona Natural | W157: 14000000 | Y157: 1 | Z157: 2566667 | AA157: 16566667 | AB157: 13066666 | AC157: 2021-08-13 | AD157: 2021-08-17 | AE157: 2022-01-14 | AF157: 120 | AG157: 1 | AH157: 30 | AN157: X | AQ157: 0.7887323383
A158: 1 | B158: 145 | C158: 2021 | D158: FDLCH-CIA-144-2021 | E158: https://www.contratos.gov.co/consultas/detalleProceso.do?numConstancia=21-22-28969&g-recaptcha-response=03AGdBq26UZNiaHbPzzceI1jOZz0nnmemQ7U7n34w_NI-QjOk2R4mAbmfY6-Hea-wziIjw-sch0nHgbdJgZF_v0Wm6-YFqu4tzycUAP2l-15Uz9uftaAjpAAiA4-F6HWo_NQ7qVv7LTqLzfsCLDqMymSToQd1mL4wUWYx4QdoXFQf5jcGa6hlQARsAN1Sc3lc-AHZFYLakPnVymZONiA-vK6bnZlJKhqH1xozVzOSwfi1e9UqP9d7AOvIo0QnkcPqQCm_Cr6JGr-2fqJb7SJ1yBFzGSrhINKHO8iZPh4KKUiA9bpsGz-OND1NDBsPlZqv0rPro5xp0oN46n4QyRMYvBPb6CHxDVY82p8v6jNtYIIg5EvoSyb7s8FiDKYhfYLFmzjP3Jm_70vTANorltZ00fNpmkKPa0F4WX8sv3nmKLG6IFCDN83g5FgWdLAQ271csEoKEhAfpAltWs1AY5Bqbi7rdq1Mu8qY5Xg | F158: Contratos interadministrativos | G158: Contratación directa | H158: Contratos interadministrativos | I158: Aunar esfuerzos administrativos, técnicos, financieros y de recursos humano, entre los fondos de desarrollo local de las loclaidades de Bogotá y el Instituto Distrital de Turismo-IDT, tendientes a desarrollar componentes de reactivación económica del sector turismo, mediante la ejecución de acciones, actividades y proyectos, en el marco d elos presupuestos particicpativos y del Plan de Desarrollo, un nuevo contrato social y ambiental para la Bogotá del siglo XXI. | J158: Inversión | K158: Un Nuevo Contrato Social y Ambiental para la Bogotá del Siglo XXI | L158: 6 | M158: =IF(ISERROR(VLOOKUP(L158,Proposito_programa!$C$2:$E$59,2,FALSE))," ",VLOOKUP(L158,Proposito_programa!$C$2:$E$59,2,FALSE)) -> Sistema Distrital de Cuidado | N158: =IF(ISERROR(VLOOKUP(L158,Proposito_programa!$C$2:$E$59,3,FALSE))," ",VLOOKUP(L158,Proposito_programa!$C$2:$E$59,3,FALSE)) -> Propósito 1: Hacer un nuevo contrato social para incrementar la inclusión social, productiva y política | O158: 133011601060000001671 | P158: 1 | Q158: 900140515 | R158: INSTITUTO DISTRITAL DE TURISMO IDT | S158: Persona Jurídica | W158: 88781194 | AA158: =+W158+Z158 -> 88781194 | AB158: 88781194 | AC158: 2021-09-01 | AD158: 2021-09-06 | AE158: 2022-06-30 | AF158: 270 | AH158: 0 | AN158: X | AQ158: 1
A159: 1 | B159: 146 | C159: 2021 | D159: FDLCH-CPS-145-2021 | E159: https://community.secop.gov.co/Public/Tendering/OpportunityDetail/Index?noticeUID=CO1.NTC.2174111&isFromPublicArea=True&isModal=true&asPopupView=true | F159: Contratos de prestación de servicios profesionales y de apoyo a la gestión | G159: Contratación directa | H159: Prestación de servicios profesionales y de apoyo a la gestión, o para la ejecución de trabajos artísticos que sólo puedan encomendarse a determinadas personas naturales; | I159: Prestar los servicios profesionales para la gestión, formulación, desarrollo, seguimiento y evaluación del proyecto de inversión“Chapinero espacio para hábitos saludablesen el componente construcción y/o conservación de los parque svecinales y/o de bolsillo" | J159: Inversión | K159: Un Nuevo Contrato Social y Ambiental para la Bogotá del Siglo XXI | L159: 33 | M159: =IF(ISERROR(VLOOKUP(L159,Proposito_programa!$C$2:$E$59,2,FALSE))," ",VLOOKUP(L159,Proposito_programa!$C$2:$E$59,2,FALSE)) -> Más árboles y más y mejor espacio público | N159: =IF(ISERROR(VLOOKUP(L159,Proposito_programa!$C$2:$E$59,3,FALSE))," ",VLOOKUP(L159,Proposito_programa!$C$2:$E$59,3,FALSE)) -> Propósito 2 : Cambiar Nuestros Hábitos de Vida para Reverdecer a Bogotá y Adaptarnos y Mitigar la Crisis Climática | O159: 133011602330000001723 | P159: 1 | Q159: 79268761 | R159: MAURICIO BOHORQUEZ ESCOBAR | S159: Persona Natural | W159: 27500000 | AA159: 27500000 | AB159: 21816667 | AC159: 2021-08-13 | AD159: 2021-08-17 | AE159: 2022-01-16 | AF159: 150 | AH159: 0 | AN159: X | AQ159: 0.7933333455
A160: 1 | B160: 147 | C160: 2021 | D160: FDLCH-CPS-146-2021 | E160: https://community.secop.gov.co/Public/Tendering/OpportunityDetail/Index?noticeUID=CO1.NTC.2182790&isFromPublicArea=True&isModal=true&asPopupView=true | F160: Contratos de prestación de servicios profesionales y de apoyo a la gestión | G160: Contratación directa | H160: Prestación de servicios profesionales y de apoyo a la gestión, o para la ejecución de trabajos artísticos que sólo puedan encomendarse a determinadas personas naturales; | I160: Prestar servicios de apoyo a la gestión para desarrollar las actividades de radicación, gestión de correspondencia y de la documentación que expide, se allega y controlan las Inspecciones de Policía de la Alcaldía Local de Chapinero. | J160: Inversión | K160: Un Nuevo Contrato Social y Ambiental para la Bogotá del Siglo XXI | L160: 57 | M160: =IF(ISERROR(VLOOKUP(L160,Proposito_programa!$C$2:$E$59,2,FALSE))," ",VLOOKUP(L160,Proposito_programa!$C$2:$E$59,2,FALSE)) -> Gestión pública local | N160: =IF(ISERROR(VLOOKUP(L160,Proposito_programa!$C$2:$E$59,3,FALSE))," ",VLOOKUP(L160,Proposito_programa!$C$2:$E$59,3,FALSE)) -> Propósito 5: Construir Bogotá - Región con gobierno abierto, transparente y ciudadanía consciente | O160: 133011605570000001741 | P160: 1 | Q160: 1063134906 | R160: VANESA ALEXANDRA JIMENEZ ARTEAGA | S160: Persona Natural | W160: 11000000 | AA160: 11000000 | AB160: 8653333 | AC160: 2021-08-19 | AD160: 2021-08-20 | AE160: 2022-01-19 | AF160: 150 | AH160: 0 | AN160: X | AQ160: 0.7866666364
A161: 1 | B161: 148 | C161: 2021 | D161: FDLCH-CPS-147-2021 | E161: https://community.secop.gov.co/Public/Tendering/OpportunityDetail/Index?noticeUID=CO1.NTC.2182663&isFromPublicArea=True&isModal=true&asPopupView=true | F161: Contratos de prestación de servicios profesionales y de apoyo a la gestión | G161: Contratación directa | H161: Prestación de servicios profesionales y de apoyo a la gestión, o para la ejecución de trabajos artísticos que sólo puedan encomendarse a determinadas personas naturales; | I161: Prestar servicios de apoyo a la gestion para desarrollar las actividades de radicacion y gestion de correspondencia de la documentacion que expide y se allega a la Alcaldia Local de Chapinero | J161: Inversión | K161: Un Nuevo Contrato Social y Ambiental para la Bogotá del Siglo XXI | L161: 57 | M161: =IF(ISERROR(VLOOKUP(L161,Proposito_programa!$C$2:$E$59,2,FALSE))," ",VLOOKUP(L161,Proposito_programa!$C$2:$E$59,2,FALSE)) -> Gestión pública local | N161: =IF(ISERROR(VLOOKUP(L161,Proposito_programa!$C$2:$E$59,3,FALSE))," ",VLOOKUP(L161,Proposito_programa!$C$2:$E$59,3,FALSE)) -> Propósito 5: Construir Bogotá - Región con gobierno abierto, transparente y ciudadanía consciente | O161: 133011605570000001741 | P161: 1 | Q161: 1023007285 | R161: JENNIFER MARIA SAUCEDO FUENTES | S161: Persona Natural | W161: 7280000 | Y161: 1 | Z161: 728000 | AA161: 8008000 | AB161: 7098000 | AC161: 2021-08-19 | AD161: 2021-08-19 | AE161: 2021-12-30 | AF161: 120 | AG161: 1 | AH161: 30 | AO161: X | AQ161: 0.8863636364
A162: 1 | B162: 149 | C162: 2021 | D162: FDLCH-CPS-148-2021 | E162: https://community.secop.gov.co/Public/Tendering/OpportunityDetail/Index?noticeUID=CO1.NTC.2174909&isFromPublicArea=True&isModal=true&asPopupView=true | F162: Contratos de prestación de servicios profesionales y de apoyo a la gestión | G162: Contratación directa | H162: Prestación de servicios profesionales y de apoyo a la gestión, o para la ejecución de trabajos artísticos que sólo puedan encomendarse a determinadas personas naturales; | I162: Prestar servicios profesionales para apoyar la gestión, formulación, desarrollo, seguimiento y evaluación del proyecto de inversión “Chapinero es espacio publico incluyente y democrático. | J162: Inversión | K162: Un Nuevo Contrato Social y Ambiental para la Bogotá del Siglo XXI | L162: 45 | M162: =IF(ISERROR(VLOOKUP(L162,Proposito_programa!$C$2:$E$59,2,FALSE))," ",VLOOKUP(L162,Proposito_programa!$C$2:$E$59,2,FALSE)) -> Espacio público más seguro y construido colectivamente | N162: =IF(ISERROR(VLOOKUP(L162,Proposito_programa!$C$2:$E$59,3,FALSE))," ",VLOOKUP(L162,Proposito_programa!$C$2:$E$59,3,FALSE)) -> Propósito 3: Inspirar confianza y legitimidad para vivir sin miedo y ser epicentro de cultura ciudadana, paz y reconciliación | O162: 133011603450000001736 | P162: 1 | Q162: 80192226 | R162: OSCAR FABIAN MAESTRE OLAYA | S162: Persona Natural | W162: 17444000 | Y162: 2 | Z162: 3488793 | AA162: 20932793 | AB162: 17734733 | AC162: 2021-08-13 | AD162: 2021-08-14 | AE162: 2022-01-06 | AF162: 120 | AG162: 2 | AH162: 60 | AO162: X | AQ162: 0.8472224896
A163: 1 | B163: 150 | C163: 2021 | D163: FDLCH-CPS-149-2021 | E163: https://community.secop.gov.co/Public/Tendering/OpportunityDetail/Index?noticeUID=CO1.NTC.2179448&isFromPublicArea=True&isModal=true&asPopupView=true | F163: Contratos de prestación de servicios profesionales y de apoyo a la gestión | G163: Contratación directa | H163: Prestación de servicios profesionales y de apoyo a la gestión, o para la ejecución de trabajos artísticos que sólo puedan encomendarse a determinadas personas naturales; | I163: Prestar los servicios de apoyo a la gestión en la implementación, atención, verificación, soporte y acompañamiento de los procesos y/o actuaciones administrativas de registro y seguimiento a la propiedad horizontal en los aplicativos y/o herramientas virtuales en la localidad de Chapinero. | J163: Inversión | K163: Un Nuevo Contrato Social y Ambiental para la Bogotá del Siglo XXI | L163: 57 | M163: =IF(ISERROR(VLOOKUP(L163,Proposito_programa!$C$2:$E$59,2,FALSE))," ",VLOOKUP(L163,Proposito_programa!$C$2:$E$59,2,FALSE)) -> Gestión pública local | N163: =IF(ISERROR(VLOOKUP(L163,Proposito_programa!$C$2:$E$59,3,FALSE))," ",VLOOKUP(L163,Proposito_programa!$C$2:$E$59,3,FALSE)) -> Propósito 5: Construir Bogotá - Región con gobierno abierto, transparente y ciudadanía consciente | O163: 133011605570000001741 | P163: 1 | Q163: 1026595076 | R163: VALENTINA SALGADO RODRIGUEZ | S163: Persona Natural | W163: 10000000 | Y163: 1 | Z163: 1083333 | AA163: 11083333 | AB163: 8583333 | AC163: 2021-08-18 | AD163: 2021-08-18 | AE163: 2021-12-30 | AF163: 120 | AG163: 1 | AH163: 30 | AO163: X | AQ163: 0.7744360834
A164: 1 | B164: 151 | C164: 2021 | D164: FDLCH-CPS-150-2021 | E164: https://community.secop.gov.co/Public/Tendering/OpportunityDetail/Index?noticeUID=CO1.NTC.2184683&isFromPublicArea=True&isModal=true&asPopupView=true | F164: Contratos de prestación de servicios profesionales y de apoyo a la gestión | G164: Contratación directa | H164: Prestación de servicios profesionales y de apoyo a la gestión, o para la ejecución de trabajos artísticos que sólo puedan encomendarse a determinadas personas naturales; | I164: Prestar servicios técnicos para apoyar la gestión jurídica en la ejecución de las actividades administrativas y documentales con contenido jurídico, relacionadas con los procesos de inspección, vigilancia y control que adelanta la Alcaldía Local de Chapinero. | J164: Inversión | K164: Un Nuevo Contrato Social y Ambiental para la Bogotá del Siglo XXI | L164: 57 | M164: =IF(ISERROR(VLOOKUP(L164,Proposito_programa!$C$2:$E$59,2,FALSE))," ",VLOOKUP(L164,Proposito_programa!$C$2:$E$59,2,FALSE)) -> Gestión pública local | N164: =IF(ISERROR(VLOOKUP(L164,Proposito_programa!$C$2:$E$59,3,FALSE))," ",VLOOKUP(L164,Proposito_programa!$C$2:$E$59,3,FALSE)) -> Propósito 5: Construir Bogotá - Región con gobierno abierto, transparente y ciudadanía consciente | O164: 133011605570000001841 | P164: 1 | Q164: 52524843 | R164: YADY MATILDE MORENO VARGAS | S164: Persona Natural | W164: 10500000 | Y164: 1 | Z164: 5250000 | AA164: 15750000 | AB164: 11433333 | AC164: 2021-08-20 | AD164: 2021-08-23 | AE164: 2022-01-06 | AF164: 90 | AG164: 1 | AH164: 30 | AO164: X | AQ164: 0.7259259048
A165: 1 | B165: 152 | C165: 2021 | D165: FDLCH-CPS-151-2021 | E165: https://community.secop.gov.co/Public/Tendering/OpportunityDetail/Index?noticeUID=CO1.NTC.2191644&isFromPublicArea=True&isModal=true&asPopupView=true | F165: Contratos de prestación de servicios profesionales y de apoyo a la gestión | G165: Contratación directa | H165: Prestación de servicios profesionales y de apoyo a la gestión, o para la ejecución de trabajos artísticos que sólo puedan encomendarse a determinadas personas naturales; | I165: Prestar los servicios personales necesarios para la conducción de los vehículos que conforman el parque automotor en propiedad o custodia del Fondo de Desarrollo Local de Chapinero, y el transporte de servicios públicos para la realización de las actividades misionales de la Alcaldía Local de Chapinero. | J165: Inversión | K165: Un Nuevo Contrato Social y Ambiental para la Bogotá del Siglo XXI | L165: 57 | M165: =IF(ISERROR(VLOOKUP(L165,Proposito_programa!$C$2:$E$59,2,FALSE))," ",VLOOKUP(L165,Proposito_programa!$C$2:$E$59,2,FALSE)) -> Gestión pública local | N165: =IF(ISERROR(VLOOKUP(L165,Proposito_programa!$C$2:$E$59,3,FALSE))," ",VLOOKUP(L165,Proposito_programa!$C$2:$E$59,3,FALSE)) -> Propósito 5: Construir Bogotá - Región con gobierno abierto, transparente y ciudadanía consciente | O165: 133011605570000001741 | P165: 1 | Q165: 79910420 | R165: HAMILTON ARREDONDO BAUTISTA | S165: Persona Natural | W165: 12000000 | AA165: 12000000 | AB165: 8960000 | AC165: 2021-08-23 | AD165: 2021-08-24 | AE165: 2022-01-23 | AF165: 150 | AH165: 0 | AN165: X | AQ165: 0.7466666667
A166: 1 | B166: 153 | C166: 2021 | D166: FDLCH-CPS-152-2021 | E166: https://community.secop.gov.co/Public/Tendering/OpportunityDetail/Index?noticeUID=CO1.NTC.2184757&isFromPublicArea=True&isModal=true&asPopupView=true | F166: Contratos de prestación de servicios profesionales y de apoyo a la gestión | G166: Contratación directa | H166: Prestación de servicios profesionales y de apoyo a la gestión, o para la ejecución de trabajos artísticos que sólo puedan encomendarse a determinadas personas naturales; | I166: Prestar servicios de apoyo logístico asistencial para el desarrollo de actividades y eventos locales en atención del Proyecto : “Chapinero dejando huella por los animales “. | J166: Inversión | K166: Un Nuevo Contrato Social y Ambiental para la Bogotá del Siglo XXI | L166: 34 | M166: =IF(ISERROR(VLOOKUP(L166,Proposito_programa!$C$2:$E$59,2,FALSE))," ",VLOOKUP(L166,Proposito_programa!$C$2:$E$59,2,FALSE)) -> Bogotá protectora de los animales | N166: =IF(ISERROR(VLOOKUP(L166,Proposito_programa!$C$2:$E$59,3,FALSE))," ",VLOOKUP(L166,Proposito_programa!$C$2:$E$59,3,FALSE)) -> Propósito 2 : Cambiar Nuestros Hábitos de Vida para Reverdecer a Bogotá y Adaptarnos y Mitigar la Crisis Climática | O166: 133011602340000001731 | P166: 1 | Q166: 80410411 | R166: CARLOS JULIO MARTINEZ RIPE | S166: Persona Natural | W166: 6800000 | Y166: 1 | Z166: 1700000 | AA166: 8500000 | AB166: 6573333 | AC166: 2021-08-19 | AD166: 2021-08-20 | AE166: 2022-01-19 | AF166: 120 | AG166: 1 | AH166: 30 | AN166: X | AQ166: 0.7733332941
A167: 1 | B167: 154 | C167: 2021 | D167: FDLCH-CPS-153-2021 | E167: https://community.secop.gov.co/Public/Tendering/OpportunityDetail/Index?noticeUID=CO1.NTC.2184680&isFromPublicArea=True&isModal=true&asPopupView=true | F167: Contratos de prestación de servicios profesionales y de apoyo a la gestión | G167: Contratación directa | H167: Prestación de servicios profesionales y de apoyo a la gestión, o para la ejecución de trabajos artísticos que sólo puedan encomendarse a determinadas personas naturales; | I167: Prestar servicios de apoyo logístico asistencial para el desarrollo de actividades y eventos locales en atención del Proyecto : “Chapinero dejando huella por los animales “. | J167: Inversión | K167: Un Nuevo Contrato Social y Ambiental para la Bogotá del Siglo XXI | L167: 34 | M167: =IF(ISERROR(VLOOKUP(L167,Proposito_programa!$C$2:$E$59,2,FALSE))," ",VLOOKUP(L167,Proposito_programa!$C$2:$E$59,2,FALSE)) -> Bogotá protectora de los animales | N167: =IF(ISERROR(VLOOKUP(L167,Proposito_programa!$C$2:$E$59,3,FALSE))," ",VLOOKUP(L167,Proposito_programa!$C$2:$E$59,3,FALSE)) -> Propósito 2 : Cambiar Nuestros Hábitos de Vida para Reverdecer a Bogotá y Adaptarnos y Mitigar la Crisis Climática | O167: 133011602340000001731 | P167: 1 | Q167: 1071166907 | R167: WILSON FERNANDO ORJUELA CHAVES | S167: Persona Natural | W167: 6800000 | Y167: 1 | Z167: 1700000 | AA167: 8500000 | AB167: 6573333 | AC167: 2021-08-19 | AD167: 2021-08-20 | AE167: 2022-01-19 | AF167: 120 | AG167: 1 | AH167: 30 | AN167: X | AQ167: 0.7733332941
A168: 1 | B168: 155 | C168: 2021 | D168: FDLCH-CPS-154-2021 | E168: https://community.secop.gov.co/Public/Tendering/OpportunityDetail/Index?noticeUID=CO1.NTC.2196158&isFromPublicArea=True&isModal=true&asPopupView=true | F168: Contratos de prestación de servicios profesionales y de apoyo a la gestión | G168: Contratación directa | H168: Prestación de servicios profesionales y de apoyo a la gestión, o para la ejecución de trabajos artísticos que sólo puedan encomendarse a determinadas personas naturales; | I168: Prestar servicios profesionales para apoyar técnicamente las distintas etapas de los procesos de competencia de las inspecciones de policía de la localidad de chapinero, según reparto | J168: Inversión | K168: Un Nuevo Contrato Social y Ambiental para la Bogotá del Siglo XXI | L168: 57 | M168: =IF(ISERROR(VLOOKUP(L168,Proposito_programa!$C$2:$E$59,2,FALSE))," ",VLOOKUP(L168,Proposito_programa!$C$2:$E$59,2,FALSE)) -> Gestión pública local | N168: =IF(ISERROR(VLOOKUP(L168,Proposito_programa!$C$2:$E$59,3,FALSE))," ",VLOOKUP(L168,Proposito_programa!$C$2:$E$59,3,FALSE)) -> Propósito 5: Construir Bogotá - Región con gobierno abierto, transparente y ciudadanía consciente | O168: 133011605570000001841 | P168: 1 | Q168: 80429650 | R168: EXCELINO ROMERO CASTAÑEDA | S168: Persona Natural | W168: 20000000 | AA168: 20000000 | AB168: 16000000 | AC168: 2021-08-24 | AD168: 2021-08-25 | AE168: 2021-12-24 | AF168: 120 | AH168: 0 | AO168: X | AQ168: 0.8
A169: 1 | B169: 156 | C169: 2021 | D169: FDLCH-CPS-155-2021 | E169: https://community.secop.gov.co/Public/Tendering/OpportunityDetail/Index?noticeUID=CO1.NTC.2198902&isFromPublicArea=True&isModal=true&asPopupView=true | F169: Contratos de prestación de servicios profesionales y de apoyo a la gestión | G169: Contratación directa | H169: Prestación de servicios profesionales y de apoyo a la gestión, o para la ejecución de trabajos artísticos que sólo puedan encomendarse a determinadas personas naturales; | I169: Prestar servicios profesionales para apoyar técnicamente las distintas etapas de los procesos de competencia de las inspecciones de policía de la localidad de chapinero según reparto. | J169: Inversión | K169: Un Nuevo Contrato Social y Ambiental para la Bogotá del Siglo XXI | L169: 57 | M169: =IF(ISERROR(VLOOKUP(L169,Proposito_programa!$C$2:$E$59,2,FALSE))," ",VLOOKUP(L169,Proposito_programa!$C$2:$E$59,2,FALSE)) -> Gestión pública local | N169: =IF(ISERROR(VLOOKUP(L169,Proposito_programa!$C$2:$E$59,3,FALSE))," ",VLOOKUP(L169,Proposito_programa!$C$2:$E$59,3,FALSE)) -> Propósito 5: Construir Bogotá - Región con gobierno abierto, transparente y ciudadanía consciente | O169: 133011605570000001841 | P169: 1 | Q169: 80926066 | R169: OMAR DAVID LAVERDE CABRERA | S169: Persona Natural | W169: 20000000 | AA169: 20000000 | AB169: 16000000 | AC169: 2021-08-25 | AD169: 2021-08-25 | AE169: 2021-12-24 | AF169: 120 | AH169: 0 | AO169: X | AQ169: 0.8
A170: 1 | B170: 157 | C170: 2021 | D170: FDLCH-CPS-156-2021 | E170: https://community.secop.gov.co/Public/Tendering/OpportunityDetail/Index?noticeUID=CO1.NTC.2198611&isFromPublicArea=True&isModal=true&asPopupView=true | F170: Contratos de prestación de servicios profesionales y de apoyo a la gestión | G170: Contratación directa | H170: Prestación de servicios profesionales y de apoyo a la gestión, o para la ejecución de trabajos artísticos que sólo puedan encomendarse a determinadas personas naturales; | I170: Prestar los servicios profesionales para la gestión, formulación, desarrollo, seguimiento y evaluación del proyecto 1739 “Chapinero liderado por la ciudadanía”, así como el apoyo a la supervisión de los contratos que le sean asignados por el Alcalde Local | J170: Inversión | K170: Un Nuevo Contrato Social y Ambiental para la Bogotá del Siglo XXI | L170: 55 | M170: =IF(ISERROR(VLOOKUP(L170,Proposito_programa!$C$2:$E$59,2,FALSE))," ",VLOOKUP(L170,Proposito_programa!$C$2:$E$59,2,FALSE)) -> Fortalecimiento de cultura ciudadana y su institucionalidad | N170: =IF(ISERROR(VLOOKUP(L170,Proposito_programa!$C$2:$E$59,3,FALSE))," ",VLOOKUP(L170,Proposito_programa!$C$2:$E$59,3,FALSE)) -> Propósito 5: Construir Bogotá - Región con gobierno abierto, transparente y ciudadanía consciente | O170: 133011605550000001739 | P170: 1 | Q170: 80092921 | R170: FEDERICO SANTIAGO BALLESTEROS | S170: Persona Natural | W170: 17444000 | Y170: 1 | Z170: 3052700 | AA170: 20496700 | AB170: 13955200 | AC170: 2021-08-25 | AD170: 2021-08-25 | AE170: 2022-01-14 | AF170: 120 | AG170: 1 | AH170: 30 | AN170: X | AQ170: 0.6808510638
A171: 1 | B171: 158 | C171: 2021 | D171: FDLCH-CPS-157-2021 | E171: https://community.secop.gov.co/Public/Tendering/OpportunityDetail/Index?noticeUID=CO1.NTC.2201353&isFromPublicArea=True&isModal=true&asPopupView=true | F171: Contratos de prestación de servicios profesionales y de apoyo a la gestión | G171: Contratación directa | H171: Prestación de servicios profesionales y de apoyo a la gestión, o para la ejecución de trabajos artísticos que sólo puedan encomendarse a determinadas personas naturales; | I171: Prestar servicios de apoyo a la gestión en la ejecución de las actividades administrativas y documentales relacionadas con la gestión policiva en la Alcaldía Local de Chapinero. | J171: Inversión | K171: Un Nuevo Contrato Social y Ambiental para la Bogotá del Siglo XXI | L171: 57 | M171: =IF(ISERROR(VLOOKUP(L171,Proposito_programa!$C$2:$E$59,2,FALSE))," ",VLOOKUP(L171,Proposito_programa!$C$2:$E$59,2,FALSE)) -> Gestión pública local | N171: =IF(ISERROR(VLOOKUP(L171,Proposito_programa!$C$2:$E$59,3,FALSE))," ",VLOOKUP(L171,Proposito_programa!$C$2:$E$59,3,FALSE)) -> Propósito 5: Construir Bogotá - Región con gobierno abierto, transparente y ciudadanía consciente | O171: 133011605570000001841 | P171: 1 | Q171: 51765934 | R171: MARIA DIACLIN RODRIGUEZ PULECIO | S171: Persona Natural | W171: 8000000 | Y171: 1 | Z171: 1333333 | AA171: 9333333 | AB171: 7333333 | AC171: 2021-08-26 | AD171: 2021-08-27 | AE171: 2022-01-14 | AF171: 120 | AH171: 0 | AN171: X | AQ171: 0.7857142781
A172: 1 | B172: 159 | C172: 2021 | D172: FDLCH-CPS-158-2021 | E172: https://community.secop.gov.co/Public/Tendering/OpportunityDetail/Index?noticeUID=CO1.NTC.2201197&isFromPublicArea=True&isModal=true&asPopupView=true | F172: Contratos de prestación de servicios profesionales y de apoyo a la gestión | G172: Contratación directa | H172: Prestación de servicios profesionales y de apoyo a la gestión, o para la ejecución de trabajos artísticos que sólo puedan encomendarse a determinadas personas naturales; | I172: Prestar los servicios profesionales de apoyo jurídico en la ejecución de las acciones requeridas para el trámite e impulso procesal de las actuaciones, contravenciones y/o querellas que cursen en las inspecciones de policía de la localidad | J172: Inversión | K172: Un Nuevo Contrato Social y Ambiental para la Bogotá del Siglo XXI | L172: 57 | M172: =IF(ISERROR(VLOOKUP(L172,Proposito_programa!$C$2:$E$59,2,FALSE))," ",VLOOKUP(L172,Proposito_programa!$C$2:$E$59,2,FALSE)) -> Gestión pública local | N172: =IF(ISERROR(VLOOKUP(L172,Proposito_programa!$C$2:$E$59,3,FALSE))," ",VLOOKUP(L172,Proposito_programa!$C$2:$E$59,3,FALSE)) -> Propósito 5: Construir Bogotá - Región con gobierno abierto, transparente y ciudadanía consciente | O172: 133011605570000001841 | P172: 1 | Q172: 53139176 | R172: DENNIS NATALIA BERNAL RAMIREZ | S172: Persona Natural | W172: 17600000 | X172: -16720000 | AA172: 880000 | AB172: 880000 | AC172: 2021-08-26 | AD172: 2021-08-27 | AE172: 2021-09-03 | AF172: 120 | AH172: 0 | AO172: X | AQ172: 1
A173: 1 | B173: 160 | C173: 2021 | D173: FDLCH-CPS-159-2021 | E173: https://community.secop.gov.co/Public/Tendering/OpportunityDetail/Index?noticeUID=CO1.NTC.2201447&isFromPublicArea=True&isModal=true&asPopupView=true | F173: Contratos de prestación de servicios profesionales y de apoyo a la gestión | G173: Contratación directa | H173: Prestación de servicios profesionales y de apoyo a la gestión, o para la ejecución de trabajos artísticos que sólo puedan encomendarse a determinadas personas naturales; | I173: Prestar los servicios profesionales de apoyo jurídico en la ejecución de las acciones requeridas para el trámite e impulso procesal de las actuaciones, contravenciones y/o querellas que cursen en las inspecciones de policía de la localidad | J173: Inversión | K173: Un Nuevo Contrato Social y Ambiental para la Bogotá del Siglo XXI | L173: 57 | M173: =IF(ISERROR(VLOOKUP(L173,Proposito_programa!$C$2:$E$59,2,FALSE))," ",VLOOKUP(L173,Proposito_programa!$C$2:$E$59,2,FALSE)) -> Gestión pública local | N173: =IF(ISERROR(VLOOKUP(L173,Proposito_programa!$C$2:$E$59,3,FALSE))," ",VLOOKUP(L173,Proposito_programa!$C$2:$E$59,3,FALSE)) -> Propósito 5: Construir Bogotá - Región con gobierno abierto, transparente y ciudadanía consciente | O173: 133011605570000001841 | P173: 1 | Q173: 79297494 | R173: WILLIAM JAVIER RIVERA MENDOZA | S173: Persona Natural | W173: 17600000 | AA173: 17600000 | AB173: 13786667 | AC173: 2021-08-26 | AD173: 2021-08-27 | AE173: 2021-12-26 | AF173: 120 | AH173: 0 | AO173: X | AQ173: 0.7833333523
A174: 1 | B174: 161 | C174: 2021 | D174: FDLCH-CPS-160-2021 | E174: https://community.secop.gov.co/Public/Tendering/OpportunityDetail/Index?noticeUID=CO1.NTC.2208790&isFromPublicArea=True&isModal=true&asPopupView=true | F174: Contratos de prestación de servicios profesionales y de apoyo a la gestión | G174: Contratación directa | H174: Prestación de servicios profesionales y de apoyo a la gestión, o para la ejecución de trabajos artísticos que sólo puedan encomendarse a determinadas personas naturales; | I174: Prestar servicios profesionales para apoyar al alcalde local en la promoción, articulación, acompañamiento y seguimiento para la atención y protección de los animales domésticos y silvestres de la localidad | J174: Inversión | K174: Un Nuevo Contrato Social y Ambiental para la Bogotá del Siglo XXI | L174: 34 | M174: =IF(ISERROR(VLOOKUP(L174,Proposito_programa!$C$2:$E$59,2,FALSE))," ",VLOOKUP(L174,Proposito_programa!$C$2:$E$59,2,FALSE)) -> Bogotá protectora de los animales | N174: =IF(ISERROR(VLOOKUP(L174,Proposito_programa!$C$2:$E$59,3,FALSE))," ",VLOOKUP(L174,Proposito_programa!$C$2:$E$59,3,FALSE)) -> Propósito 2 : Cambiar Nuestros Hábitos de Vida para Reverdecer a Bogotá y Adaptarnos y Mitigar la Crisis Climática | O174: 133011602340000001731 | P174: 1 | Q174: 33366680 | R174: FRANCY PAOLA MONROY ALVAREZ | S174: Persona Natural | W174: 19200000 | Y174: 1 | Z174: 2400000 | AA174: =+W174+X174+Z174 -> 21600000 | AB174: 14400000 | AC174: 2021-08-30 | AD174: 2021-09-01 | AE174: 2022-01-15 | AF174: 120 | AG174: 1 | AH174: 30 | AN174: X | AQ174: 0.6666666667
A175: 1 | B175: 162 | C175: 2021 | D175: FDLCH-CPS-161-2021 | E175: https://community.secop.gov.co/Public/Tendering/OpportunityDetail/Index?noticeUID=CO1.NTC.2208983&isFromPublicArea=True&isModal=true&asPopupView=true | F175: Contratos de prestación de servicios profesionales y de apoyo a la gestión | G175: Contratación directa | H175: Prestación de servicios profesionales y de apoyo a la gestión, o para la ejecución de trabajos artísticos que sólo puedan encomendarse a determinadas personas naturales; | I175: Apoyar al Alcalde Local en la promoción, acompañamiento, coordinación y atención de las instancias de coordinación interinstitucionales y las instancias de participación locales, así como los procesos comunitarios en la localidad | J175: Inversión | K175: Un Nuevo Contrato Social y Ambiental para la Bogotá del Siglo XXI | L175: 57 | M175: =IF(ISERROR(VLOOKUP(L175,Proposito_programa!$C$2:$E$59,2,FALSE))," ",VLOOKUP(L175,Proposito_programa!$C$2:$E$59,2,FALSE)) -> Gestión pública local | N175: =IF(ISERROR(VLOOKUP(L175,Proposito_programa!$C$2:$E$59,3,FALSE))," ",VLOOKUP(L175,Proposito_programa!$C$2:$E$59,3,FALSE)) -> Propósito 5: Construir Bogotá - Región con gobierno abierto, transparente y ciudadanía consciente | O175: 133011605570000001741 | P175: 1 | Q175: 1026276743 | R175: LAURA MALAGIGI GOMEZ | S175: Persona Natural | W175: 20000000 | AA175: =+W175+X175+Z175 -> 20000000 | AB175: 14833333 | AC175: 2021-08-30 | AD175: 2021-09-02 | AE175: 2022-01-01 | AF175: 120 | AH175: 0 | AO175: X | AQ175: 0.74166665
A176: 1 | B176: 163 | C176: 2021 | D176: FDLCH-CPS-162-2021 | E176: https://community.secop.gov.co/Public/Tendering/OpportunityDetail/Index?noticeUID=CO1.NTC.2210144&isFromPublicArea=True&isModal=true&asPopupView=true | F176: Contratos de prestación de servicios profesionales y de apoyo a la gestión | G176: Contratación directa | H176: Prestación de servicios profesionales y de apoyo a la gestión, o para la ejecución de trabajos artísticos que sólo puedan encomendarse a determinadas personas naturales; | I176: Prestar servicios profesionales para apoyar técnicamente las distintas etapas de los procesos de competencia de las inspecciones de policía de la localidad de chapinero según reparto. | J176: Inversión | K176: Un Nuevo Contrato Social y Ambiental para la Bogotá del Siglo XXI | L176: 57 | M176: =IF(ISERROR(VLOOKUP(L176,Proposito_programa!$C$2:$E$59,2,FALSE))," ",VLOOKUP(L176,Proposito_programa!$C$2:$E$59,2,FALSE)) -> Gestión pública local | N176: =IF(ISERROR(VLOOKUP(L176,Proposito_programa!$C$2:$E$59,3,FALSE))," ",VLOOKUP(L176,Proposito_programa!$C$2:$E$59,3,FALSE)) -> Propósito 5: Construir Bogotá - Región con gobierno abierto, transparente y ciudadanía consciente | O176: 133011605570000001841 | P176: 1 | Q176: 72040774 | R176: JORGE ENRIQUE SOLIOS MARTINEZ | S176: Persona Natural | W176: 20000000 | AA176: =+W176+X176+Z176 -> 20000000 | AB176: 15166667 | AC176: 2021-08-31 | AD176: 2021-09-01 | AE176: 2021-12-31 | AF176: 120 | AH176: 0 | AO176: X | AQ176: 0.75833335
A177: 1 | B177: 164 | C177: 2021 | D177: FDLCH-CPS-163-2021 | E177: https://community.secop.gov.co/Public/Tendering/OpportunityDetail/Index?noticeUID=CO1.NTC.1805041&isFromPublicArea=True&isModal=true&asPopupView=true | F177: Contratos de prestación de servicios profesionales y de apoyo a la gestión | G177: Contratación directa | H177: Prestación de servicios profesionales y de apoyo a la gestión, o para la ejecución de trabajos artísticos que sólo puedan encomendarse a determinadas personas naturales; | I177: Prestar los servicios profesionales de apoyo a la gestión para la formulación, desarrollo y seguimiento del proyecto de inversión “chapinero modelo de movilidad inteligente” y la supervisión de contratos que le sean asignados | J177: Inversión | K177: Un Nuevo Contrato Social y Ambiental para la Bogotá del Siglo XXI | L177: 49 | M177: =IF(ISERROR(VLOOKUP(L177,Proposito_programa!$C$2:$E$59,2,FALSE))," ",VLOOKUP(L177,Proposito_programa!$C$2:$E$59,2,FALSE)) -> Movilidad segura, sostenible y accesible | N177: =IF(ISERROR(VLOOKUP(L177,Proposito_programa!$C$2:$E$59,3,FALSE))," ",VLOOKUP(L177,Proposito_programa!$C$2:$E$59,3,FALSE)) -> Propósito 4: Hacer de Bogotá Región un modelo de movilidad multimodal, incluyente y sostenible | O177: 133011604490000001734 | P177: 1 | Q177: 1090435721 | R177: JORGE ENRIQUE ABREO REYES | S177: Persona Natural | W177: 24800000 | Y177: 1 | Z177: 3100000 | AA177: =+W177+X177+Z177 -> 27900000 | AB177: 21286667 | AC177: 2021-09-02 | AD177: 2021-09-03 | AE177: 2022-01-17 | AF177: 120 | AG177: 1 | AH177: 30 | AN177: X | AQ177: 0.7629629749
A178: 1 | B178: 165 | C178: 2021 | D178: FDLCH-CPS-164-2021 | E178: https://community.secop.gov.co/Public/Tendering/OpportunityDetail/Index?noticeUID=CO1.NTC.2227397&isFromPublicArea=True&isModal=true&asPopupView=true | F178: Contratos de prestación de servicios profesionales y de apoyo a la gestión | G178: Contratación directa | H178: Prestación de servicios profesionales y de apoyo a la gestión, o para la ejecución de trabajos artísticos que sólo puedan encomendarse a determinadas personas naturales; | I178: Prestar los servicios profesionales de apoyo jurídico en la ejecución de las acciones requeridas para el trámite e impulso procesal de las actuaciones, contravenciones y/o querellas que cursen en las inspecciones de policia de la localidad. | J178: Inversión | K178: Un Nuevo Contrato Social y Ambiental para la Bogotá del Siglo XXI | L178: 57 | M178: =IF(ISERROR(VLOOKUP(L178,Proposito_programa!$C$2:$E$59,2,FALSE))," ",VLOOKUP(L178,Proposito_programa!$C$2:$E$59,2,FALSE)) -> Gestión pública local | N178: =IF(ISERROR(VLOOKUP(L178,Proposito_programa!$C$2:$E$59,3,FALSE))," ",VLOOKUP(L178,Proposito_programa!$C$2:$E$59,3,FALSE)) -> Propósito 5: Construir Bogotá - Región con gobierno abierto, transparente y ciudadanía consciente | O178: 133011605570000001841 | P178: 1 | Q178: 1026275441 | R178: INGRID SORAIDA CLAVIJO CRUZ | S178: Persona Natural | W178: 17600000 | AA178: 17600000 | AB178: 14520000 | AC178: 2021-09-06 | AD178: 2021-09-07 | AE178: 2022-01-06 | AF178: 120 | AH178: 0 | AO178: X | AQ178: 0.825
A179: 1 | B179: 166 | C179: 2021 | D179: FDLCH-CPS-165-2021 | E179: https://community.secop.gov.co/Public/Tendering/OpportunityDetail/Index?noticeUID=CO1.NTC.2227559&isFromPublicArea=True&isModal=true&asPopupView=true | F179: Contratos de prestación de servicios profesionales y de apoyo a la gestión | G179: Contratación directa | H179: Prestación de servicios profesionales y de apoyo a la gestión, o para la ejecución de trabajos artísticos que sólo puedan encomendarse a determinadas personas naturales; | I179: Prestar servicios profesionales para apoyar técnicamente las actuaciones administrativas, impulso procesal y de inspección, vigilancia y control de competencia de la Alcaldía Local de Cahpienro. | J179: Inversión | K179: Un Nuevo Contrato Social y Ambiental para la Bogotá del Siglo XXI | L179: 57 | M179: =IF(ISERROR(VLOOKUP(L179,Proposito_programa!$C$2:$E$59,2,FALSE))," ",VLOOKUP(L179,Proposito_programa!$C$2:$E$59,2,FALSE)) -> Gestión pública local | N179: =IF(ISERROR(VLOOKUP(L179,Proposito_programa!$C$2:$E$59,3,FALSE))," ",VLOOKUP(L179,Proposito_programa!$C$2:$E$59,3,FALSE)) -> Propósito 5: Construir Bogotá - Región con gobierno abierto, transparente y ciudadanía consciente | O179: 133011605570000001841 | P179: 1 | Q179: 1030625256 | R179: ANDRES FELIPE RAMOS ARENAS | S179: Persona Natural | W179: 18400000 | Y179: 1 | Z179: 1500000 | AA179: 19900000 | AB179: 15026667 | AC179: 2021-09-06 | AD179: 2021-09-08 | AE179: 2022-01-17 | AF179: 120 | AG179: 1 | AH179: 30 | AN179: X | AQ179: 0.7551088945
A180: 1 | B180: 167 | C180: 2021 | D180: FDLCH-CIA-166-2021 | E180: https://www.contratos.gov.co/consultas/detalleProceso.do?numConstancia=21-22-28981&g-recaptcha-response=03AGdBq265snWSvcm5pS6J2lJYYC06R3fcWXmG-tUIQgJxs0SNyt6wShEiRxcQeEUmfbTILFiK6yIcsmj2pb8UtITqEVK0OJDDpMbNecc7tX9EKjR73MB0l6HApuSuzhEcnf3mrYSVFQSpo5cRLQV0Pc3ElsDkxhooEssmhrLlEAHGPjmX3r_tPUW1vDpZD094FHUsRlfVUKnYcYENEv2xZvzrwEcM5jRlpPwwpI_9nyBOAufBTT-xD80J6DKI1LBN-s8p7Ygd7DwKQp1AQaXN8eLhXEeqRRc3-IHr1c-LOt86wGTI1_ceut48l8dml5donugN1pmQF2DznytLBBQqOeo04Ie6Mt83KLUsoZSR9XKWMgcDVzVDwSVw0WeoH5blp0NlHrxiH-Q37wknYN9xLt3Ss4p_fSUxlZ-mwCVMJpYzZCSi5WZro0jwmDDNSgEcPwV7Mm_iS2UCX2TnOxVSXXz1TpJU7DIIPA | F180: Contratos interadministrativos | G180: Contratación directa | H180: Contratos interadministrativos | I180: Aunar esfuerzos técnicos, administrativos y financieros entre el IDRD y los Fondos de Desarrollo Local para la ejecución de las líneas de inversión, formación y eventos recreodeportivos. | J180: Inversión | K180: Un Nuevo Contrato Social y Ambiental para la Bogotá del Siglo XXI | L180: 20 | M180: =IF(ISERROR(VLOOKUP(L180,Proposito_programa!$C$2:$E$59,2,FALSE))," ",VLOOKUP(L180,Proposito_programa!$C$2:$E$59,2,FALSE)) -> Bogotá, referente en cultura, deporte, recreación y actividad física, con parques para el desarrollo y la salud | N180: =IF(ISERROR(VLOOKUP(L180,Proposito_programa!$C$2:$E$59,3,FALSE))," ",VLOOKUP(L180,Proposito_programa!$C$2:$E$59,3,FALSE)) -> Propósito 1: Hacer un nuevo contrato social para incrementar la inclusión social, productiva y política | O180: 133011601200000001845 | P180: 1 | Q180: 860061099 | R180: INSTITUTO DISTRITAL PARA LA RECREACION Y EL DEPORTE-IDRD | S180: Persona Jurídica | W180: 212315400 | AA180: 212315400 | AB180: 169852320 | AC180: 2021-08-31 | AD180: 2021-09-21 | AE180: 2022-08-22 | AF180: 180 | AG180: 1 | AH180: 30 | AN180: X | AQ180: 0.8
A181: 1 | B181: 168 | C181: 2021 | D181: FDLCH-CPS-167-2021 | E181: https://community.secop.gov.co/Public/Tendering/OpportunityDetail/Index?noticeUID=CO1.NTC.2223718&isFromPublicArea=True&isModal=true&asPopupView=true | F181: Contratos de prestación de servicios profesionales y de apoyo a la gestión | G181: Contratación directa | H181: Prestación de servicios profesionales y de apoyo a la gestión, o para la ejecución de trabajos artísticos que sólo puedan encomendarse a determinadas personas naturales; | I181: Prestar servicios profesionales para apoyar al área de gestión del desarrollo local de la alcaldía local de chapinero, en la gestión, formulación, desarrollo, seguimiento y evaluación del proyecto de inversión “chapinero es primera infancia” del programa educación inicial: bases sólidas para la vida | J181: Inversión | K181: Un Nuevo Contrato Social y Ambiental para la Bogotá del Siglo XXI | L181: 12 | M181: =IF(ISERROR(VLOOKUP(L181,Proposito_programa!$C$2:$E$59,2,FALSE))," ",VLOOKUP(L181,Proposito_programa!$C$2:$E$59,2,FALSE)) -> Educación inicial: Bases sólidas para la vida. | N181: =IF(ISERROR(VLOOKUP(L181,Proposito_programa!$C$2:$E$59,3,FALSE))," ",VLOOKUP(L181,Proposito_programa!$C$2:$E$59,3,FALSE)) -> Propósito 1: Hacer un nuevo contrato social para incrementar la inclusión social, productiva y política | O181: 133011601120000001830 | P181: 1 | Q181: 52312234 | R181: CLAUDIA MARCELA LOPEZ SERRATO | S181: Persona Natural | W181: 22000000 | AA181: 22000000 | AB181: 18333333 | AC181: 2021-09-03 | AD181: 2021-09-06 | AE181: 2022-01-05 | AF181: 120 | AH181: 0 | AO181: X | AQ181: 0.8333333182
A182: 1 | B182: 169 | C182: 2021 | D182: FDLCH-CPS-168-2021 | E182: https://community.secop.gov.co/Public/Tendering/OpportunityDetail/Index?noticeUID=CO1.NTC.2167917&isFromPublicArea=True&isModal=true&asPopupView=true | F182: Contratos de prestación de servicios | G182: Selección abreviada | H182: Selección abreviada por menor cuantía | I182: Contratar la prestación de servicios para desarrollar estrategias de sensibilización y formación para el fortalecimiento de prácticas de crianza asertivas en primera infancia y cuidado calificado” dirigido a padres de familia y/o cuidadores de las niñas y niños de educación inicial (Jardín y Transición) de las Instituciones Educativas Distritales de la localidad de Chapinero”, en el marco del proyecto 1830, “Chapinero es Primera Infancia | J182: Inversión | K182: Un Nuevo Contrato Social y Ambiental para la Bogotá del Siglo XXI | L182: 12 | M182: =IF(ISERROR(VLOOKUP(L182,Proposito_programa!$C$2:$E$59,2,FALSE))," ",VLOOKUP(L182,Proposito_programa!$C$2:$E$59,2,FALSE)) -> Educación inicial: Bases sólidas para la vida. | N182: =IF(ISERROR(VLOOKUP(L182,Proposito_programa!$C$2:$E$59,3,FALSE))," ",VLOOKUP(L182,Proposito_programa!$C$2:$E$59,3,FALSE)) -> Propósito 1: Hacer un nuevo contrato social para incrementar la inclusión social, productiva y política | O182: 133011601120000001830 | P182: 4 | Q182: 900094963 | R182: FUNDACION PARA EL DESARROLLO INFANTIL SOCIAL Y CULTURAL IWOKE | S182: Persona Jurídica | W182: 191115830 | AA182: 191115830 | AB182: 172004247 | AC182: 2021-09-06 | AD182: 2021-09-08 | AE182: 2022-01-07 | AF182: 120 | AH182: 0 | AN182: X | AQ182: 0.9
A183: 1 | B183: 170 | C183: 2021 | D183: FDLCH-CPS-169-2021 | E183: https://community.secop.gov.co/Public/Tendering/OpportunityDetail/Index?noticeUID=CO1.NTC.2221121&isFromPublicArea=True&isModal=true&asPopupView=true | F183: Contratos de prestación de servicios profesionales y de apoyo a la gestión | G183: Contratación directa | H183: Prestación de servicios profesionales y de apoyo a la gestión, o para la ejecución de trabajos artísticos que sólo puedan encomendarse a determinadas personas naturales; | I183: Prestar los servicios profesionales para coordinar la articulación, asistencia y acompañamiento de los procesos de planeación local, para la promoción de la participación de las mujeres y de la equida | J183: Inversión | K183: Un Nuevo Contrato Social y Ambiental para la Bogotá del Siglo XXI | L183: 40 | M183: =IF(ISERROR(VLOOKUP(L183,Proposito_programa!$C$2:$E$59,2,FALSE))," ",VLOOKUP(L183,Proposito_programa!$C$2:$E$59,2,FALSE)) -> Más mujeres viven una vida libre de violencias, se sienten seguras y acceden con confianza al sistema de justicia | N183: =IF(ISERROR(VLOOKUP(L183,Proposito_programa!$C$2:$E$59,3,FALSE))," ",VLOOKUP(L183,Proposito_programa!$C$2:$E$59,3,FALSE)) -> Propósito 3: Inspirar confianza y legitimidad para vivir sin miedo y ser epicentro de cultura ciudadana, paz y reconciliación | O183: 133011603400000002035 | P183: 1 | Q183: 1110174525 | R183: VIVIANA LOZANO DUCUARA | S183: Persona Natural | W183: 24400000 | Y183: 1 | Z183: 3456661 | AA183: 27856661 | AB183: 20943333 | AC183: 2021-09-03 | AD183: 2021-09-03 | AE183: 2022-01-19 | AF183: 120 | AG183: 1 | AH183: 30 | AN183: X | AQ183: 0.7518249585
A184: 1 | B184: 171 | C184: 2021 | D184: FDLCH-CPS-170-2021 | E184: https://community.secop.gov.co/Public/Tendering/OpportunityDetail/Index?noticeUID=CO1.NTC.2223345&isFromPublicArea=True&isModal=true&asPopupView=true | F184: Contratos de prestación de servicios profesionales y de apoyo a la gestión | G184: Contratación directa | H184: Prestación de servicios profesionales y de apoyo a la gestión, o para la ejecución de trabajos artísticos que sólo puedan encomendarse a determinadas personas naturales; | I184: Prestar los servicios profesionales para apoyar el área de Gestión del Desarrollo local de la Alcaldía Local de Chapinero, en la formulación, gestión, ejecución y apoyo a la supervisión de los proyectos relacionados con los temas de salud, en cumplimiento de las metas y objetivos del Plan de Desarrollo Local | J184: Inversión | K184: Un Nuevo Contrato Social y Ambiental para la Bogotá del Siglo XXI | L184: 6 | M184: =IF(ISERROR(VLOOKUP(L184,Proposito_programa!$C$2:$E$59,2,FALSE))," ",VLOOKUP(L184,Proposito_programa!$C$2:$E$59,2,FALSE)) -> Sistema Distrital de Cuidado | N184: =IF(ISERROR(VLOOKUP(L184,Proposito_programa!$C$2:$E$59,3,FALSE))," ",VLOOKUP(L184,Proposito_programa!$C$2:$E$59,3,FALSE)) -> Propósito 1: Hacer un nuevo contrato social para incrementar la inclusión social, productiva y política | O184: 133011601060000002024 | P184: 1 | Q184: 53037864 | R184: DIANA CAROLINA MORENO RINCON | S184: Persona Natural | W184: 20000000 | Y184: 1 | Z184: 2333333 | AA184: 22333333 | AB184: 17166667 | AC184: 2021-09-03 | AD184: 2021-09-03 | AE184: 2022-01-02 | AF184: 120 | AH184: 0 | AO184: X | AQ184: 0.7686567428
A185: 1 | B185: 172 | C185: 2021 | D185: FDLCH-CPS-171-2021 | E185: https://community.secop.gov.co/Public/Tendering/OpportunityDetail/Index?noticeUID=CO1.NTC.2227226&isFromPublicArea=True&isModal=true&asPopupView=true | F185: Contratos de prestación de servicios profesionales y de apoyo a la gestión | G185: Contratación directa | H185: Prestación de servicios profesionales y de apoyo a la gestión, o para la ejecución de trabajos artísticos que sólo puedan encomendarse a determinadas personas naturales; | I185: Prestación de servicios de apoyo necesarios para apoyar la gestión y ejecución de actividades administrativas, operativas y logísticas que se adelantan en el área de gestión del desarrollo local de la Alcaldía Local de Chapinero | J185: Inversión | K185: Un Nuevo Contrato Social y Ambiental para la Bogotá del Siglo XXI | L185: 57 | M185: =IF(ISERROR(VLOOKUP(L185,Proposito_programa!$C$2:$E$59,2,FALSE))," ",VLOOKUP(L185,Proposito_programa!$C$2:$E$59,2,FALSE)) -> Gestión pública local | N185: =IF(ISERROR(VLOOKUP(L185,Proposito_programa!$C$2:$E$59,3,FALSE))," ",VLOOKUP(L185,Proposito_programa!$C$2:$E$59,3,FALSE)) -> Propósito 5: Construir Bogotá - Región con gobierno abierto, transparente y ciudadanía consciente | O185: 133011605570000001741 | P185: 1 | Q185: 2996195 | R185: MEYER JAIRO GACHARNA VILLALBA | S185: Persona Natural | W185: 8800000 | AA185: 8800000 | AB185: 7260000 | AC185: 2021-09-06 | AD185: 2021-09-07 | AE185: 2022-01-06 | AF185: 120 | AH185: 0 | AO185: X | AQ185: 0.825
A186: 1 | B186: 173 | C186: 2021 | D186: FDLCH-CPS-172-2021 | E186: https://community.secop.gov.co/Public/Tendering/OpportunityDetail/Index?noticeUID=CO1.NTC.2227297&isFromPublicArea=True&isModal=true&asPopupView=true | F186: Contratos de prestación de servicios profesionales y de apoyo a la gestión | G186: Contratación directa | H186: Prestación de servicios profesionales y de apoyo a la gestión, o para la ejecución de trabajos artísticos que sólo puedan encomendarse a determinadas personas naturales; | I186: Prestar servicios profesionales para apoyar técnicamente las actuaciones administrativas, impulso procesal y de inspección, vigilancia y control de competencia de la alcaldía local de chapinero | J186: Inversión | K186: Un Nuevo Contrato Social y Ambiental para la Bogotá del Siglo XXI | L186: 57 | M186: =IF(ISERROR(VLOOKUP(L186,Proposito_programa!$C$2:$E$59,2,FALSE))," ",VLOOKUP(L186,Proposito_programa!$C$2:$E$59,2,FALSE)) -> Gestión pública local | N186: =IF(ISERROR(VLOOKUP(L186,Proposito_programa!$C$2:$E$59,3,FALSE))," ",VLOOKUP(L186,Proposito_programa!$C$2:$E$59,3,FALSE)) -> Propósito 5: Construir Bogotá - Región con gobierno abierto, transparente y ciudadanía consciente | O186: 133011605570000001841 | P186: 1 | Q186: 52533394 | R186: MARICELA PALACIO RODRIGUEZ | S186: Persona Natural | W186: 18400000 | Y186: 1 | Z186: 1500000 | AA186: 19900000 | AB186: 15026667 | AC186: 2021-09-06 | AD186: 2021-09-08 | AE186: 2022-01-17 | AF186: 120 | AG186: 1 | AH186: 30 | AN186: X | AQ186: 0.7551088945
A187: 1 | B187: 174 | C187: 2021 | D187: FDLCH-CPS-173-2021 | E187: https://community.secop.gov.co/Public/Tendering/OpportunityDetail/Index?noticeUID=CO1.NTC.2226896&isFromPublicArea=True&isModal=true&asPopupView=true | F187: Contratos de prestación de servicios profesionales y de apoyo a la gestión | G187: Contratación directa | H187: Prestación de servicios profesionales y de apoyo a la gestión, o para la ejecución de trabajos artísticos que sólo puedan encomendarse a determinadas personas naturales; | I187: Prestar servicios profesionales para apoyar técnicamente las actuaciones administrativas, impulso procesal y de inspección, vigilancia y control de competencia de la alcaldía local de chapinero | J187: Inversión | K187: Un Nuevo Contrato Social y Ambiental para la Bogotá del Siglo XXI | L187: 57 | M187: =IF(ISERROR(VLOOKUP(L187,Proposito_programa!$C$2:$E$59,2,FALSE))," ",VLOOKUP(L187,Proposito_programa!$C$2:$E$59,2,FALSE)) -> Gestión pública local | N187: =IF(ISERROR(VLOOKUP(L187,Proposito_programa!$C$2:$E$59,3,FALSE))," ",VLOOKUP(L187,Proposito_programa!$C$2:$E$59,3,FALSE)) -> Propósito 5: Construir Bogotá - Región con gobierno abierto, transparente y ciudadanía consciente | O187: 133011605570000001841 | P187: 1 | Q187: 80799927 | R187: SALOMON RODRIGUEZ LAGUNA | S187: Persona Natural | W187: 18400000 | AA187: 18400000 | AB187: 15026667 | AC187: 2021-09-06 | AD187: 2021-09-08 | AE187: 2022-01-07 | AF187: 120 | AH187: 0 | AN187: X | AQ187: 0.8166666848
A188: 1 | B188: 175 | C188: 2021 | D188: FDLCH-CCV-174-2021 | E188: https://community.secop.gov.co/Public/Tendering/OpportunityDetail/Index?noticeUID=CO1.NTC.2164669&isFromPublicArea=True&isModal=true&asPopupView=true | F188: Contratos de prestación de servicios | G188: Selección abreviada | H188: Subasta inversa | I188: Realizar la compraventa de los bienes destinados para la dotación de la Casa de la Juventud y las Organizaciones Comunales en el marco de los proyectos Jóvenes Comprometidos por Chapinero y Chapinero Liderado por la Ciudadanía. | J188: Inversión | K188: Un Nuevo Contrato Social y Ambiental para la Bogotá del Siglo XXI | L188: 17 | M188: =IF(ISERROR(VLOOKUP(L188,Proposito_programa!$C$2:$E$59,2,FALSE))," ",VLOOKUP(L188,Proposito_programa!$C$2:$E$59,2,FALSE)) -> Jóvenes con capacidades: Proyecto de vida para la ciudadanía, la innovación y el trabajo del siglo XXI | N188: =IF(ISERROR(VLOOKUP(L188,Proposito_programa!$C$2:$E$59,3,FALSE))," ",VLOOKUP(L188,Proposito_programa!$C$2:$E$59,3,FALSE)) -> Propósito 1: Hacer un nuevo contrato social para incrementar la inclusión social, productiva y política | O188: 133011601170000001695 | P188: 1 | Q188: 79949302 | R188: ANDRES OCHOA OJEDA | S188: Persona Natural | W188: 3190165 | AA188: 3190165 | AB188: 3190165 | AC188: 2021-09-10 | AD188: 2021-09-17 | AE188: 2021-11-16 | AF188: 30 | AG188: 1 | AH188: 30 | AO188: X | AQ188: 1
A189: 1 | B189: 176 | C189: 2021 | D189: FDLCH-CPS-175-2021 | E189: https://community.secop.gov.co/Public/Tendering/OpportunityDetail/Index?noticeUID=CO1.NTC.2232666&isFromPublicArea=True&isModal=true&asPopupView=true | F189: Contratos de prestación de servicios profesionales y de apoyo a la gestión | G189: Contratación directa | H189: Prestación de servicios profesionales y de apoyo a la gestión, o para la ejecución de trabajos artísticos que sólo puedan encomendarse a determinadas personas naturales; | I189: Prestar servicios profesionales para apoyar técnicamente las actuaciones administrativas, impulso procesar y de inspección, vigilancia y control de competencia de la Alcaldía Lcoal de Chapinero. | J189: Inversión | K189: Un Nuevo Contrato Social y Ambiental para la Bogotá del Siglo XXI | L189: 57 | M189: =IF(ISERROR(VLOOKUP(L189,Proposito_programa!$C$2:$E$59,2,FALSE))," ",VLOOKUP(L189,Proposito_programa!$C$2:$E$59,2,FALSE)) -> Gestión pública local | N189: =IF(ISERROR(VLOOKUP(L189,Proposito_programa!$C$2:$E$59,3,FALSE))," ",VLOOKUP(L189,Proposito_programa!$C$2:$E$59,3,FALSE)) -> Propósito 5: Construir Bogotá - Región con gobierno abierto, transparente y ciudadanía consciente | O189: 133011605570000001841 | P189: 1 | Q189: 80825882 | R189: CARLOS ANDRES GIL RUEDA | S189: Persona Natural | W189: 18400000 | AA189: 18400000 | AB189: 14873333 | AC189: 2021-09-08 | AD189: 2021-09-09 | AE189: 2022-01-08 | AF189: 120 | AH189: 0 | AN189: X | AQ189: 0.8083333152
A190: 1 | B190: 177 | C190: 2021 | D190: FDLCH-CCV-176-2021 | E190: https://community.secop.gov.co/Public/Tendering/OpportunityDetail/Index?noticeUID=CO1.NTC.2164669&isFromPublicArea=True&isModal=true&asPopupView=true | F190: Contratos de prestación de servicios | G190: Selección abreviada | H190: Subasta inversa | I190: Realizar la compraventa de los bienes destinados para la dotación de la Casa de la Juventud y las Organizaciones Comunales en el marco de los proyectos Jóvenes Comprometidos por Chapinero y Chapinero Liderado por la Ciudadanía. | J190: Inversión | K190: Un Nuevo Contrato Social y Ambiental para la Bogotá del Siglo XXI | L190: 17 | M190: =IF(ISERROR(VLOOKUP(L190,Proposito_programa!$C$2:$E$59,2,FALSE))," ",VLOOKUP(L190,Proposito_programa!$C$2:$E$59,2,FALSE)) -> Jóvenes con capacidades: Proyecto de vida para la ciudadanía, la innovación y el trabajo del siglo XXI | N190: =IF(ISERROR(VLOOKUP(L190,Proposito_programa!$C$2:$E$59,3,FALSE))," ",VLOOKUP(L190,Proposito_programa!$C$2:$E$59,3,FALSE)) -> Propósito 1: Hacer un nuevo contrato social para incrementar la inclusión social, productiva y política | O190: 133011601170000001695 | P190: 5 | Q190: 900171311 | R190: TECNOLOGY WORLD GROUP SAS | S190: Persona Jurídica | W190: 117277953 | AA190: 117277953 | AB190: 117277953 | AC190: 2021-09-09 | AD190: 2021-09-13 | AE190: 2021-11-12 | AF190: 30 | AG190: 1 | AH190: 30 | AO190: X | AQ190: 1
A191: 1 | B191: 178 | C191: 2021 | D191: FDLCH-CCV-176-2021 | E191: https://community.secop.gov.co/Public/Tendering/OpportunityDetail/Index?noticeUID=CO1.NTC.2164669&isFromPublicArea=True&isModal=true&asPopupView=true | F191: Contratos de prestación de servicios | G191: Selección abreviada | H191: Subasta inversa | I191: Realizar la compraventa de los bienes destinados para la dotación de la Casa de la Juventud y las Organizaciones Comunales en el marco de los proyectos Jóvenes Comprometidos por Chapinero y Chapinero Liderado por la Ciudadanía. | J191: Inversión | K191: Un Nuevo Contrato Social y Ambiental para la Bogotá del Siglo XXI | L191: 17 | M191: =IF(ISERROR(VLOOKUP(L191,Proposito_programa!$C$2:$E$59,2,FALSE))," ",VLOOKUP(L191,Proposito_programa!$C$2:$E$59,2,FALSE)) -> Jóvenes con capacidades: Proyecto de vida para la ciudadanía, la innovación y el trabajo del siglo XXI | N191: =IF(ISERROR(VLOOKUP(L191,Proposito_programa!$C$2:$E$59,3,FALSE))," ",VLOOKUP(L191,Proposito_programa!$C$2:$E$59,3,FALSE)) -> Propósito 1: Hacer un nuevo contrato social para incrementar la inclusión social, productiva y política | O191: 133011605550000001739 | P191: 5 | Q191: 900171311 | R191: TECNOLOGY WORLD GROUP SAS | S191: Persona Jurídica | W191: 193122047 | AA191: 193122047 | AB191: 193122047 | AC191: 2021-09-09 | AD191: 2021-09-13 | AE191: 2021-11-12 | AF191: 30 | AG191: 1 | AH191: =+AG191*30 -> 30 | AO191: X | AQ191: 1
A192: 1 | B192: 179 | C192: 2021 | D192: FDLCH-CCV-177-2021 | E192: https://community.secop.gov.co/Public/Tendering/OpportunityDetail/Index?noticeUID=CO1.NTC.2164669&isFromPublicArea=True&isModal=true&asPopupView=true | F192: Contratos de prestación de servicios | G192: Selección abreviada | H192: Subasta inversa | I192: Realizar la compraventa de los bienes destinados para la dotación de la Casa de la Juventud y las Organizaciones Comunales en el marco de los proyectos Jóvenes Comprometidos por Chapinero y Chapinero Liderado por la Ciudadanía. | J192: Inversión | K192: Un Nuevo Contrato Social y Ambiental para la Bogotá del Siglo XXI | L192: 17 | M192: =IF(ISERROR(VLOOKUP(L192,Proposito_programa!$C$2:$E$59,2,FALSE))," ",VLOOKUP(L192,Proposito_programa!$C$2:$E$59,2,FALSE)) -> Jóvenes con capacidades: Proyecto de vida para la ciudadanía, la innovación y el trabajo del siglo XXI | N192: =IF(ISERROR(VLOOKUP(L192,Proposito_programa!$C$2:$E$59,3,FALSE))," ",VLOOKUP(L192,Proposito_programa!$C$2:$E$59,3,FALSE)) -> Propósito 1: Hacer un nuevo contrato social para incrementar la inclusión social, productiva y política | O192: 133011601170000001695 | P192: 5 | Q192: 800089897 | R192: COMERCIALIZADORA SERLE COM | S192: Persona Jurídica | W192: 38430515 | AA192: 38430515 | AB192: 38430515 | AC192: 2021-09-09 | AD192: 2021-09-13 | AE192: 2021-11-12 | AF192: 30 | AG192: 1 | AH192: 30 | AO192: X | AQ192: 1
A193: 1 | B193: 180 | C193: 2021 | D193: FDLCH-CCV-177-2021 | E193: https://community.secop.gov.co/Public/Tendering/OpportunityDetail/Index?noticeUID=CO1.NTC.2164669&isFromPublicArea=True&isModal=true&asPopupView=true | F193: Contratos de prestación de servicios | G193: Selección abreviada | H193: Subasta inversa | I193: Realizar la compraventa de los bienes destinados para la dotación de la Casa de la Juventud y las Organizaciones Comunales en el marco de los proyectos Jóvenes Comprometidos por Chapinero y Chapinero Liderado por la Ciudadanía. | J193: Inversión | K193: Un Nuevo Contrato Social y Ambiental para la Bogotá del Siglo XXI | L193: 17 | M193: =IF(ISERROR(VLOOKUP(L193,Proposito_programa!$C$2:$E$59,2,FALSE))," ",VLOOKUP(L193,Proposito_programa!$C$2:$E$59,2,FALSE)) -> Jóvenes con capacidades: Proyecto de vida para la ciudadanía, la innovación y el trabajo del siglo XXI | N193: =IF(ISERROR(VLOOKUP(L193,Proposito_programa!$C$2:$E$59,3,FALSE))," ",VLOOKUP(L193,Proposito_programa!$C$2:$E$59,3,FALSE)) -> Propósito 1: Hacer un nuevo contrato social para incrementar la inclusión social, productiva y política | O193: 133011605550000001739 | P193: 5 | Q193: 800089897 | R193: COMERCIALIZADORA SERLE COM | S193: Persona Jurídica | W193: 7569485 | AA193: 7569485 | AB193: 7569485 | AC193: 2021-09-09 | AD193: 2021-09-13 | AE193: 2021-11-12 | AF193: 30 | AG193: 1 | AH193: =+AG193*30 -> 30 | AO193: X | AQ193: 1
A194: 1 | B194: 181 | C194: 2021 | D194: FDLCH-CCV-178-2021 | E194: https://community.secop.gov.co/Public/Tendering/OpportunityDetail/Index?noticeUID=CO1.NTC.2164669&isFromPublicArea=True&isModal=true&asPopupView=true | F194: Contratos de prestación de servicios | G194: Selección abreviada | H194: Subasta inversa | I194: Realizar la compraventa de los bienes destinados para la dotación de la Casa de la Juventud y las Organizaciones Comunales en el marco de los proyectos Jóvenes Comprometidos por Chapinero y Chapinero Liderado por la Ciudadanía. | J194: Inversión | K194: Un Nuevo Contrato Social y Ambiental para la Bogotá del Siglo XXI | L194: 17 | M194: =IF(ISERROR(VLOOKUP(L194,Proposito_programa!$C$2:$E$59,2,FALSE))," ",VLOOKUP(L194,Proposito_programa!$C$2:$E$59,2,FALSE)) -> Jóvenes con capacidades: Proyecto de vida para la ciudadanía, la innovación y el trabajo del siglo XXI | N194: =IF(ISERROR(VLOOKUP(L194,Proposito_programa!$C$2:$E$59,3,FALSE))," ",VLOOKUP(L194,Proposito_programa!$C$2:$E$59,3,FALSE)) -> Propósito 1: Hacer un nuevo contrato social para incrementar la inclusión social, productiva y política | O194: 133011601170000001695 | P194: 4 | Q194: 901058050 | R194: LICITACIONES Y ASESORIAS LICCONT S.A.S. | S194: Persona Jurídica | W194: 20990000 | AA194: 20990000 | AB194: 20990000 | AC194: 2021-09-09 | AD194: 2021-09-15 | AE194: 2021-11-14 | AF194: 30 | AG194: 1 | AH194: 30 | AO194: X | AQ194: 1
A195: 1 | B195: 182 | C195: 2021 | D195: FDLCH-CCV-179-2021 | E195: https://community.secop.gov.co/Public/Tendering/OpportunityDetail/Index?noticeUID=CO1.NTC.2164669&isFromPublicArea=True&isModal=true&asPopupView=true | F195: Contratos de prestación de servicios | G195: Selección abreviada | H195: Subasta inversa | I195: Realizar la compraventa de los bienes destinados para la dotación de la casa de la juventud y las organizaciones comunales en el marco de los proyectos “JÓVENES COMPROMETIDOS POR CHAPINERO” Y “CHAPINERO LIDERADO POR LA CIUDADANÍA” | J195: Inversión | K195: Un Nuevo Contrato Social y Ambiental para la Bogotá del Siglo XXI | L195: 17 | M195: =IF(ISERROR(VLOOKUP(L195,Proposito_programa!$C$2:$E$59,2,FALSE))," ",VLOOKUP(L195,Proposito_programa!$C$2:$E$59,2,FALSE)) -> Jóvenes con capacidades: Proyecto de vida para la ciudadanía, la innovación y el trabajo del siglo XXI | N195: =IF(ISERROR(VLOOKUP(L195,Proposito_programa!$C$2:$E$59,3,FALSE))," ",VLOOKUP(L195,Proposito_programa!$C$2:$E$59,3,FALSE)) -> Propósito 1: Hacer un nuevo contrato social para incrementar la inclusión social, productiva y política | O195: 133011601170000001695 | P195: 4 | Q195: 901058050 | R195: LICITACIONES Y ASESORIAS LICCONT S.A.S. | S195: Persona Jurídica | W195: 10153528 | AA195: 10153528 | AB195: 10153528 | AC195: 2021-09-09 | AD195: 2021-09-15 | AE195: 2021-11-14 | AF195: 30 | AG195: 1 | AH195: 30 | AO195: X | AQ195: 1
A196: 1 | B196: 183 | C196: 2021 | D196: FDLCH-CCV-179-2021 | E196: https://community.secop.gov.co/Public/Tendering/OpportunityDetail/Index?noticeUID=CO1.NTC.2164669&isFromPublicArea=True&isModal=true&asPopupView=true | F196: Contratos de prestación de servicios | G196: Selección abreviada | H196: Subasta inversa | I196: Realizar la compraventa de los bienes destinados para la dotación de la casa de la juventud y las organizaciones comunales en el marco de los proyectos “JÓVENES COMPROMETIDOS POR CHAPINERO” Y “CHAPINERO LIDERADO POR LA CIUDADANÍA” | J196: Inversión | K196: Un Nuevo Contrato Social y Ambiental para la Bogotá del Siglo XXI | L196: 17 | M196: =IF(ISERROR(VLOOKUP(L196,Proposito_programa!$C$2:$E$59,2,FALSE))," ",VLOOKUP(L196,Proposito_programa!$C$2:$E$59,2,FALSE)) -> Jóvenes con capacidades: Proyecto de vida para la ciudadanía, la innovación y el trabajo del siglo XXI | N196: =IF(ISERROR(VLOOKUP(L196,Proposito_programa!$C$2:$E$59,3,FALSE))," ",VLOOKUP(L196,Proposito_programa!$C$2:$E$59,3,FALSE)) -> Propósito 1: Hacer un nuevo contrato social para incrementar la inclusión social, productiva y política | O196: 133011605550000001739 | P196: 4 | Q196: 901058050 | R196: LICITACIONES Y ASESORIAS LICCONT S.A.S. | S196: Persona Jurídica | W196: 2844472 | AA196: 2844472 | AB196: 2844472 | AC196: 2021-09-09 | AD196: 2021-09-15 | AE196: 2021-11-14 | AF196: 30 | AG196: 1 | AH196: =+AG196*30 -> 30 | AO196: X | AQ196: 1
A197: 1 | B197: 184 | C197: 2021 | D197: FDLCH-CPS-180-2021 | E197: https://community.secop.gov.co/Public/Tendering/OpportunityDetail/Index?noticeUID=CO1.NTC.2235971&isFromPublicArea=True&isModal=true&asPopupView=true | F197: Contratos de prestación de servicios profesionales y de apoyo a la gestión | G197: Contratación directa | H197: Prestación de servicios profesionales y de apoyo a la gestión, o para la ejecución de trabajos artísticos que sólo puedan encomendarse a determinadas personas naturales; | I197: Prestr los servicios profesionales para apoyar el área de gestión del desarrollo local de la Alcaldía Local de Chapinero, en la formulación, gestión, ejecución y apoyo a la supervisión de los proyectos relaiconados con las prevención, atención de la violencia intrafamiliar y sexua y la eliminación de las violencias basadas en género en el marco del programa sistema distrital del cuidado. | J197: Inversión | K197: Un Nuevo Contrato Social y Ambiental para la Bogotá del Siglo XXI | L197: 6 | M197: =IF(ISERROR(VLOOKUP(L197,Proposito_programa!$C$2:$E$59,2,FALSE))," ",VLOOKUP(L197,Proposito_programa!$C$2:$E$59,2,FALSE)) -> Sistema Distrital de Cuidado | N197: =IF(ISERROR(VLOOKUP(L197,Proposito_programa!$C$2:$E$59,3,FALSE))," ",VLOOKUP(L197,Proposito_programa!$C$2:$E$59,3,FALSE)) -> Propósito 1: Hacer un nuevo contrato social para incrementar la inclusión social, productiva y política | O197: 133011601060000001710 | P197: 1 | Q197: 52559313 | R197: ALICIA CUJABAN ZAZA | S197: Persona Natural | W197: 20000000 | AA197: 20000000 | AB197: 16166667 | AC197: 2021-09-09 | AD197: 2021-09-09 | AE197: 2022-01-08 | AF197: 120 | AH197: 0 | AN197: X | AQ197: 0.80833335
A198: 1 | B198: 185 | C198: 2021 | D198: FDLCH-CPS-181-2021 | E198: https://community.secop.gov.co/Public/Tendering/OpportunityDetail/Index?noticeUID=CO1.NTC.2239374&isFromPublicArea=True&isModal=true&asPopupView=true | F198: Contratos de prestación de servicios profesionales y de apoyo a la gestión | G198: Contratación directa | H198: Prestación de servicios profesionales y de apoyo a la gestión, o para la ejecución de trabajos artísticos que sólo puedan encomendarse a determinadas personas naturales; | I198: Prestar los servicios técnico de apoyo para la operación, seguimiento y cumplimiento de los procesos y procedimientos del servicio apoyos económicos tipo c, requeridos para el oportuno y adecuado registro, cruce y reporte de los datos en el sistema misional–sirbe, que contribuyan a la garantía de los derechos de la población mayor en el marco de la política pública social para el envejecimiento y la vejez en el distrito capital a cargo de la alcaldía local | J198: Inversión | K198: Un Nuevo Contrato Social y Ambiental para la Bogotá del Siglo XXI | L198: 1 | M198: =IF(ISERROR(VLOOKUP(L198,Proposito_programa!$C$2:$E$59,2,FALSE))," ",VLOOKUP(L198,Proposito_programa!$C$2:$E$59,2,FALSE)) -> Subsidios y transferencias para la equidad | N198: =IF(ISERROR(VLOOKUP(L198,Proposito_programa!$C$2:$E$59,3,FALSE))," ",VLOOKUP(L198,Proposito_programa!$C$2:$E$59,3,FALSE)) -> Propósito 1: Hacer un nuevo contrato social para incrementar la inclusión social, productiva y política | O198: 133011601010000001815 | P198: 1 | Q198: 80449648 | R198: JUAN CARLOS AREVALO | S198: Persona Natural | W198: 12000000 | Y198: 1 | Z198: 900000 | AA198: 12900000 | AB198: 9300000 | AC198: 2021-09-10 | AD198: 2021-09-13 | AE198: 2022-01-21 | AF198: 120 | AH198: 0 | AN198: X | AQ198: 0.7209302326
A199: 1 | B199: 186 | C199: 2021 | D199: FDLCH-CPS-182-2021 | E199: https://community.secop.gov.co/Public/Tendering/OpportunityDetail/Index?noticeUID=CO1.NTC.2237001&isFromPublicArea=True&isModal=true&asPopupView=true | F199: Contratos de prestación de servicios profesionales y de apoyo a la gestión | G199: Contratación directa | H199: Prestación de servicios profesionales y de apoyo a la gestión, o para la ejecución de trabajos artísticos que sólo puedan encomendarse a determinadas personas naturales; | I199: Prestar servicios profesionales de apoyo para la gestión y formulación desarrollo y seguimiento del proyecto de inversión No. 1715 Chapinero restaurador y cuidador del territorio. | J199: Inversión | K199: Un Nuevo Contrato Social y Ambiental para la Bogotá del Siglo XXI | L199: 28 | M199: =IF(ISERROR(VLOOKUP(L199,Proposito_programa!$C$2:$E$59,2,FALSE))," ",VLOOKUP(L199,Proposito_programa!$C$2:$E$59,2,FALSE)) -> Bogotá protectora de sus recursos naturales | N199: =IF(ISERROR(VLOOKUP(L199,Proposito_programa!$C$2:$E$59,3,FALSE))," ",VLOOKUP(L199,Proposito_programa!$C$2:$E$59,3,FALSE)) -> Propósito 2 : Cambiar Nuestros Hábitos de Vida para Reverdecer a Bogotá y Adaptarnos y Mitigar la Crisis Climática | O199: 133011602280000001715 | P199: 1 | Q199: 11442710 | R199: TITO FABIAN RUIZ BARAJAS | S199: Persona Natural | W199: 19200000 | AA199: 19200000 | AB199: 12960000 | AC199: 2021-09-09 | AD199: 2021-09-10 | AE199: 2022-01-09 | AF199: 120 | AH199: 0 | AN199: X | AQ199: 0.675
A200: 1 | B200: 187 | C200: 2021 | D200: FDLCH-CPS-183-2021 | E200: https://community.secop.gov.co/Public/Tendering/OpportunityDetail/Index?noticeUID=CO1.NTC.2241006&isFromPublicArea=True&isModal=true&asPopupView=true | F200: Contratos de prestación de servicios profesionales y de apoyo a la gestión | G200: Contratación directa | H200: Prestación de servicios profesionales y de apoyo a la gestión, o para la ejecución de trabajos artísticos que sólo puedan encomendarse a determinadas personas naturales; | I200: Prestar servicios profesionales para apoyar la gestión precontractual, contractual y postcontractual que adelante el Fondo de Desarrollo Local de Chapinero. | J200: Inversión | K200: Un Nuevo Contrato Social y Ambiental para la Bogotá del Siglo XXI | L200: 57 | M200: =IF(ISERROR(VLOOKUP(L200,Proposito_programa!$C$2:$E$59,2,FALSE))," ",VLOOKUP(L200,Proposito_programa!$C$2:$E$59,2,FALSE)) -> Gestión pública local | N200: =IF(ISERROR(VLOOKUP(L200,Proposito_programa!$C$2:$E$59,3,FALSE))," ",VLOOKUP(L200,Proposito_programa!$C$2:$E$59,3,FALSE)) -> Propósito 5: Construir Bogotá - Región con gobierno abierto, transparente y ciudadanía consciente | O200: 133011605570000001741 | P200: 1 | Q200: 1078368894 | R200: JENNYFER PAOLA GALVIS TORRES | S200: Persona Natural | W200: 19200000 | AA200: 19200000 | AB200: 14880000 | AC200: 2021-09-13 | AD200: 2021-09-13 | AE200: 2022-01-12 | AF200: 120 | AH200: 0 | AN200: X | AQ200: 0.775
A201: 1 | B201: 188 | C201: 2021 | D201: FDLCH-CPS-184-2021 | E201: https://community.secop.gov.co/Public/Tendering/OpportunityDetail/Index?noticeUID=CO1.NTC.2243964&isFromPublicArea=True&isModal=true&asPopupView=true | F201: Contratos de prestación de servicios profesionales y de apoyo a la gestión | G201: Contratación directa | H201: Prestación de servicios profesionales y de apoyo a la gestión, o para la ejecución de trabajos artísticos que sólo puedan encomendarse a determinadas personas naturales; | I201: Prestar servicios personales para apoyar actividades operativas y administrativas de la gestión precontractual, contractual y postcontractual que adelante el Fondo de Desarrollo Local de Chapinero “ | J201: Inversión | K201: Un Nuevo Contrato Social y Ambiental para la Bogotá del Siglo XXI | L201: 57 | M201: =IF(ISERROR(VLOOKUP(L201,Proposito_programa!$C$2:$E$59,2,FALSE))," ",VLOOKUP(L201,Proposito_programa!$C$2:$E$59,2,FALSE)) -> Gestión pública local | N201: =IF(ISERROR(VLOOKUP(L201,Proposito_programa!$C$2:$E$59,3,FALSE))," ",VLOOKUP(L201,Proposito_programa!$C$2:$E$59,3,FALSE)) -> Propósito 5: Construir Bogotá - Región con gobierno abierto, transparente y ciudadanía consciente | O201: 133011605570000001741 | P201: 1 | Q201: 52119337 | R201: MARTHA YANETH VASQUEZ FIGUEROA | S201: Persona Natural | W201: 10000000 | AA201: 10000000 | AB201: 7666667 | AC201: 2021-09-14 | AD201: 2021-09-14 | AE201: 2022-01-13 | AF201: 120 | AH201: 0 | AN201: X | AQ201: 0.7666667
A202: 1 | B202: 189 | C202: 2021 | D202: FDLCH-CPS-185-2021 | E202: https://community.secop.gov.co/Public/Tendering/OpportunityDetail/Index?noticeUID=CO1.NTC.2240654&isFromPublicArea=True&isModal=true&asPopupView=true | F202: Contratos de prestación de servicios profesionales y de apoyo a la gestión | G202: Contratación directa | H202: Prestación de servicios profesionales y de apoyo a la gestión, o para la ejecución de trabajos artísticos que sólo puedan encomendarse a determinadas personas naturales; | I202: Prestar servicios profesionales para apoyar al equipo de prensa y comunicaciones de la Alcaldía Local en la realización de productos y piezas digitales, impresas y publicitarias de gran formato y de animación gráfica, así como apoyar la producción y montaje de eventos | J202: Inversión | K202: Un Nuevo Contrato Social y Ambiental para la Bogotá del Siglo XXI | L202: 57 | M202: =IF(ISERROR(VLOOKUP(L202,Proposito_programa!$C$2:$E$59,2,FALSE))," ",VLOOKUP(L202,Proposito_programa!$C$2:$E$59,2,FALSE)) -> Gestión pública local | N202: =IF(ISERROR(VLOOKUP(L202,Proposito_programa!$C$2:$E$59,3,FALSE))," ",VLOOKUP(L202,Proposito_programa!$C$2:$E$59,3,FALSE)) -> Propósito 5: Construir Bogotá - Región con gobierno abierto, transparente y ciudadanía consciente | O202: 133011605570000001741 | P202: 1 | Q202: 1026269094 | R202: EIDER EMIR HERNÁNDEZ POLANCO | S202: Persona Natural | W202: 17444000 | AA202: 17444000 | AB202: 13519100 | AC202: 2021-09-13 | AD202: 2021-09-13 | AE202: 2022-01-12 | AF202: 120 | AH202: 0 | AN202: X | AQ202: 0.775
... 134 more rows

Sheet BogData
E3: BOGDATA | H3: SUMATORIA FORMATO | L3: OBSERVACIONES
E4: DISPONIBLE | F4: COMPROMETIDO | G4: GIROS ACUMULADOS | H4: COMPROMETIDO | I4: diferencia | J4: GIROS ACUMULADOS | K4: diferencia
C5: 131 | D5: GASTOS DE FUNCIONAMIENTO | E5: 2897365819 | F5: 2843988780 | G5: 2165695976 | H5: 1431969946 | I5: =+F5-H5 -> 1412018834 | J5: 586240943 | K5: =+G5-J5 -> 1579455033 | L5: *Valor comprometido: hay diferencias en el rubro de FUNCIONAMIENTO falta $1.412.018.834 al sumar los valores ralacionados en el formato. *Valor Giros: hay diferencias en los giros del rubro de FUNCIONAMIENTO falta $1.579.455.033 al sumar los valores ralacionados en el formato
C6: 13301 | D6: DIRECTA | E6: 16811914000 | F6: 16674617967 | G6: 9412708514 | H6: 13728544912 | I6: =+F6-H6 -> 2946073055 | J6: 6645543484 | K6: =+G6-J6 -> 2767165030 | L6: *Valor comprometido: hay diferencias en el rubro de INVERSIÓN DIRECTA falta $2.946.073.055 al sumar los valores ralacionados en el formato. *Valor Giros: hay diferencias en los giros del rubro de FUNCIONAMIENTO falta $2.767.165.030 al sumar los valores ralacionados en el formato
C7: 133011601 | D7: Hacer un nuevo contrato social con igualdad de oportunidades para la inclusión social, productiva y política | E7: 7410405804 | F7: 7390997411 | G7: 5856828462 | H7: 4870164386 | I7: =+F7-H7 -> 2520833025 | J7: 3330749436 | K7: =+G7-J7 -> 2526079026 | L7: *Valor comprometido: hay diferencias en el rubro del PROPÓSITO 1 falta $2.520.833.025 al sumar los valores ralacionados en el formato. *Valor Giros: hay diferencias en los giros del rubro de PROPÓSITO 1 falta $2.526.079.026 al sumar los valores ralacionados en el formato
C8: 13301160101 | D8: Subsidios y transferencias para la equidad | E8: 2877159804 | F8: 2870784591 | G8: 2802291030 | H8: 86799333 | I8: 2783985258 | J8: 72749333 | K8: 2729541697 | L8: *Valor comprometido: hay diferencias en el rubro de PROGRAMA 1 faltando $2.783.985.258 al sumar los valores ralacionados en el formato. *Valor Giros: hay diferencias en los giros del rubro de PROGRAMA 1 faltando $2.729.541.697 al sumar los valores ralacionados en el formato
C9: 133011601010000001815 | D9: Chapinero territorio de inclusión social y equidad | E9: 2877159804 | F9: 2870784591 | G9: 2802291030 | H9: 86799333 | I9: 2783985258 | J9: 72749333 | K9: 2729541697 | L9: *Valor comprometido: hay diferencias en el rubro de PROYECTO 1815 faltando $2.783.985.258 al sumar los valores ralacionados en el formato. *Valor Giros: hay diferencias en los giros del rubro de PROYECTO 1815 faltando $2.729.541.697 al sumar los valores ralacionados en el formato
C10: 13301160106 | D10: Sistema Distrital del Cuidado | E10: 1758992000 | F10: 1756797027 | G10: 918063471 | H10: 1558451323 | I10: 198345704 | J10: 698630138 | K10: 219433333 | L10: *Valor comprometido: hay diferencias en el rubro de PROGRAMA 6 faltando $198.345.704 al sumar los valores ralacionados en el formato. *Valor Giros: hay diferencias en los giros del rubro de PROGRAMA 6 faltando $329.433.333 al sumar los valores ralacionados en el formato
C11: 133011601060000001671 | D11: Chapinero productivo y emprendedor | E11: 1004218000 | F11: 1002198736 | G11: 803880138 | H11: 824153030 | I11: 178045706 | J11: 600580138 | K11: 203300000 | L11: *Valor comprometido: hay diferencias en el rubro de PROYECTO 1671 faltando $178.045.706 al sumar los valores ralacionados en el formato. *Valor Giros: hay diferencias en los giros del rubro de PROYECTO 1671 faltando $203.300.000 al sumar los valores ralacionados en el formato
C12: 133011601060000001710 | D12: Chapinero construye infraestructura socia | E12: 262330000 | F12: 262283392 | G12: 50883333 | H12: 262650060 | I12: =+F12-H12 -> -366668 | J12: 50883333 | K12: 0 | L12: *Valor comprometido: hay diferencias en el rubro de PROYECTO 1710 sobran $366.668 al sumar los valores ralacionados en el formato. *Valor Giros: CORRECTO
C13: 133011601060000002024 | D13: Chapinero promueve la inclusión y el cuidado de la salud | E13: 492444000 | F13: 492314899 | G13: 63300000 | H13: 471648233 | I13: 20666666 | J13: 47166667 | K13: 16133333 | L13: *Valor comprometido: hay diferencias en el rubro de PROYECTO 2024 faltando $20.666.666 al sumar los valores ralacionados en el formato. *Valor Giros: hay diferencias en los giros del rubro de PROYECTO 2024 faltando $16.133.333 al sumar los valores ralacionados en el formato
C14: 13301160112 | D14: Educación inicial: Bases sólidas para la vida | E14: 555955000 | F14: 555799862 | G14: 223337580 | H14: 555799862 | I14: 0 | J14: 223337580 | K14: 0 | L14: CORRECTO
C15: 133011601120000001830 | D15: Chapinero es primera infancia | E15: 555955000 | F15: 555799862 | G15: 223337580 | H15: 555799862 | I15: 0 | J15: 223337580 | K15: 0 | L15: CORRECTO
